{"text_format":"1","workbook":"xlsx","n_sheets":5,"sheets":["Notes","Region (Geography)","Trusts","Sites","BS"],"not_rendered":{"charts":0,"images":0,"macros":1,"external_links":0,"defined_names":4,"comments":0,"pivot_tables":0},"unopened":[],"bounds":{"document_bytes":16777216,"sheet_cells":100000,"rows_first":2000,"rows_last":500,"rows_between":2000,"halvings":0,"cell_chars":16384,"cell_head_chars":4096},"cells_cut":0,"cells_raw":0,"read":"whole","date_system":"1900"}

{"sheet":"Notes","index":0,"n_rows":2,"n_cols":10,"rows_kept":2,"cut":false,"hidden":false,"merged":[]}
[]
["Accident and Emergency Friends and Family Test (FFT) data - June 2015",null,null,null,null,null,null,null,null,"     Show data for:"]

{"sheet":"Region (Geography)","index":1,"n_rows":25,"n_cols":13,"rows_kept":25,"cut":false,"hidden":false,"merged":[[8,6,9,6],[8,7,8,12],[8,0,9,0],[8,1,9,1],[8,2,9,2],[8,3,9,3],[8,4,9,4],[8,5,9,5]]}
[]
[]
[null,"Show data for:"]
[]
[]
[null,"   Sort data by:           "]
[]
[]
["Region (Geo) Code","Region (Geography)","Total Responses","Total Eligible","Response Rate","Percentage Recommended","Percentage Not  Recommended","Breakdown of Responses"]
[null,null,null,null,null,null,null,"Extremely Likely","Likely","Neither","Unlikely","Extremely Unlikely","Don't Know"]
[null,"England",147551,978786,0.15074898905378703,0.88368767409234772,5.8325595895656418E-2,98298,32091,6112,3587,5019,2444]
[null,"Selection (excluding suppressed data)",{"$f":"SUBTOTAL(9,C13:C37)","v":147551},{"$f":"SUBTOTAL(9,D13:D37)","v":978786},{"$f":"IFERROR(C12/D12, \"-\")","v":0.15074898905378703},{"$f":"IFERROR((H12+I12)/C12, \"-\")","v":0.88368767409234772},{"$f":"IFERROR((K12+L12)/C12, \"-\")","v":5.8325595895656418E-2},{"$f":"SUBTOTAL(9,H13:H37)","v":98298},{"$f":"SUBTOTAL(9,I13:I37)","v":32091},6112,3587,5019,2444]
["Q72","NHS England Yorkshire & Humber",14331,109745,0.13058453688095129,0.89281976135649987,5.3241225315749076E-2,9622,3173,536,287,476,237]
["Q73","NHS England Lancashire & Greater Manchester",16910,88675,0.19069636312376656,0.8776463630987581,6.5050266114725017E-2,11280,3561,723,467,633,246]
["Q74","NHS England Cumbria & North East",9763,80295,0.12158914004608008,0.92205264775171569,3.0216122093618764E-2,6935,2067,267,149,146,199]
["Q75","NHS England Cheshire & Merseyside",8195,46727,0.17538040105292443,0.89701037217815738,5.3569249542403906E-2,5769,1582,304,197,242,101]
["Q76","NHS England North Midlands",8006,51320,0.15600155884645361,0.87471896077941547,5.4459155633275046E-2,5380,1623,391,180,256,176]
["Q77","NHS England West Midlands",12410,87523,0.14179130057242095,0.84867042707493956,8.3078162771958092E-2,8075,2457,589,400,631,258]
["Q78","NHS England Central Midlands",8293,66431,0.12483629630744683,0.86132883154467621,7.1023754974074524E-2,5340,1803,414,243,346,147]
["Q79","NHS England East",9773,64290,0.15201431015710062,0.87230123810498317,6.497493093216003E-2,6513,2012,486,233,402,127]
["Q80","NHS England South West",3668,42911,8.5479247745333359E-2,0.91194111232279174,3.6259541984732822E-2,2580,765,112,59,74,78]
["Q81","NHS England South East",16448,84410,0.19485842909607867,0.86691391050583655,7.0342898832684825E-2,10767,3492,767,490,667,265]
["Q82","NHS England South Central",4563,37344,0.12218830334190231,0.90970852509314049,3.7475345167652857E-2,3331,820,175,65,106,66]
["Q70","NHS England Wessex",6226,36276,0.17162862498621678,0.89447478316736262,4.8827497590748475E-2,4348,1221,182,119,185,171]
["Q71","NHS England London",28965,182839,0.15841806179206844,0.89325047471085794,5.3616433626790957E-2,18358,7515,1166,698,855,373]

{"sheet":"Trusts","index":2,"n_rows":153,"n_cols":21,"rows_kept":153,"cut":false,"hidden":false,"merged":[[8,6,9,6],[8,7,9,7],[8,8,8,13],[8,14,8,20],[8,0,9,0],[8,1,9,1],[8,2,9,2],[8,3,9,3],[8,4,9,4],[8,5,9,5]]}
[]
[]
[null,null,"Show data for:                      "]
[]
[]
[null,"   Sort data by:           "]
[]
[]
["Region (Geo) Code","Trust Code","Trust Name","Total Responses","Total Eligible","Response Rate","Percentage Recommended","Percentage Not  Recommended","Breakdown of Responses",null,null,null,null,null,"Mode of Collection"]
[null,null,null,null,null,null,null,null,"Extremely Likely","Likely","Neither","Unlikely","Extremely Unlikely","Don't Know","SMS/Text / Smartphone App","Electronic tablet/kiosk at point of discharge","Paper / postcard at point of discharge","Paper survey sent to the patients home","Telephone survey once patient is home","Online survey once patient is home","Other"]
[null,null,"England",147551,978786,0.15074898905378703,0.88368767409234772,5.8325595895656418E-2,98298,32091,6112,3587,5019,2444,41235,6515,67734,2735,26135,2165,1032]
[null,null,"Selection (excluding suppressed data)",{"$f":"SUBTOTAL(9,D13:D1000)","v":147551},{"$f":"SUBTOTAL(9,E13:E1000)","v":978786},{"$f":"IFERROR(D12/E12, \"-\")","v":0.15074898905378703},{"$f":"IFERROR((I12+J12)/D12, \"-\")","v":0.88347079992680499},{"$f":"IFERROR((L12+M12)/D12, \"-\")","v":5.8305263942636784E-2},{"$f":"SUBTOTAL(9,I13:I1000)","v":98272},{"$f":"SUBTOTAL(9,J13:J1000)","v":32085},6109,3586,5017,2443,41235,6515,67730,2735,26135,2165,997]
["Q70","RBD","DORSET COUNTY HOSPITAL NHS FOUNDATION TRUST",547,2512,0.21775477707006369,0.8537477148,8.0438756900000005E-2,352,115,20,21,23,16,541,0,0,0,6,0,0]
["Q70","RN5","HAMPSHIRE HOSPITALS NHS FOUNDATION TRUST",1481,7971,0.18579851963367205,0.87508440239999996,5.4692775200000002E-2,1003,293,76,35,46,28,571,0,158,0,752,0,0]
["Q70","R1F","ISLE OF WIGHT NHS TRUST",465,3237,0.14365152919369786,0.94623655910000004,3.4408602199999999E-2,315,125,6,6,10,3,0,0,461,0,0,4,0]
["Q70","RD3","POOLE HOSPITAL NHS FOUNDATION TRUST",805,3034,0.26532630191166778,0.84844720500000004,8.9440993799999993E-2,508,175,29,27,45,21,620,0,185,0,0,0,0]
["Q70","RHU","PORTSMOUTH HOSPITALS NHS TRUST",1676,7391,0.22676227844675959,0.91408114559999998,1.849642E-2,1211,321,25,11,20,88,0,0,1671,0,0,5,0]
["Q70","RDZ","THE ROYAL BOURNEMOUTH AND CHRISTCHURCH HOSPITALS NHS FOUNDATION TRUST",434,5548,7.8226387887527032E-2,0.91244239630000001,6.9124424000000004E-2,336,60,7,5,25,1,0,0,434,0,0,0,0]
["Q70","RHM","UNIVERSITY HOSPITAL SOUTHAMPTON NHS FOUNDATION TRUST",818,6583,0.1242594561749962,0.92298288510000004,3.66748166E-2,623,132,19,14,16,14,0,0,818,0,0,0,0]
["Q71","RF4","BARKING, HAVERING AND REDBRIDGE UNIVERSITY HOSPITALS NHS TRUST",1701,10475,0.16238663484486873,0.85420340979999998,7.5837742499999999E-2,958,495,88,48,81,31,0,0,1701,0,0,0,0]
["Q71","R1H","BARTS HEALTH NHS TRUST",574,19680,2.9166666666666667E-2,0.93031358890000004,3.4843205600000003E-2,391,143,16,5,15,4,0,0,573,0,0,1,0]
["Q71","RQM","CHELSEA AND WESTMINSTER HOSPITAL NHS FOUNDATION TRUST",2282,10786,0.21157055442239942,0.8799298861,6.2664329500000004E-2,1457,551,107,65,78,24,1648,0,0,0,586,48,0]
["Q71","RJ6","CROYDON HEALTH SERVICES NHS TRUST",418,3777,0.11066984379136881,0.92822966510000005,2.8708134E-2,256,132,14,3,9,4,0,21,397,0,0,0,0]
["Q71","RVR","EPSOM AND ST HELIER UNIVERSITY HOSPITALS NHS TRUST",1214,9688,0.12530966143682906,0.92009884679999998,4.4481054399999997E-2,874,243,34,23,31,9,491,0,720,0,0,3,0]
["Q71","RJ1","GUY'S AND ST THOMAS' NHS FOUNDATION TRUST",1342,10489,0.1279435599199161,0.8576751118,6.6318927E-2,850,301,55,30,59,47,878,0,455,0,0,9,0]
["Q71","RQX","HOMERTON UNIVERSITY HOSPITAL NHS FOUNDATION TRUST",1094,8833,0.1238537303294464,0.9378427788,3.0164533800000001E-2,716,310,28,16,17,7,0,23,1066,0,0,5,0]
["Q71","RYJ","IMPERIAL COLLEGE HEALTHCARE NHS TRUST",2275,20184,0.11271304003170829,0.9068131868,3.2527472500000001E-2,1314,749,108,43,31,30,0,1181,1094,0,0,0,0]
["Q71","RJZ","KING'S COLLEGE HOSPITAL NHS FOUNDATION TRUST",2155,10333,0.20855511468111876,0.82412993040000004,9.4663573099999995E-2,1296,480,102,75,129,73,1252,0,454,0,0,449,0]
["Q71","RAX","KINGSTON HOSPITAL NHS FOUNDATION TRUST",436,5904,7.3848238482384823E-2,0.91055045869999995,2.29357798E-2,266,131,25,8,2,4,0,403,33,0,0,0,0]
["Q71","RJ2","LEWISHAM AND GREENWICH NHS TRUST",2100,8858,0.23707383156468728,0.95619047619999997,1.9047618999999998E-2,1572,436,40,21,19,12,0,0,2100,0,0,0,0]
["Q71","R1K","LONDON NORTH WEST HEALTHCARE NHS TRUST",989,4907,0.20154880782555534,0.91405460059999999,3.8422649099999998E-2,620,284,33,27,11,14,0,0,989,0,0,0,0]
["Q71","RP6","MOORFIELDS EYE HOSPITAL NHS FOUNDATION TRUST",2293,9367,0.24479555887690829,0.93894461399999996,1.65721762E-2,1706,447,46,16,22,56,0,0,2293,0,0,0,0]
["Q71","RAP","NORTH MIDDLESEX UNIVERSITY HOSPITAL NHS TRUST",461,11242,4.1006938267212238E-2,0.86550976140000002,6.7245119300000003E-2,170,229,25,20,11,6,0,456,0,0,0,5,0]
["Q71","RAL","ROYAL FREE LONDON NHS FOUNDATION TRUST",4516,9708,0.46518335393489907,0.86160318869999997,7.4623560699999994E-2,2327,1564,288,170,167,0,0,0,0,0,4516,0,0]
["Q71","RJ7","ST GEORGE'S UNIVERSITY HOSPITALS NHS FOUNDATION TRUST",1685,6238,0.27011862776530937,0.83679525219999995,0.103264095,1040,370,86,67,107,15,1557,128,0,0,0,0,0]
["Q71","RAS","THE HILLINGDON HOSPITALS NHS FOUNDATION TRUST",291,3779,7.7004498544588518E-2,0.94158075600000002,2.74914089E-2,210,64,7,2,6,2,0,11,279,0,0,1,0]
["Q71","RKE","THE WHITTINGTON HOSPITAL NHS TRUST",330,6274,5.2598023589416641E-2,0.89090909090000003,7.2727272699999998E-2,243,51,7,7,17,5,0,0,330,0,0,0,0]
["Q71","RRV","UNIVERSITY COLLEGE LONDON HOSPITALS NHS FOUNDATION TRUST",2150,9740,0.22073921971252566,0.94511627909999996,2.7441860500000002E-2,1592,440,41,36,23,18,0,0,1801,0,0,349,0]
["Q71","RFW","WEST MIDDLESEX UNIVERSITY HOSPITAL NHS TRUST",659,2577,0.25572370974000774,0.90288315630000004,5.4628224599999997E-2,500,95,16,16,20,12,248,0,263,0,148,0,0]
["Q72","RCF","AIREDALE NHS FOUNDATION TRUST",401,3481,0.11519678253375466,0.90024937660000004,3.9900249399999997E-2,270,91,18,8,8,6,6,13,382,0,0,0,0]
["Q72","RFF","BARNSLEY HOSPITAL NHS FOUNDATION TRUST",119,4601,2.5863942621169311E-2,0.70588235290000001,0.26890756300000002,71,13,3,7,25,0,0,0,119,0,0,0,0]
["Q72","RAE","BRADFORD TEACHING HOSPITALS NHS FOUNDATION TRUST",42,9083,4.6240228999229332E-3,0.59523809520000004,0.2619047619,16,9,6,5,6,0,39,0,3,0,0,0,0]
["Q72","RWY","CALDERDALE AND HUDDERSFIELD NHS FOUNDATION TRUST",835,9708,8.6011536876802644E-2,0.91137724549999999,5.0299401200000003E-2,592,169,30,8,34,2,0,0,835,0,0,0,0]
["Q72","RP5","DONCASTER AND BASSETLAW HOSPITALS NHS FOUNDATION TRUST",601,11823,5.0833121881079253E-2,0.85524126460000005,6.6555740399999994E-2,379,135,21,12,28,26,205,0,393,0,0,3,0]
["Q72","RCD","HARROGATE AND DISTRICT NHS FOUNDATION TRUST",401,3122,0.1284433055733504,0.89276807979999995,4.9875311700000001E-2,257,101,18,9,11,5,0,0,57,0,344,0,0]
["Q72","RWA","HULL AND EAST YORKSHIRE HOSPITALS NHS TRUST",418,7132,5.8609085810431859E-2,0.70334928230000004,0.18660287079999999,215,79,26,26,52,20,0,0,414,0,0,4,0]
["Q72","RR8","LEEDS TEACHING HOSPITALS NHS TRUST",2701,10399,0.25973651312626211,0.87226952980000005,5.8867086300000003E-2,1690,666,104,68,91,82,674,0,1633,0,391,3,0]
["Q72","RXF","MID YORKSHIRE HOSPITALS NHS TRUST",4645,15509,0.29950351408859371,0.95414424109999996,1.63616792E-2,3462,970,97,29,47,40,0,0,4644,0,0,1,0]
["Q72","RJL","NORTHERN LINCOLNSHIRE AND GOOLE NHS FOUNDATION TRUST",1064,9540,0.11153039832285115,0.8515037594,7.6127819499999999E-2,644,262,67,32,49,10,0,0,710,0,345,9,0]
["Q72","RCU","SHEFFIELD CHILDREN'S NHS FOUNDATION TRUST",62,4816,1.287375415282392E-2,0.8064516129,3.2258064500000003E-2,41,9,6,2,0,4,0,0,0,0,0,62,0]
["Q72","RHQ","SHEFFIELD TEACHING HOSPITALS NHS FOUNDATION TRUST",1736,8219,0.2112179097213773,0.85080645160000001,6.9124424000000004E-2,1126,351,105,51,69,34,874,0,226,0,636,0,0]
["Q72","RFR","THE ROTHERHAM NHS FOUNDATION TRUST",741,4838,0.15316246382802812,0.96221322539999998,2.4291498000000002E-2,519,194,5,7,11,5,0,734,5,0,0,0,2]
["Q72","RCB","YORK TEACHING HOSPITAL NHS FOUNDATION TRUST",565,7474,7.5595397377575591E-2,0.82123893810000004,0.1203539823,340,124,30,23,45,3,455,0,34,0,0,76,0]
["Q73","RXL","BLACKPOOL TEACHING HOSPITALS NHS FOUNDATION TRUST",1351,5749,0.23499739085058272,0.95188749070000001,1.7024426400000001E-2,1042,244,25,16,7,17,0,0,1318,0,33,0,0]
["Q73","RMC","BOLTON NHS FOUNDATION TRUST",1093,5582,0.19580795413830168,0.87465690760000003,6.8618481199999998E-2,751,205,43,36,39,19,729,0,0,0,364,0,0]
["Q73","RW3","CENTRAL MANCHESTER UNIVERSITY HOSPITALS NHS FOUNDATION TRUST",2121,21312,9.95213963963964E-2,0.90004714760000004,5.3276756199999997E-2,1575,334,71,46,67,28,591,241,0,1280,0,9,0]
["Q73","RXR","EAST LANCASHIRE HOSPITALS NHS TRUST",1437,5630,0.25523978685612786,0.8288100209,0.10925539319999999,765,426,69,59,98,20,705,0,0,0,248,484,0]
["Q73","RXN","LANCASHIRE TEACHING HOSPITALS NHS FOUNDATION TRUST",1420,6625,0.21433962264150944,0.84577464790000001,8.4507042300000002E-2,915,286,81,53,67,18,900,0,133,0,387,0,0]
["Q73","RW6","PENNINE ACUTE HOSPITALS NHS TRUST",4201,16525,0.25422087745839639,0.85408236130000004,7.3791954300000004E-2,2626,962,216,144,166,87,1402,0,790,0,2009,0,0]
["Q73","RM3","SALFORD ROYAL NHS FOUNDATION TRUST",973,4185,0.23249701314217444,0.8920863309,5.1387461500000002E-2,725,143,43,19,31,12,693,0,0,0,280,0,0]
["Q73","RWJ","STOCKPORT NHS FOUNDATION TRUST",1173,5459,0.21487451914270012,0.87723785170000002,6.3086104000000004E-2,816,213,57,24,50,13,670,0,10,0,493,0,0]
["Q73","RMP","TAMESIDE HOSPITAL NHS FOUNDATION TRUST",1390,5439,0.2555616841331127,0.85323741009999998,8.2014388499999993E-2,768,418,70,47,67,20,592,54,742,0,0,2,0]
["Q73","RM2","UNIVERSITY HOSPITAL OF SOUTH MANCHESTER NHS FOUNDATION TRUST",622,5685,0.10941072999120492,0.86816720260000002,7.7170418000000005E-2,435,105,26,17,31,8,384,28,207,0,0,3,0]
["Q73","RRF","WRIGHTINGTON, WIGAN AND LEIGH NHS FOUNDATION TRUST",1129,6484,0.17412091301665639,0.96279893709999997,1.41718335E-2,862,225,22,6,10,4,0,0,1127,0,0,2,0]
["Q74","RLN","CITY HOSPITALS SUNDERLAND NHS FOUNDATION TRUST",1746,8454,0.20652945351312987,0.97365406639999996,1.3745704500000001E-2,1382,318,14,11,13,8,0,0,1741,0,0,5,0]
["Q74","RXP","COUNTY DURHAM AND DARLINGTON NHS FOUNDATION TRUST",2742,18623,0.14723728722547388,0.90517870170000003,2.1881838099999999E-2,1782,700,73,28,32,127,0,0,2732,0,0,10,0]
["Q74","RR7","GATESHEAD HEALTH NHS FOUNDATION TRUST",1920,4980,0.38554216867469882,0.92656249999999996,3.2812500000000001E-2,1381,398,69,39,24,9,0,38,1882,0,0,0,0]
["Q74","RNL","NORTH CUMBRIA UNIVERSITY HOSPITALS NHS TRUST",68,4706,1.4449638759031025E-2,0.83823529409999997,0.1617647059,36,21,0,8,3,0,0,0,0,0,0,0,68]
["Q74","RVW","NORTH TEES AND HARTLEPOOL NHS FOUNDATION TRUST",182,3875,4.6967741935483871E-2,0.9230769231,5.4945054899999998E-2,118,50,2,6,4,2,0,0,176,0,0,6,0]
["Q74","RTF","NORTHUMBRIA HEALTHCARE NHS FOUNDATION TRUST",101,10652,9.4817874577544127E-3,0.94059405939999996,4.9504950499999999E-2,78,17,1,4,1,0,0,0,42,59,0,0,0]
["Q74","RTR","SOUTH TEES HOSPITALS NHS FOUNDATION TRUST",1373,9401,0.14604829273481545,0.89220684630000002,3.7144938099999997E-2,982,243,68,23,28,29,192,0,0,0,1174,7,0]
["Q74","RE9","SOUTH TYNESIDE NHS FOUNDATION TRUST",339,2779,0.12198632601655272,0.94690265490000003,2.3598820100000001E-2,255,66,4,4,4,6,0,0,339,0,0,0,0]
["Q74","RTD","THE NEWCASTLE UPON TYNE HOSPITALS NHS FOUNDATION TRUST",166,12687,1.3084259478206038E-2,0.87951807230000001,7.8313252999999999E-2,105,41,6,7,6,1,166,0,0,0,0,0,0]
["Q74","RTX","UNIVERSITY HOSPITALS OF MORECAMBE BAY NHS FOUNDATION TRUST",1126,4138,0.2721121314644756,0.91385435169999996,4.4404973399999999E-2,816,213,30,19,31,17,583,0,143,0,399,1,0]
["Q75","REM","AINTREE UNIVERSITY HOSPITAL NHS FOUNDATION TRUST",1033,3779,0.27335273881979361,0.8722168441,6.5827686400000002E-2,681,220,41,33,35,23,589,0,12,0,432,0,0]
["Q75","RJR","COUNTESS OF CHESTER HOSPITAL NHS FOUNDATION TRUST",486,3827,0.12699242226286908,0.80658436209999995,0.14197530859999999,311,81,21,24,45,4,407,0,78,0,0,1,0]
["Q75","RJN","EAST CHESHIRE NHS TRUST",939,3397,0.27642037091551369,0.89030883920000004,5.7507987199999999E-2,676,160,40,21,33,9,638,0,2,0,299,0,0]
["Q75","REP","LIVERPOOL WOMEN'S NHS FOUNDATION TRUST",288,905,0.318232044198895,0.99305555560000003,6.9444444000000003E-3,260,26,0,0,2,0,0,0,287,0,0,1,0]
["Q75","RBT","MID CHESHIRE HOSPITALS NHS FOUNDATION TRUST",932,5377,0.17333085363585643,0.94849785409999998,2.3605150200000001E-2,701,183,18,8,14,8,0,100,832,0,0,0,0]
["Q75","RQ6","ROYAL LIVERPOOL AND BROADGREEN UNIVERSITY HOSPITALS NHS TRUST",1313,6062,0.2165951831078852,0.85529322159999999,7.8446306199999996E-2,868,255,63,40,63,24,852,0,0,0,460,1,0]
["Q75","RVY","SOUTHPORT AND ORMSKIRK HOSPITAL NHS TRUST",579,6464,8.9573019801980194E-2,0.89810017269999998,7.0811744400000001E-2,435,85,14,14,27,4,0,46,533,0,0,0,0]
["Q75","RBN","ST HELENS AND KNOWSLEY HOSPITALS NHS TRUST",1226,5251,0.23347933726909159,0.92903752039999998,2.7732463299999999E-2,828,311,53,20,14,0,0,0,48,0,1178,0,0]
["Q75","RWW","WARRINGTON AND HALTON HOSPITALS NHS FOUNDATION TRUST",1042,6470,0.16105100463678515,0.88195777350000004,4.22264875E-2,683,236,51,35,9,28,0,173,868,0,0,1,0]
["Q75","RBL","WIRRAL UNIVERSITY TEACHING HOSPITAL NHS FOUNDATION TRUST",357,5195,6.8719923002887387E-2,0.98319327729999995,5.6022409000000004E-3,326,25,3,2,0,1,0,0,357,0,0,0,0]
["Q76","RJF","BURTON HOSPITALS NHS FOUNDATION TRUST",97,10021,9.6796726873565504E-3,0.96907216490000003,2.0618556699999999E-2,86,8,1,0,2,0,0,0,83,0,0,14,0]
["Q76","RFS","CHESTERFIELD ROYAL HOSPITAL NHS FOUNDATION TRUST",737,4299,0.17143521749244009,0.87516960649999997,7.0556309400000003E-2,541,104,26,19,33,14,401,0,336,0,0,0,0]
["Q76","RTG","DERBY TEACHING HOSPITALS NHS FOUNDATION TRUST",1037,5355,0.19365079365079366,0.81870781100000001,8.1967213100000005E-2,620,229,69,35,50,34,681,201,0,0,155,0,0]
["Q76","RX1","NOTTINGHAM UNIVERSITY HOSPITALS NHS TRUST",2618,10103,0.25913095120261309,0.94194041250000005,2.10084034E-2,2018,448,61,20,35,36,0,0,2618,0,0,0,0]
["Q76","RK5","SHERWOOD FOREST HOSPITALS NHS FOUNDATION TRUST",914,7645,0.11955526487900589,0.8282275711,5.2516411399999997E-2,454,303,83,24,24,26,0,0,910,0,0,4,0]
["Q76","RXW","SHREWSBURY AND TELFORD HOSPITAL NHS TRUST",1463,6300,0.23222222222222222,0.94736842109999997,1.0252905E-2,1028,358,38,7,8,24,0,0,1462,0,0,1,0]
["Q76","RJE","UNIVERSITY HOSPITALS OF NORTH MIDLANDS NHS TRUST",1140,7597,0.15005923390812162,0.70701754390000005,0.1570175439,633,173,113,75,104,42,0,0,111,0,1029,0,0]
["Q77","RQ3","BIRMINGHAM CHILDREN'S HOSPITAL NHS FOUNDATION TRUST",239,4239,5.638122198631753E-2,0.91631799160000005,2.51046025E-2,163,56,7,1,5,7,0,0,239,0,0,0,0]
["Q77","RLT","GEORGE ELIOT HOSPITAL NHS TRUST",818,3799,0.21531982100552777,0.80806845969999996,0.1173594132,454,207,39,39,57,22,804,0,14,0,0,0,0]
["Q77","RR1","HEART OF ENGLAND NHS FOUNDATION TRUST",2405,16110,0.14928615766604594,0.78295218300000002,0.1155925156,1338,545,172,134,144,72,1101,0,0,0,1304,0,0]
["Q77","RXK","SANDWELL AND WEST BIRMINGHAM HOSPITALS NHS TRUST",899,14996,5.9949319818618299E-2,0.80088987759999997,0.14126807559999999,557,163,38,39,88,14,767,0,132,0,0,0,0]
["Q77","RJC","SOUTH WARWICKSHIRE NHS FOUNDATION TRUST",783,2256,0.34707446808510639,0.9514687101,8.9399744999999996E-3,624,121,16,2,5,15,0,0,781,0,0,2,0]
["Q77","RNA","THE DUDLEY GROUP NHS FOUNDATION TRUST",469,3994,0.11742613920881322,0.92324093819999997,4.2643923200000003E-2,311,122,12,7,13,4,0,0,469,0,0,0,0]
["Q77","RL4","THE ROYAL WOLVERHAMPTON NHS TRUST",1562,6468,0.24149659863945577,0.81177976949999997,9.6670934700000002E-2,968,300,103,64,87,40,744,0,54,0,764,0,0]
["Q77","RRK","UNIVERSITY HOSPITALS BIRMINGHAM NHS FOUNDATION TRUST",1278,6490,0.19691833590138674,0.86384976530000002,7.5899843499999994E-2,917,187,56,35,62,21,974,0,304,0,0,0,0]
["Q77","RKB","UNIVERSITY HOSPITALS COVENTRY AND WARWICKSHIRE NHS TRUST",1621,11884,0.13640188488724336,0.8346699568,0.1030228254,1042,311,75,51,116,26,1513,0,66,0,0,42,0]
["Q77","RBK","WALSALL HEALTHCARE NHS TRUST",150,4150,3.614457831325301E-2,0.94,1.33333333E-2,101,40,6,1,1,1,0,0,150,0,0,0,0]
["Q77","RWP","WORCESTERSHIRE ACUTE HOSPITALS NHS TRUST",1881,9953,0.18898824475032652,0.95002658159999998,1.4354067E-2,1431,356,52,14,13,15,0,0,1881,0,0,0,0]
["Q77","RLQ","WYE VALLEY NHS TRUST",305,3184,9.5791457286432166E-2,0.71475409840000004,0.17377049180000001,169,49,13,13,40,21,0,103,202,0,0,0,0]
["Q78","RC1","BEDFORD HOSPITAL NHS TRUST",669,3441,0.1944202266782912,0.83707025410000002,9.7159940200000003E-2,396,164,34,24,41,10,424,0,0,1,244,0,0]
["Q78","RWH","EAST AND NORTH HERTFORDSHIRE NHS TRUST",1487,10514,0.14143047365417538,0.80766644249999997,0.11566913249999999,884,317,85,72,100,29,913,0,137,0,437,0,0]
["Q78","RNQ","KETTERING GENERAL HOSPITAL NHS FOUNDATION TRUST",196,3707,5.2872943080658215E-2,0.91836734689999999,2.5510204099999999E-2,120,60,11,3,2,0,0,0,196,0,0,0,0]
["Q78","RC9","LUTON AND DUNSTABLE UNIVERSITY HOSPITAL NHS FOUNDATION TRUST",372,6014,6.1855670103092786E-2,0.94623655910000004,2.15053763E-2,325,27,7,4,4,5,0,0,342,0,30,0,0]
["Q78","RD8","MILTON KEYNES HOSPITAL NHS FOUNDATION TRUST",199,5161,3.8558418911063749E-2,0.82914572860000002,8.0402010100000004E-2,126,39,13,3,13,5,0,82,115,0,0,2,0]
["Q78","RNS","NORTHAMPTON GENERAL HOSPITAL NHS TRUST",1621,10358,0.15649739331917359,0.83590376310000003,8.38988279E-2,994,361,93,49,87,37,754,0,0,0,867,0,0]
["Q78","RWD","UNITED LINCOLNSHIRE HOSPITALS NHS TRUST",1990,8052,0.24714356681569796,0.83517587940000004,7.7889447200000003E-2,1199,463,130,73,82,43,1166,0,0,0,824,0,0]
["Q78","RWE","UNIVERSITY HOSPITALS OF LEICESTER NHS TRUST",1310,9831,0.13325195809175058,0.96030534349999996,1.0687022900000001E-2,989,269,27,11,3,11,0,383,926,0,0,1,0]
["Q78","RWG","WEST HERTFORDSHIRE HOSPITALS NHS TRUST",449,9353,4.8005987383727147E-2,0.91314031179999999,4.0089086900000001E-2,307,103,14,4,14,7,0,0,447,0,0,2,0]
["Q79","RDD","BASILDON AND THURROCK UNIVERSITY HOSPITALS NHS FOUNDATION TRUST",1668,7827,0.21310847067842084,0.785971223,0.12649880099999999,916,395,118,71,140,28,1638,0,30,0,0,0,0]
["Q79","RGT","CAMBRIDGE UNIVERSITY HOSPITALS NHS FOUNDATION TRUST",977,5890,0.16587436332767402,0.911975435,3.4800409400000003E-2,693,198,45,16,18,7,0,0,13,964,0,0,0]
["Q79","RDE","COLCHESTER HOSPITAL UNIVERSITY NHS FOUNDATION TRUST",576,3779,0.15242127546970097,0.82465277780000001,0.11111111110000001,386,89,33,18,46,4,576,0,0,0,0,0,0]
["Q79","RQQ","HINCHINGBROOKE HEALTH CARE NHS TRUST",556,2348,0.23679727427597955,0.95323741009999996,1.07913669E-2,376,154,18,6,0,2,0,0,556,0,0,0,0]
["Q79","RGQ","IPSWICH HOSPITAL NHS TRUST",225,5574,4.0365984930032295E-2,0.92,2.2222222199999999E-2,161,46,10,2,3,3,0,13,46,0,0,70,96]
["Q79","RGP","JAMES PAGET UNIVERSITY HOSPITALS NHS FOUNDATION TRUST",806,5029,0.16027043149731557,0.91439205960000003,3.9702233300000001E-2,560,177,28,11,21,9,0,0,806,0,0,0,0]
["Q79","RQ8","MID ESSEX HOSPITAL SERVICES NHS TRUST",924,5304,0.17420814479638008,0.7586580087,0.12770562769999999,564,137,87,47,71,18,0,0,4,0,920,0,0]
["Q79","RM1","NORFOLK AND NORWICH UNIVERSITY HOSPITALS NHS FOUNDATION TRUST",576,7290,7.9012345679012344E-2,0.92708333330000003,2.95138889E-2,444,90,13,5,12,12,0,0,575,0,1,0,0]
["Q79","RGN","PETERBOROUGH AND STAMFORD HOSPITALS NHS FOUNDATION TRUST",391,5451,7.1729957805907171E-2,0.91560102300000001,5.1150895100000003E-2,292,66,8,10,10,5,0,0,74,0,0,317,0]
["Q79","RAJ","SOUTHEND UNIVERSITY HOSPITAL NHS FOUNDATION TRUST",870,4746,0.18331226295828065,0.86896551720000004,8.1609195400000001E-2,553,203,32,27,44,11,399,0,63,0,408,0,0]
["Q79","RQW","THE PRINCESS ALEXANDRA HOSPITAL NHS TRUST",830,4723,0.17573576116874867,0.9337349398,1.44578313E-2,675,100,40,1,11,3,0,0,0,0,0,0,830]
["Q79","RCX","THE QUEEN ELIZABETH HOSPITAL, KING'S LYNN, NHS FOUNDATION TRUST",638,3214,0.1985065339141257,0.87774294669999997,5.64263323E-2,382,178,18,16,20,24,0,0,636,0,0,2,0]
["Q79","RGR","WEST SUFFOLK NHS FOUNDATION TRUST",736,3115,0.23627608346709469,0.9375,1.2228260899999999E-2,511,179,36,3,6,1,3,37,696,0,0,0,0]
["Q80","RVJ","NORTH BRISTOL NHS TRUST",322,4469,7.205191317968225E-2,0.93478260869999996,2.48447205E-2,248,53,10,4,4,3,0,0,322,0,0,0,0]
["Q80","RBZ","NORTHERN DEVON HEALTHCARE NHS TRUST",76,2687,2.828433196873837E-2,0.92105263159999995,2.6315789499999999E-2,55,15,2,1,1,2,0,14,62,0,0,0,0]
["Q80","RK9","PLYMOUTH HOSPITALS NHS TRUST",1130,4752,0.23779461279461278,0.96814159290000001,5.3097344999999997E-3,793,301,25,3,3,5,0,1044,86,0,0,0,0]
["Q80","REF","ROYAL CORNWALL HOSPITALS NHS TRUST",35,2222,1.5751575157515751E-2,0.88571428569999999,2.85714286E-2,"*","*","*","*","*","*","*","*","*","*","*","*","*"]
["Q80","RH8","ROYAL DEVON AND EXETER NHS FOUNDATION TRUST",4,6276,6.3734862970044612E-4,"*","*","*","*","*","*","*","*","*","*","*","*","*","*","*"]
["Q80","RA9","SOUTH DEVON HEALTHCARE NHS FOUNDATION TRUST",224,4267,5.249589875790954E-2,0.95982142859999997,1.3392857100000001E-2,154,61,6,2,1,0,0,0,224,0,0,0,0]
["Q80","RBA","TAUNTON AND SOMERSET NHS FOUNDATION TRUST",515,3314,0.15540132770066384,0.96504854370000004,1.55339806E-2,355,142,7,5,3,3,0,55,460,0,0,0,0]
["Q80","RA7","UNIVERSITY HOSPITALS BRISTOL NHS FOUNDATION TRUST",560,8049,6.9573860106845575E-2,0.70357142859999999,0.15178571430000001,270,124,43,32,53,38,0,387,173,0,0,0,0]
["Q80","RA3","WESTON AREA HEALTH NHS TRUST",672,4238,0.15856536101934876,0.9255952381,1.6369047599999999E-2,576,46,13,8,3,26,0,0,672,0,0,0,0]
["Q80","RA4","YEOVIL DISTRICT HOSPITAL NHS FOUNDATION TRUST",130,2637,4.9298445202882062E-2,0.9230769231,5.3846153799999998E-2,103,17,3,3,4,0,13,0,117,0,0,0,0]
["Q81","RTK","ASHFORD AND ST PETER'S HOSPITALS NHS FOUNDATION TRUST",1135,4263,0.26624442880600518,0.88634361230000003,6.0792951499999998E-2,732,274,48,30,39,12,646,0,16,0,472,1,0]
["Q81","RXH","BRIGHTON AND SUSSEX UNIVERSITY HOSPITALS NHS TRUST",3226,11503,0.28044857863166128,0.88561686299999998,5.9826410400000002E-2,2331,526,131,80,113,45,1519,0,782,0,925,0,0]
["Q81","RN7","DARTFORD AND GRAVESHAM NHS TRUST",197,3944,4.9949290060851928E-2,0.98477157360000001,5.0761421000000001E-3,173,21,2,0,1,0,0,0,197,0,0,0,0]
["Q81","RVV","EAST KENT HOSPITALS UNIVERSITY NHS FOUNDATION TRUST",3423,13140,0.26050228310502282,0.80397312300000001,0.1095530237,2029,723,230,158,217,66,2203,0,1,0,1219,0,0]
["Q81","RXC","EAST SUSSEX HEALTHCARE NHS TRUST",963,5693,0.16915510275777271,0.89096573209999996,3.53063344E-2,563,295,42,16,18,29,0,6,955,0,0,2,0]
["Q81","RDU","FRIMLEY HEALTH NHS FOUNDATION TRUST",2515,13025,0.19309021113243763,0.88469184889999997,5.60636183E-2,1589,636,115,65,76,34,908,0,1606,0,0,1,0]
["Q81","RWF","MAIDSTONE AND TUNBRIDGE WELLS NHS TRUST",710,8960,7.9241071428571425E-2,0.91267605630000004,1.83098592E-2,482,166,24,4,9,25,0,0,704,0,0,6,0]
["Q81","RPA","MEDWAY NHS FOUNDATION TRUST",1140,5629,0.20252265055960206,0.74649122810000001,0.1570175439,552,299,88,71,108,22,566,0,0,0,574,0,0]
["Q81","RA2","ROYAL SURREY COUNTY HOSPITAL NHS FOUNDATION TRUST",907,4095,0.22148962148962148,0.90407938259999998,4.8511576600000002E-2,651,169,36,24,20,7,611,0,20,0,276,0,0]
["Q81","RTP","SURREY AND SUSSEX HEALTHCARE NHS TRUST",585,5185,0.11282545805207329,0.93675213680000002,3.4188034200000002E-2,429,119,14,10,10,3,0,0,481,0,0,104,0]
["Q81","RYR","WESTERN SUSSEX HOSPITALS NHS FOUNDATION TRUST",1647,8973,0.18355065195586762,0.91074681239999999,5.3430479699999998E-2,1236,264,37,32,56,22,679,0,962,0,0,6,0]
["Q82","RXQ","BUCKINGHAMSHIRE HEALTHCARE NHS TRUST",540,4697,0.11496700021290185,0.95740740739999997,1.6666666699999999E-2,407,110,13,3,6,1,0,540,0,0,0,0,0]
["Q82","RTE","GLOUCESTERSHIRE HOSPITALS NHS FOUNDATION TRUST",54,5688,9.4936708860759497E-3,0.81481481479999995,0.12962962959999999,36,8,2,2,5,1,0,0,52,0,0,2,0]
["Q82","RN3","GREAT WESTERN HOSPITALS NHS FOUNDATION TRUST",814,8578,9.4893914665423171E-2,0.93980343980000003,2.33415233E-2,611,154,13,9,10,17,0,0,810,0,0,4,0]
["Q82","RTH","OXFORD UNIVERSITY HOSPITALS NHS TRUST",896,4723,0.18970993012915519,0.84375,6.6964285700000001E-2,567,189,65,23,37,15,535,0,155,0,206,0,0]
["Q82","RHW","ROYAL BERKSHIRE NHS FOUNDATION TRUST",977,6148,0.15891346779440468,0.87308085980000005,6.24360287E-2,667,186,58,22,39,5,539,0,435,0,0,3,0]
["Q82","RD1","ROYAL UNITED HOSPITALS BATH NHS FOUNDATION TRUST",844,4392,0.19216757741347906,0.95971563979999996,8.2938388999999994E-3,703,107,17,2,5,10,0,0,835,0,0,8,1]
["Q82","RNZ","SALISBURY NHS FOUNDATION TRUST",438,3118,0.14047466324567029,0.92694063930000004,1.82648402E-2,340,66,7,4,4,17,6,0,0,431,0,1,0]

{"sheet":"Sites","index":3,"n_rows":246,"n_cols":16,"rows_kept":246,"cut":false,"hidden":false,"merged":[[8,6,9,6],[8,7,9,7],[8,8,9,8],[8,9,9,9],[8,10,8,15],[8,0,9,0],[8,1,9,1],[8,2,9,2],[8,3,9,3],[8,4,9,4],[8,5,9,5]]}
[]
[]
[null,null,null,"Show data for:                                       "]
[]
[]
[null,"   Sort data by:           "]
[]
[]
["Region (Geo) Code","Trust Code","Trust Name","Site Code","Site Name","Total Responses","Total Eligible","Response Rate","Percentage Recommended","Percentage Not  Recommended","Breakdown of Responses"]
[null,null,null,null,null,null,null,null,null,null,"Extremely Likely","Likely","Neither","Unlikely","Extremely Unlikely","Don't Know"]
[null,null,null,null,"England",147551,978786,0.15074898905378703,0.88368767409234772,5.8325595895656418E-2,98298,32091,6112,3587,5019,2444]
[null,null,null,null,"Selection (excluding suppressed data)",{"$f":"SUBTOTAL(9,F13:F1000)","v":147551},{"$f":"SUBTOTAL(9,G13:G1000)","v":978786},{"$f":"IFERROR(F12/G12, \"-\")","v":0.15074898905378703},{"$f":"IFERROR((K12+L12)/F12, \"-\")","v":0.87749320573903256},{"$f":"IFERROR((N12+O12)/F12, \"-\")","v":5.827137735427073E-2},{"$f":"SUBTOTAL(9,K13:K1000)","v":97505},{"$f":"SUBTOTAL(9,L13:L1000)","v":31970},6100,3584,5014,2442]
["Q70","RBD","DORSET COUNTY HOSPITAL NHS FOUNDATION TRUST","RBD01","Dorset County Hospital - RBD01",547,2512,0.21775477707006369,0.8537477148,8.0438756900000005E-2,352,115,20,21,23,16]
["Q70","RN5","HAMPSHIRE HOSPITALS NHS FOUNDATION TRUST","RN542","Andover War Memorial Hospital - RN542",0,1621,0,"NA","NA",0,0,0,0,0,0]
["Q70","RN5","HAMPSHIRE HOSPITALS NHS FOUNDATION TRUST","RN506","Basingstoke and North Hampshire Hospital - RN506",851,3447,0.24688134609805629,0.88131609870000005,5.2878965899999998E-2,583,167,43,22,23,13]
["Q70","RN5","HAMPSHIRE HOSPITALS NHS FOUNDATION TRUST","RN541","Royal Hampshire County Hospital - RN541",630,2903,0.21701687909059594,0.86666666670000003,5.71428571E-2,420,126,33,13,23,15]
["Q70","R1F","ISLE OF WIGHT NHS TRUST","R1F01","St Mary's Hospital - R1F01",465,3237,0.14365152919369786,0.94623655910000004,3.4408602199999999E-2,315,125,6,6,10,3]
["Q70","RD3","POOLE HOSPITAL NHS FOUNDATION TRUST","RD304","Poole General Hospital NHS Trust HQ - RD304",805,3034,0.26532630191166778,0.84844720500000004,8.9440993799999993E-2,508,175,29,27,45,21]
["Q70","RHU","PORTSMOUTH HOSPITALS NHS TRUST","RHU03","Queen Alexandra Hospital - RHU03",1360,5992,0.22696929238985314,0.89926470589999996,2.05882353E-2,934,289,24,10,18,85]
["Q70","RHU","PORTSMOUTH HOSPITALS NHS TRUST","RHUXXX","WiC_MIU - RHUXXX",316,1399,0.22587562544674766,0.97784810129999999,9.4936709000000008E-3,277,32,1,1,2,3]
["Q70","RDZ","THE ROYAL BOURNEMOUTH AND CHRISTCHURCH HOSPITALS NHS FOUNDATION TRUST","RDZ20","Royal Bournemouth General Hospital - RDZ20",434,5548,7.8226387887527032E-2,0.91244239630000001,6.9124424000000004E-2,336,60,7,5,25,1]
["Q70","RHM","UNIVERSITY HOSPITAL SOUTHAMPTON NHS FOUNDATION TRUST","RHM01","Southampton General Hospital - RHM01",818,6583,0.1242594561749962,0.92298288510000004,3.66748166E-2,623,132,19,14,16,14]
["Q71","RF4","BARKING, HAVERING AND REDBRIDGE UNIVERSITY HOSPITALS NHS TRUST","RF4DG","King George Hospital - RF4DG",452,3157,0.14317389927146024,0.91814159289999997,4.6460176999999998E-2,326,89,13,6,15,3]
["Q71","RF4","BARKING, HAVERING AND REDBRIDGE UNIVERSITY HOSPITALS NHS TRUST","RF4QH","Queen's Hospital - RF4QH",1249,7318,0.17067504782727522,0.83106485190000001,8.6469175300000006E-2,632,406,75,42,66,28]
["Q71","R1H","BARTS HEALTH NHS TRUST","R1HNH","Newham General Hospital - R1HNH",54,3427,1.5757222060110883E-2,0.83333333330000003,7.4074074099999998E-2,29,16,3,2,2,2]
["Q71","R1H","BARTS HEALTH NHS TRUST","R1HM0","St Bartholomew's Hospital - R1HM0",26,626,4.1533546325878593E-2,0.9615384615,3.8461538500000003E-2,20,5,0,0,1,0]
["Q71","R1H","BARTS HEALTH NHS TRUST","R1H12","The Royal London Hospital - R1H12",255,9203,2.7708355970879062E-2,0.92941176469999998,4.3137254899999998E-2,176,61,6,2,9,1]
["Q71","R1H","BARTS HEALTH NHS TRUST","R1HKH","Whipps Cross University Hospital - R1HKH",239,6424,3.7204234122042344E-2,0.94979079499999997,1.67364017E-2,166,61,7,1,3,1]
["Q71","RQM","CHELSEA AND WESTMINSTER HOSPITAL NHS FOUNDATION TRUST","RQM01","Chelsea and Westminster Hospital - RQM01",429,2155,0.19907192575406032,0.93706293709999999,4.6620046599999999E-2,321,81,6,6,14,1]
["Q71","RQM","CHELSEA AND WESTMINSTER HOSPITAL NHS FOUNDATION TRUST","RQMXXX","WiC_MIU - RQMXXX",1853,8631,0.21469122928976944,0.8667026444,6.63788451E-2,1136,470,101,59,64,23]
["Q71","RJ6","CROYDON HEALTH SERVICES NHS TRUST","RJ611","Mayday University Hospital - RJ611",418,3777,0.11066984379136881,0.92822966510000005,2.8708134E-2,256,132,14,3,9,4]
["Q71","RVR","EPSOM AND ST HELIER UNIVERSITY HOSPITALS NHS TRUST","RVR50","Epsom Hospital - RVR50",523,3855,0.13566796368352788,0.92543021029999994,4.0152963700000002E-2,375,109,16,10,11,2]
["Q71","RVR","EPSOM AND ST HELIER UNIVERSITY HOSPITALS NHS TRUST","RVR05","St Helier Hospital - RVR05",627,5336,0.11750374812593703,0.91068580539999999,5.1036682600000001E-2,451,120,17,12,20,7]
["Q71","RVR","EPSOM AND ST HELIER UNIVERSITY HOSPITALS NHS TRUST","RVR06","Sutton Hospital - RVR06",64,497,0.12877263581488935,0.96875,1.5625E-2,48,14,1,1,0,0]
["Q71","RJ1","GUY'S AND ST THOMAS' NHS FOUNDATION TRUST","RJ122","St Thomas' Hospital - RJ122",1095,7818,0.14006139677666923,0.84840182649999996,6.3013698600000001E-2,678,251,51,23,46,46]
["Q71","RJ1","GUY'S AND ST THOMAS' NHS FOUNDATION TRUST","RJ1XXX","WiC_MIU - RJ1XXX",247,2671,9.2474728566080119E-2,0.89878542510000003,8.0971659900000006E-2,172,50,4,7,13,1]
["Q71","RQX","HOMERTON UNIVERSITY HOSPITAL NHS FOUNDATION TRUST","RQXM1","Homerton University Hospital - RQXM1",1094,8833,0.1238537303294464,0.9378427788,3.0164533800000001E-2,716,310,28,16,17,7]
["Q71","RYJ","IMPERIAL COLLEGE HEALTHCARE NHS TRUST","RYJ02","Charing Cross Hospital - RYJ02",320,1599,0.20012507817385866,0.95,0,156,148,13,0,0,3]
["Q71","RYJ","IMPERIAL COLLEGE HEALTHCARE NHS TRUST","RYJ01","St Mary's Hospital (HQ) - RYJ01",592,4438,0.13339342045966651,0.87837837839999999,6.0810810799999997E-2,348,172,30,15,21,6]
["Q71","RYJ","IMPERIAL COLLEGE HEALTHCARE NHS TRUST","RYJ07","Western Eye Hospital - RYJ07",433,3853,0.11237996366467687,0.86143187070000005,5.7736720599999999E-2,256,117,23,22,3,12]
["Q71","RYJ","IMPERIAL COLLEGE HEALTHCARE NHS TRUST","RYJXXX","WiC_MIU - RYJXXX",930,10294,9.0343889644453085E-2,0.93118279569999995,1.39784946E-2,554,312,42,6,7,9]
["Q71","RJZ","KING'S COLLEGE HOSPITAL NHS FOUNDATION TRUST","RJZ33","Kings College Dental Hospital - RJZ33",269,1431,0.18798043326345212,0.91449814129999996,5.5762081800000002E-2,191,55,6,7,8,2]
["Q71","RJZ","KING'S COLLEGE HOSPITAL NHS FOUNDATION TRUST","RJZ01","King's College Hospital (Denmark Hill) - RJZ01",1327,6688,0.19841507177033493,0.79653353429999996,0.10851544840000001,754,303,70,49,95,56]
["Q71","RJZ","KING'S COLLEGE HOSPITAL NHS FOUNDATION TRUST","RJZ30","Princess Royal University Hospital - RJZ30",559,2214,0.25248419150858176,0.8461538462,8.0500894500000003E-2,351,122,26,19,26,15]
["Q71","RAX","KINGSTON HOSPITAL NHS FOUNDATION TRUST","RAX01","Kingston Hospital - RAX01",436,5904,7.3848238482384823E-2,0.91055045869999995,2.29357798E-2,266,131,25,8,2,4]
["Q71","RJ2","LEWISHAM AND GREENWICH NHS TRUST","RJ231","Queen Elizabeth Hospital - RJ231",1267,3560,0.35589887640449436,0.96053670089999998,1.9731649600000001E-2,940,277,19,13,12,6]
["Q71","RJ2","LEWISHAM AND GREENWICH NHS TRUST","RJ224","University Hospital Lewisham - RJ224",833,5298,0.15722914307285768,0.94957983189999995,1.8007202900000002E-2,632,159,21,8,7,6]
["Q71","R1K","LONDON NORTH WEST HEALTHCARE NHS TRUST","R1K04","Ealing Hospital - R1K04",398,1155,0.34458874458874461,0.93216080400000001,2.0100502499999999E-2,263,108,14,8,0,5]
["Q71","R1K","LONDON NORTH WEST HEALTHCARE NHS TRUST","R1K01","Northwick Park Hospital - R1K01",591,3752,0.15751599147121534,0.90186125210000001,5.0761421299999998E-2,357,176,19,19,11,9]
["Q71","RP6","MOORFIELDS EYE HOSPITAL NHS FOUNDATION TRUST","RP601","Moorfields Eye Hospital (City Road) - RP601",2293,9367,0.24479555887690829,0.93894461399999996,1.65721762E-2,1706,447,46,16,22,56]
["Q71","RAP","NORTH MIDDLESEX UNIVERSITY HOSPITAL NHS TRUST","RAPNM","North Middlesex Hospital - RAPNM",461,11242,4.1006938267212238E-2,0.86550976140000002,6.7245119300000003E-2,170,229,25,20,11,6]
["Q71","RAL","ROYAL FREE LONDON NHS FOUNDATION TRUST","RAL26","Barnet Hospital - RAL26",2373,4813,0.49303968418865574,0.85967130209999998,7.8381795200000007E-2,1185,855,147,100,86,0]
["Q71","RAL","ROYAL FREE LONDON NHS FOUNDATION TRUST","RAL01","Royal Free Hospital - RAL01",2143,4895,0.43779366700715017,0.8637424172,7.0461969200000002E-2,1142,709,141,70,81,0]
["Q71","RJ7","ST GEORGE'S UNIVERSITY HOSPITALS NHS FOUNDATION TRUST","RJ701","St George's Hospital (Tooting) - RJ701",1685,6238,0.27011862776530937,0.83679525219999995,0.103264095,1040,370,86,67,107,15]
["Q71","RAS","THE HILLINGDON HOSPITALS NHS FOUNDATION TRUST","RAS01","Hillingdon Hospital - RAS01",280,2092,0.13384321223709369,0.93928571429999996,2.85714286E-2,200,63,7,2,6,2]
["Q71","RAS","THE HILLINGDON HOSPITALS NHS FOUNDATION TRUST","RAS02","Mount Vernon Hospital Site - RAS02",11,1687,6.5204505038529937E-3,1,0,10,1,0,0,0,0]
["Q71","RKE","THE WHITTINGTON HOSPITAL NHS TRUST","RKEQ4","The Whittington Hospital - RKEQ4",330,6274,5.2598023589416641E-2,0.89090909090000003,7.2727272699999998E-2,243,51,7,7,17,5]
["Q71","RRV","UNIVERSITY COLLEGE LONDON HOSPITALS NHS FOUNDATION TRUST","RRV03","University College Hospital - RRV03",2150,9740,0.22073921971252566,0.94511627909999996,2.7441860500000002E-2,1592,440,41,36,23,18]
["Q71","RFW","WEST MIDDLESEX UNIVERSITY HOSPITAL NHS TRUST","RFW01","West Middlesex University Hospital - RFW01",659,2577,0.25572370974000774,0.90288315630000004,5.4628224599999997E-2,500,95,16,16,20,12]
["Q72","RCF","AIREDALE NHS FOUNDATION TRUST","RCF22","Airedale General Hospital - RCF22",401,3481,0.11519678253375466,0.90024937660000004,3.9900249399999997E-2,270,91,18,8,8,6]
["Q72","RFF","BARNSLEY HOSPITAL NHS FOUNDATION TRUST","RFFAA","Barnsley Hospital NHS Foundation Trust HQ - RFFAA",119,4601,2.5863942621169311E-2,0.70588235290000001,0.26890756300000002,71,13,3,7,25,0]
["Q72","RAE","BRADFORD TEACHING HOSPITALS NHS FOUNDATION TRUST","RAE01","Bradford Royal Infirmary - RAE01",42,9083,4.6240228999229332E-3,0.59523809520000004,0.2619047619,16,9,6,5,6,0]
["Q72","RWY","CALDERDALE AND HUDDERSFIELD NHS FOUNDATION TRUST","RWY02","Calderdale Royal Hospital - RWY02",388,4852,7.996702390766694E-2,0.93298969070000004,2.0618556699999999E-2,270,92,17,1,7,1]
["Q72","RWY","CALDERDALE AND HUDDERSFIELD NHS FOUNDATION TRUST","RWY01","Huddersfield Royal Infirmary - RWY01",447,4856,9.2051070840197688E-2,0.89261744970000001,7.6062639799999998E-2,322,77,13,7,27,1]
["Q72","RP5","DONCASTER AND BASSETLAW HOSPITALS NHS FOUNDATION TRUST","RP5BA","Bassetlaw Hospital - RP5BA",155,3325,4.6616541353383459E-2,0.8774193548,8.3870967699999993E-2,112,24,3,3,10,3]
["Q72","RP5","DONCASTER AND BASSETLAW HOSPITALS NHS FOUNDATION TRUST","RP5DR","Doncaster Royal Infirmary - RP5DR",373,6597,5.6540851902379868E-2,0.82037533510000005,6.9705093800000006E-2,200,106,18,9,17,23]
["Q72","RP5","DONCASTER AND BASSETLAW HOSPITALS NHS FOUNDATION TRUST","RP5XXX","WiC_MIU - RP5XXX",73,1901,3.8400841662283011E-2,0.98630136989999995,1.3698630099999999E-2,67,5,0,0,1,0]
["Q72","RCD","HARROGATE AND DISTRICT NHS FOUNDATION TRUST","RCD01","Harrogate District Hospital - RCD01",401,2463,0.16280958181079982,0.89276807979999995,4.9875311700000001E-2,257,101,18,9,11,5]
["Q72","RCD","HARROGATE AND DISTRICT NHS FOUNDATION TRUST","RCDXXX","WiC_MIU - RCDXXX",0,659,0,"NA","NA",0,0,0,0,0,0]
["Q72","RWA","HULL AND EAST YORKSHIRE HOSPITALS NHS TRUST","RWA01","Hull Royal Infirmary - RWA01",418,7132,5.8609085810431859E-2,0.70334928230000004,0.18660287079999999,215,79,26,26,52,20]
["Q72","RR8","LEEDS TEACHING HOSPITALS NHS TRUST","RR801","Leeds General Infirmary - RR801",1047,6766,0.15474430978421519,0.87583572109999996,6.4947468999999994E-2,702,215,38,26,42,24]
["Q72","RR8","LEEDS TEACHING HOSPITALS NHS TRUST","RR813","St James's University Hospital - RR813",1654,3633,0.45527112579135698,0.87001209189999995,5.5018137799999998E-2,988,451,66,42,49,58]
["Q72","RXF","MID YORKSHIRE HOSPITALS NHS TRUST","RXF10","Dewsbury and District Hospital - RXF10",2828,6325,0.44711462450592887,0.94554455449999997,1.90947666E-2,2013,661,67,22,32,33]
["Q72","RXF","MID YORKSHIRE HOSPITALS NHS TRUST","RXF05","Pinderfields General Hospital - RXF05",899,5694,0.15788549350193185,0.96218020019999995,1.6685205799999998E-2,711,154,15,2,13,4]
["Q72","RXF","MID YORKSHIRE HOSPITALS NHS TRUST","RXF03","Pontefract General Infirmary - RXF03",918,3490,0.26303724928366762,0.97276688450000004,7.6252723000000003E-3,738,155,15,5,2,3]
["Q72","RJL","NORTHERN LINCOLNSHIRE AND GOOLE NHS FOUNDATION TRUST","RJL30","Diana, Princess Of Wales Hospital - RJL30",516,3991,0.1292909045352042,0.85658914730000002,6.7829457400000001E-2,313,129,35,16,19,4]
["Q72","RJL","NORTHERN LINCOLNSHIRE AND GOOLE NHS FOUNDATION TRUST","RJL32","Scunthorpe General Hospital - RJL32",487,3894,0.12506420133538779,0.82751540040000005,9.4455852199999996E-2,276,127,32,16,30,6]
["Q72","RJL","NORTHERN LINCOLNSHIRE AND GOOLE NHS FOUNDATION TRUST","RJLXXX","WiC_MIU - RJLXXX",61,1655,3.6858006042296075E-2,1,0,55,6,0,0,0,0]
["Q72","RCU","SHEFFIELD CHILDREN'S NHS FOUNDATION TRUST","RCUEF","Sheffield Children's Hospital - RCUEF",62,4816,1.287375415282392E-2,0.8064516129,3.2258064500000003E-2,41,9,6,2,0,4]
["Q72","RHQ","SHEFFIELD TEACHING HOSPITALS NHS FOUNDATION TRUST","RHQNG","Northern General Hospital - RHQNG",1213,6060,0.20016501650165017,0.82852431989999997,8.3264633099999999E-2,745,260,87,45,56,20]
["Q72","RHQ","SHEFFIELD TEACHING HOSPITALS NHS FOUNDATION TRUST","RHQHH","Royal Hallamshire Hospital - RHQHH",226,711,0.31786216596343181,0.96902654870000005,8.8495575000000007E-3,181,38,3,1,1,2]
["Q72","RHQ","SHEFFIELD TEACHING HOSPITALS NHS FOUNDATION TRUST","RHQXXX","WiC_MIU - RHQXXX",297,1448,0.20511049723756905,0.85185185190000001,5.7239057199999999E-2,200,53,15,5,12,12]
["Q72","RFR","THE ROTHERHAM NHS FOUNDATION TRUST","RFRPA","Rotherham District General Hospital - RFRPA",741,4838,0.15316246382802812,0.96221322539999998,2.4291498000000002E-2,519,194,5,7,11,5]
["Q72","RCB","YORK TEACHING HOSPITAL NHS FOUNDATION TRUST","RCBCA","Scarborough General Hospital - RCBCA",147,2430,6.0493827160493827E-2,0.82312925169999995,9.5238095199999998E-2,90,31,9,3,11,3]
["Q72","RCB","YORK TEACHING HOSPITAL NHS FOUNDATION TRUST","RCB55","York Hospital - RCB55",418,5044,8.2870737509912765E-2,0.82057416270000005,0.1291866029,250,93,21,20,34,0]
["Q73","RXL","BLACKPOOL TEACHING HOSPITALS NHS FOUNDATION TRUST","RXL01","Blackpool Victoria Hospital - RXL01",1351,5749,0.23499739085058272,0.95188749070000001,1.7024426400000001E-2,1042,244,25,16,7,17]
["Q73","RMC","BOLTON NHS FOUNDATION TRUST","RMC01","Royal Bolton Hospital - RMC01",1093,5582,0.19580795413830168,0.87465690760000003,6.8618481199999998E-2,751,205,43,36,39,19]
["Q73","RW3","CENTRAL MANCHESTER UNIVERSITY HOSPITALS NHS FOUNDATION TRUST","RW3RE","Manchester Royal Eye Hospital - RW3RE",446,2036,0.21905697445972494,0.97309417040000001,1.79372197E-2,380,54,4,4,4,0]
["Q73","RW3","CENTRAL MANCHESTER UNIVERSITY HOSPITALS NHS FOUNDATION TRUST","RW3MR","Manchester Royal Infirmary - RW3MR",1287,8613,0.14942528735632185,0.86713286710000004,7.6146076100000001E-2,909,207,54,38,60,19]
["Q73","RW3","CENTRAL MANCHESTER UNIVERSITY HOSPITALS NHS FOUNDATION TRUST","RW3RC","Royal Manchester Children's Hospital - RW3RC",64,2811,2.2767698327997153E-2,0.8125,4.6875E-2,32,20,4,2,1,5]
["Q73","RW3","CENTRAL MANCHESTER UNIVERSITY HOSPITALS NHS FOUNDATION TRUST","RW3SM","St Mary's Hospital - RW3SM",127,922,0.13774403470715835,0.94488188979999999,1.5748031499999999E-2,96,24,3,0,2,2]
["Q73","RW3","CENTRAL MANCHESTER UNIVERSITY HOSPITALS NHS FOUNDATION TRUST","RW3TR","Trafford General Hospital - RW3TR",140,6726,2.0814748736247397E-2,0.93571428570000004,1.42857143E-2,110,21,5,2,0,2]
["Q73","RW3","CENTRAL MANCHESTER UNIVERSITY HOSPITALS NHS FOUNDATION TRUST","RW3DH","University Dental Hospital - RW3DH",57,204,0.27941176470588236,0.98245614039999996,0,48,8,1,0,0,0]
["Q73","RXR","EAST LANCASHIRE HOSPITALS NHS TRUST","RXR20","Royal Blackburn Hospital - RXR20",1437,5630,0.25523978685612786,0.8288100209,0.10925539319999999,765,426,69,59,98,20]
["Q73","RXN","LANCASHIRE TEACHING HOSPITALS NHS FOUNDATION TRUST","RXN01","Chorley and South Ribble Hospital - RXN01",718,2792,0.25716332378223494,0.86768802229999997,7.2423398299999997E-2,476,147,37,25,27,6]
["Q73","RXN","LANCASHIRE TEACHING HOSPITALS NHS FOUNDATION TRUST","RXN02","Royal Preston Hospital - RXN02",702,3833,0.18314636055309158,0.82336182339999997,9.6866096900000004E-2,439,139,44,28,40,12]
["Q73","RW6","PENNINE ACUTE HOSPITALS NHS TRUST","RW601","Fairfield General Hospital - RW601",1170,3589,0.32599609919197547,0.89059829059999995,4.0170940199999998E-2,788,254,53,25,22,28]
["Q73","RW6","PENNINE ACUTE HOSPITALS NHS TRUST","RW602","North Manchester General Hospital - RW602",1087,5127,0.21201482348351863,0.83072677090000002,0.10119595219999999,633,270,48,47,63,26]
["Q73","RW6","PENNINE ACUTE HOSPITALS NHS TRUST","RW604","Rochdale Infirmary - RW604",721,2956,0.24391069012178621,0.82108183079999997,9.8474341199999996E-2,419,173,42,31,40,16]
["Q73","RW6","PENNINE ACUTE HOSPITALS NHS TRUST","RW603","Royal Oldham Hospital - RW603",1223,4853,0.25200906655676902,0.85936222399999995,6.7048241999999994E-2,786,265,73,41,41,17]
["Q73","RM3","SALFORD ROYAL NHS FOUNDATION TRUST","RM301","Salford Royal - RM301",973,4185,0.23249701314217444,0.8920863309,5.1387461500000002E-2,725,143,43,19,31,12]
["Q73","RWJ","STOCKPORT NHS FOUNDATION TRUST","RWJ09","Stepping Hill Hospital - RWJ09",1173,5459,0.21487451914270012,0.87723785170000002,6.3086104000000004E-2,816,213,57,24,50,13]
["Q73","RMP","TAMESIDE HOSPITAL NHS FOUNDATION TRUST","RMP01","Tameside General Hospital - RMP01",1390,5439,0.2555616841331127,0.85323741009999998,8.2014388499999993E-2,768,418,70,47,67,20]
["Q73","RM2","UNIVERSITY HOSPITAL OF SOUTH MANCHESTER NHS FOUNDATION TRUST","RM202","Wythenshawe Hospital - RM202",622,5685,0.10941072999120492,0.86816720260000002,7.7170418000000005E-2,435,105,26,17,31,8]
["Q73","RRF","WRIGHTINGTON, WIGAN AND LEIGH NHS FOUNDATION TRUST","RRF02","Royal Albert Edward Infirmary - RRF02",1129,6484,0.17412091301665639,0.96279893709999997,1.41718335E-2,862,225,22,6,10,4]
["Q74","RLN","CITY HOSPITALS SUNDERLAND NHS FOUNDATION TRUST","RLNGM","Sunderland Eye Infirmary - RLNGM",368,2384,0.15436241610738255,0.98097826089999995,1.6304347800000001E-2,303,58,0,2,4,1]
["Q74","RLN","CITY HOSPITALS SUNDERLAND NHS FOUNDATION TRUST","RLNGL","Sunderland Royal Hospital - RLNGL",1075,4261,0.25228819525932877,0.96744186050000003,1.4883720899999999E-2,824,216,12,9,7,7]
["Q74","RLN","CITY HOSPITALS SUNDERLAND NHS FOUNDATION TRUST","RLNXXX","WiC_MIU - RLNXXX",303,1809,0.16749585406301823,0.98679867990000003,6.6006601E-3,255,44,2,0,2,0]
["Q74","RXP","COUNTY DURHAM AND DARLINGTON NHS FOUNDATION TRUST","RXPDA","Darlington Memorial Hospital - RXPDA",386,2881,0.1339812565081569,0.87564766839999997,2.8497409299999998E-2,236,102,8,6,5,29]
["Q74","RXP","COUNTY DURHAM AND DARLINGTON NHS FOUNDATION TRUST","RXPCP","University Hospital Of North Durham - RXPCP",320,3112,0.10282776349614396,0.79374999999999996,7.8125E-2,150,104,24,12,13,17]
["Q74","RXP","COUNTY DURHAM AND DARLINGTON NHS FOUNDATION TRUST","RXPXXX","WiC_MIU - RXPXXX",2036,12630,0.16120348376880445,0.92829076619999995,1.17878193E-2,1396,494,41,10,14,81]
["Q74","RR7","GATESHEAD HEALTH NHS FOUNDATION TRUST","RR7EN","Queen Elizabeth Hospital - RR7EN",1920,4980,0.38554216867469882,0.92656249999999996,3.2812500000000001E-2,1381,398,69,39,24,9]
["Q74","RNL","NORTH CUMBRIA UNIVERSITY HOSPITALS NHS TRUST","RNLAY","Cumberland Infirmary - RNLAY",42,2647,1.5867019267094825E-2,0.80952380950000002,0.1904761905,22,12,0,6,2,0]
["Q74","RNL","NORTH CUMBRIA UNIVERSITY HOSPITALS NHS TRUST","RNLBX","West Cumberland Hospital - RNLBX",26,2059,1.2627489072365225E-2,0.8846153846,0.1153846154,14,9,0,2,1,0]
["Q74","RVW","NORTH TEES AND HARTLEPOOL NHS FOUNDATION TRUST","RVWAE","University Hospital Of North Tees - RVWAE",143,2960,4.831081081081081E-2,0.90209790209999996,6.9930069900000003E-2,86,43,2,6,4,2]
["Q74","RVW","NORTH TEES AND HARTLEPOOL NHS FOUNDATION TRUST","RVWXXX","WiC_MIU - RVWXXX",39,915,4.2622950819672129E-2,1,0,32,7,0,0,0,0]
["Q74","RTF","NORTHUMBRIA HEALTHCARE NHS FOUNDATION TRUST","RTFDR","Hexham General Hospital - RTFDR",28,1147,2.4411508282476024E-2,0.96428571429999999,3.5714285700000001E-2,22,5,0,1,0,0]
["Q74","RTF","NORTHUMBRIA HEALTHCARE NHS FOUNDATION TRUST","RTFFS","North Tyneside General Hospital - RTFFS",14,3021,4.6342270771267792E-3,0.92857142859999997,7.1428571400000002E-2,9,4,0,0,1,0]
["Q74","RTF","NORTHUMBRIA HEALTHCARE NHS FOUNDATION TRUST","RTF86","The Northumbria - RTF86",0,1688,0,"NA","NA",0,0,0,0,0,0]
["Q74","RTF","NORTHUMBRIA HEALTHCARE NHS FOUNDATION TRUST","RTFED","Wansbeck Hospital - RTFED",17,2829,6.0091905266878758E-3,0.82352941180000006,0.1764705882,10,4,0,3,0,0]
["Q74","RTF","NORTHUMBRIA HEALTHCARE NHS FOUNDATION TRUST","RTFXXX","WiC_MIU - RTFXXX",42,1967,2.1352313167259787E-2,0.97619047619999999,0,37,4,1,0,0,0]
["Q74","RTR","SOUTH TEES HOSPITALS NHS FOUNDATION TRUST","RTR45","Friarage Hospital Site - RTR45",286,1533,0.18656229615133724,0.91958041960000003,3.4965034999999998E-2,207,56,11,4,6,2]
["Q74","RTR","SOUTH TEES HOSPITALS NHS FOUNDATION TRUST","RTRAT","The James Cook University Hospital - RTRAT",1067,6980,0.15286532951289397,0.88284910969999997,3.8425491999999999E-2,757,185,57,19,22,27]
["Q74","RTR","SOUTH TEES HOSPITALS NHS FOUNDATION TRUST","RTRXXX","WiC_MIU - RTRXXX",20,888,2.2522522522522521E-2,1,0,18,2,0,0,0,0]
["Q74","RE9","SOUTH TYNESIDE NHS FOUNDATION TRUST","RE9GA","South Tyneside District Hospital - RE9GA",339,2779,0.12198632601655272,0.94690265490000003,2.3598820100000001E-2,255,66,4,4,4,6]
["Q74","RTD","THE NEWCASTLE UPON TYNE HOSPITALS NHS FOUNDATION TRUST","RTD02","The Royal Victoria Infirmary - RTD02",166,12687,1.3084259478206038E-2,0.87951807230000001,7.8313252999999999E-2,105,41,6,7,6,1]
["Q74","RTX","UNIVERSITY HOSPITALS OF MORECAMBE BAY NHS FOUNDATION TRUST","RTXBU","Furness General Hospital - RTXBU",538,1743,0.30866322432587495,0.93122676579999997,2.41635688E-2,380,121,14,4,9,10]
["Q74","RTX","UNIVERSITY HOSPITALS OF MORECAMBE BAY NHS FOUNDATION TRUST","RTX02","Royal Lancaster Infirmary - RTX02",588,2395,0.24551148225469729,0.89795918370000005,6.2925170099999997E-2,436,92,16,15,22,7]
["Q75","REM","AINTREE UNIVERSITY HOSPITAL NHS FOUNDATION TRUST","REM21","University Hospital Aintree - REM21",1033,3779,0.27335273881979361,0.8722168441,6.5827686400000002E-2,681,220,41,33,35,23]
["Q75","RJR","COUNTESS OF CHESTER HOSPITAL NHS FOUNDATION TRUST","RJR05","Countess Of Chester Hospital - RJR05",486,3827,0.12699242226286908,0.80658436209999995,0.14197530859999999,311,81,21,24,45,4]
["Q75","RJN","EAST CHESHIRE NHS TRUST","RJN63","Congleton War Memorial Hospital - RJN63",130,490,0.26530612244897961,0.93846153850000003,3.8461538500000003E-2,101,21,2,2,3,1]
["Q75","RJN","EAST CHESHIRE NHS TRUST","RJN71","Macclesfield District General Hospital - RJN71",809,2907,0.27829377364981078,0.88257107540000002,6.0568603200000001E-2,575,139,38,19,30,8]
["Q75","REP","LIVERPOOL WOMEN'S NHS FOUNDATION TRUST","REP01","Liverpool Womens Hospital - REP01",288,905,0.318232044198895,0.99305555560000003,6.9444444000000003E-3,260,26,0,0,2,0]
["Q75","RBT","MID CHESHIRE HOSPITALS NHS FOUNDATION TRUST","RBT20","Leighton Hospital - RBT20",378,3817,9.9030652344773387E-2,0.92328042330000004,3.9682539699999998E-2,255,94,9,7,8,5]
["Q75","RBT","MID CHESHIRE HOSPITALS NHS FOUNDATION TRUST","RBTXXX","WiC_MIU - RBTXXX",554,1560,0.35512820512820514,0.96570397109999995,1.26353791E-2,446,89,9,1,6,3]
["Q75","RQ6","ROYAL LIVERPOOL AND BROADGREEN UNIVERSITY HOSPITALS NHS TRUST","RQ617","The Royal Liverpool University Hospital - RQ617",1313,6062,0.2165951831078852,0.85529322159999999,7.8446306199999996E-2,868,255,63,40,63,24]
["Q75","RVY","SOUTHPORT AND ORMSKIRK HOSPITAL NHS TRUST","RVY02","Ormskirk and District General Hospital - RVY02",193,1886,0.10233297985153765,0.96373056989999994,1.0362694299999999E-2,151,35,3,2,0,2]
["Q75","RVY","SOUTHPORT AND ORMSKIRK HOSPITAL NHS TRUST","RVY01","Southport and Formby District General Hospital - RVY01",202,2339,8.6361693031209913E-2,0.75247524750000006,0.19306930689999999,119,33,9,12,27,2]
["Q75","RVY","SOUTHPORT AND ORMSKIRK HOSPITAL NHS TRUST","RVYXXX","WiC_MIU - RVYXXX",184,2239,8.2179544439481916E-2,0.98913043479999996,0,165,17,2,0,0,0]
["Q75","RBN","ST HELENS AND KNOWSLEY HOSPITALS NHS TRUST","RBN01","Whiston Hospital - RBN01",1226,5251,0.23347933726909159,0.92903752039999998,2.7732463299999999E-2,828,311,53,20,14,0]
["Q75","RWW","WARRINGTON AND HALTON HOSPITALS NHS FOUNDATION TRUST","RWWHG","Halton Hospital - RWWHG",420,1744,0.24082568807339449,0.95238095239999998,1.19047619E-2,328,72,6,3,2,9]
["Q75","RWW","WARRINGTON AND HALTON HOSPITALS NHS FOUNDATION TRUST","RWWWH","Warrington Hospital - RWWWH",622,4726,0.13161235717308506,0.83440514470000005,6.2700964600000006E-2,355,164,45,32,7,19]
["Q75","RBL","WIRRAL UNIVERSITY TEACHING HOSPITAL NHS FOUNDATION TRUST","RBL14","Arrowe Park Hospital - RBL14",357,5195,6.8719923002887387E-2,0.98319327729999995,5.6022409000000004E-3,326,25,3,2,0,1]
["Q76","RJF","BURTON HOSPITALS NHS FOUNDATION TRUST","RJF02","Queen's Hospital, Burton Upon Trent - RJF02",21,3829,5.4844606946983544E-3,0.90476190479999996,9.5238095199999998E-2,14,5,0,0,2,0]
["Q76","RJF","BURTON HOSPITALS NHS FOUNDATION TRUST","RJFXXX","WiC_MIU - RJFXXX",76,6192,1.227390180878553E-2,0.98684210530000005,0,72,3,1,0,0,0]
["Q76","RFS","CHESTERFIELD ROYAL HOSPITAL NHS FOUNDATION TRUST","RFSDA","Chesterfield Royal Hospital - RFSDA",737,4299,0.17143521749244009,0.87516960649999997,7.0556309400000003E-2,541,104,26,19,33,14]
["Q76","RTG","DERBY TEACHING HOSPITALS NHS FOUNDATION TRUST","RTGFG","Royal Derby Hospital - RTGFG",1037,5355,0.19365079365079366,0.81870781100000001,8.1967213100000005E-2,620,229,69,35,50,34]
["Q76","RX1","NOTTINGHAM UNIVERSITY HOSPITALS NHS TRUST","RX1RA","Nottingham University Hospitals NHS Trust - Queen's Medical Centre Campus - RX1RA",2618,10103,0.25913095120261309,0.94194041250000005,2.10084034E-2,2018,448,61,20,35,36]
["Q76","RK5","SHERWOOD FOREST HOSPITALS NHS FOUNDATION TRUST","RK5BC","King's Mill Hospital - RK5BC",883,5864,0.15057980900409276,0.82332955829999999,5.4360135900000002E-2,436,291,83,24,24,25]
["Q76","RK5","SHERWOOD FOREST HOSPITALS NHS FOUNDATION TRUST","RK5XXX","WiC_MIU - RK5XXX",31,1781,1.7405951712521055E-2,0.96774193549999998,0,18,12,0,0,0,1]
["Q76","RXW","SHREWSBURY AND TELFORD HOSPITAL NHS TRUST","RXWAS","Royal Shrewsbury Hospital - RXWAS",944,3178,0.2970421648835746,0.95021186440000005,8.4745762999999998E-3,689,208,22,6,2,17]
["Q76","RXW","SHREWSBURY AND TELFORD HOSPITAL NHS TRUST","RXWAT","The Princess Royal Hospital - RXWAT",519,3122,0.16623959000640615,0.94219653179999996,1.34874759E-2,339,150,16,1,6,7]
["Q76","RJE","UNIVERSITY HOSPITALS OF NORTH MIDLANDS NHS TRUST","RJE09","County Hospital - RJE09",485,1926,0.2518172377985462,0.79793814429999999,0.10721649480000001,320,67,33,25,27,13]
["Q76","RJE","UNIVERSITY HOSPITALS OF NORTH MIDLANDS NHS TRUST","RJE01","Royal Stoke University Hospital - RJE01",655,5671,0.11549991183212838,0.63969465650000001,0.19389312980000001,313,106,80,50,77,29]
["Q77","RQ3","BIRMINGHAM CHILDREN'S HOSPITAL NHS FOUNDATION TRUST","RQ3XXX","WiC_MIU - RQ3XXX",239,4239,5.638122198631753E-2,0.91631799160000005,2.51046025E-2,163,56,7,1,5,7]
["Q77","RLT","GEORGE ELIOT HOSPITAL NHS TRUST","RLT01","George Eliot Hospital - Acute Services - RLT01",818,3799,0.21531982100552777,0.80806845969999996,0.1173594132,454,207,39,39,57,22]
["Q77","RR1","HEART OF ENGLAND NHS FOUNDATION TRUST","RR105","Good Hope Hospital - RR105",1011,5323,0.1899304903250047,0.81206726009999997,0.1048466864,599,222,63,61,45,21]
["Q77","RR1","HEART OF ENGLAND NHS FOUNDATION TRUST","RR101","Heartlands Hospital - RR101",797,7352,0.10840587595212187,0.71894604770000003,0.1530740276,367,206,66,51,71,36]
["Q77","RR1","HEART OF ENGLAND NHS FOUNDATION TRUST","RR1XXX","WiC_MIU - RR1XXX",597,3435,0.17379912663755459,0.81909547739999999,8.3752093799999996E-2,372,117,43,22,28,15]
["Q77","RXK","SANDWELL AND WEST BIRMINGHAM HOSPITALS NHS TRUST","RXK03","Birmingham Midland Eye Centre (Bmec) - RXK03",200,2420,8.2644628099173556E-2,0.84,9.5000000000000001E-2,129,39,10,5,14,3]
["Q77","RXK","SANDWELL AND WEST BIRMINGHAM HOSPITALS NHS TRUST","RXK02","City Hospital - RXK02",393,5130,7.6608187134502931E-2,0.78625954200000003,0.16284987279999999,240,69,13,22,42,7]
["Q77","RXK","SANDWELL AND WEST BIRMINGHAM HOSPITALS NHS TRUST","RXK01","Sandwell General Hospital - RXK01",298,4764,6.2552476910159527E-2,0.78859060400000003,0.1476510067,180,55,15,12,32,4]
["Q77","RXK","SANDWELL AND WEST BIRMINGHAM HOSPITALS NHS TRUST","RXKXXX","WiC_MIU - RXKXXX",8,2682,2.9828486204325128E-3,1,0,8,0,0,0,0,0]
["Q77","RJC","SOUTH WARWICKSHIRE NHS FOUNDATION TRUST","RJC02","Warwick Hospital - RJC02",783,2256,0.34707446808510639,0.9514687101,8.9399744999999996E-3,624,121,16,2,5,15]
["Q77","RNA","THE DUDLEY GROUP NHS FOUNDATION TRUST","RNA01","Russells Hall Hospital - RNA01",469,3994,0.11742613920881322,0.92324093819999997,4.2643923200000003E-2,311,122,12,7,13,4]
["Q77","RL4","THE ROYAL WOLVERHAMPTON NHS TRUST","RL403","New Cross Hospital - RL403",1528,6434,0.23748834317687287,0.80759162299999998,9.8821989499999999E-2,935,299,103,64,87,40]
["Q77","RL4","THE ROYAL WOLVERHAMPTON NHS TRUST","RL4XXX","WiC_MIU - RL4XXX",34,34,1,1,0,33,1,0,0,0,0]
["Q77","RRK","UNIVERSITY HOSPITALS BIRMINGHAM NHS FOUNDATION TRUST","RRK15","Queen Elizabeth Hospital Birmingham - RRK15",1278,6490,0.19691833590138674,0.86384976530000002,7.5899843499999994E-2,917,187,56,35,62,21]
["Q77","RKB","UNIVERSITY HOSPITALS COVENTRY AND WARWICKSHIRE NHS TRUST","RKB01","University Hospital (Coventry) - RKB01",1184,9505,0.12456601788532351,0.81334459459999997,0.1173986486,725,238,60,41,98,22]
["Q77","RKB","UNIVERSITY HOSPITALS COVENTRY AND WARWICKSHIRE NHS TRUST","RKBXXX","WiC_MIU - RKBXXX",437,2379,0.18369062631357713,0.89244851260000002,6.4073226499999997E-2,317,73,15,10,18,4]
["Q77","RBK","WALSALL HEALTHCARE NHS TRUST","RBK02","Manor Hospital - RBK02",150,4150,3.614457831325301E-2,0.94,1.33333333E-2,101,40,6,1,1,1]
["Q77","RWP","WORCESTERSHIRE ACUTE HOSPITALS NHS TRUST","RWP01","Alexandra Hospital - RWP01",894,3682,0.24280282455187399,0.98322147650000002,5.5928412000000004E-3,"*","*","*","*","*","*"]
["Q77","RWP","WORCESTERSHIRE ACUTE HOSPITALS NHS TRUST","RWP31","Kidderminster Hospital - RWP31",3,2220,1.3513513513513514E-3,"*","*","*","*","*","*","*","*"]
["Q77","RWP","WORCESTERSHIRE ACUTE HOSPITALS NHS TRUST","RWP50","Worcestershire Royal Hospital - RWP50",984,4051,0.24290298691681067,0.91971544719999998,2.2357723600000001E-2,664,241,43,12,10,14]
["Q77","RLQ","WYE VALLEY NHS TRUST","RLQ01","Hereford County Hospital - RLQ01",305,3184,9.5791457286432166E-2,0.71475409840000004,0.17377049180000001,169,49,13,13,40,21]
["Q78","RC1","BEDFORD HOSPITAL NHS TRUST","RC110","Bedford Hospital South Wing - RC110",669,3441,0.1944202266782912,0.83707025410000002,9.7159940200000003E-2,396,164,34,24,41,10]
["Q78","RWH","EAST AND NORTH HERTFORDSHIRE NHS TRUST","RWH01","Lister Hospital - RWH01",1023,8022,0.1275243081525804,0.78494623659999996,0.1309872923,560,243,65,56,78,21]
["Q78","RWH","EAST AND NORTH HERTFORDSHIRE NHS TRUST","RWH20","Queen Elizabeth I I Hospital - RWH20",464,2492,0.18619582664526485,0.85775862069999997,8.18965517E-2,324,74,20,16,22,8]
["Q78","RNQ","KETTERING GENERAL HOSPITAL NHS FOUNDATION TRUST","RNQ51","Kettering General Hospital - RNQ51",196,3707,5.2872943080658215E-2,0.91836734689999999,2.5510204099999999E-2,120,60,11,3,2,0]
["Q78","RC9","LUTON AND DUNSTABLE UNIVERSITY HOSPITAL NHS FOUNDATION TRUST","RC971","Luton and Dunstable Hospital - RC971",372,6014,6.1855670103092786E-2,0.94623655910000004,2.15053763E-2,325,27,7,4,4,5]
["Q78","RD8","MILTON KEYNES HOSPITAL NHS FOUNDATION TRUST","RD816","Milton Keynes Hospital - RD816",199,5161,3.8558418911063749E-2,0.82914572860000002,8.0402010100000004E-2,126,39,13,3,13,5]
["Q78","RNS","NORTHAMPTON GENERAL HOSPITAL NHS TRUST","RNS01","Northampton General Hospital (Acute) - RNS01",1621,10358,0.15649739331917359,0.83590376310000003,8.38988279E-2,994,361,93,49,87,37]
["Q78","RWD","UNITED LINCOLNSHIRE HOSPITALS NHS TRUST","RWDLP","Grantham and District Hospital - RWDLP",456,1559,0.29249518922386147,0.88377192979999997,6.1403508799999999E-2,298,105,21,18,10,4]
["Q78","RWD","UNITED LINCOLNSHIRE HOSPITALS NHS TRUST","RWDDA","Lincoln County Hospital - RWDDA",978,3862,0.25323666494044539,0.82310838450000001,8.2822085899999995E-2,593,212,74,33,48,18]
["Q78","RWD","UNITED LINCOLNSHIRE HOSPITALS NHS TRUST","RWDLA","Pilgrim Hospital - RWDLA",556,2631,0.21132649182820221,0.81654676260000003,8.2733812899999995E-2,308,146,35,22,24,21]
["Q78","RWE","UNIVERSITY HOSPITALS OF LEICESTER NHS TRUST","RWEAA","Leicester Royal Infirmary - RWEAA",1310,9831,0.13325195809175058,0.96030534349999996,1.0687022900000001E-2,989,269,27,11,3,11]
["Q78","RWG","WEST HERTFORDSHIRE HOSPITALS NHS TRUST","RWG02","Watford General Hospital - RWG02",340,4965,6.8479355488418936E-2,0.93235294120000001,2.35294118E-2,236,81,10,2,6,5]
["Q78","RWG","WEST HERTFORDSHIRE HOSPITALS NHS TRUST","RWGXXX","WiC_MIU - RWGXXX",109,4388,2.4840474020054695E-2,0.85321100920000004,9.1743119299999995E-2,71,22,4,2,8,2]
["Q79","RDD","BASILDON AND THURROCK UNIVERSITY HOSPITALS NHS FOUNDATION TRUST","RDDH0","Basildon University Hospital - RDDH0",1668,7827,0.21310847067842084,0.785971223,0.12649880099999999,916,395,118,71,140,28]
["Q79","RGT","CAMBRIDGE UNIVERSITY HOSPITALS NHS FOUNDATION TRUST","RGT01","Addenbrooke's Hospital - RGT01",977,5890,0.16587436332767402,0.911975435,3.4800409400000003E-2,693,198,45,16,18,7]
["Q79","RDE","COLCHESTER HOSPITAL UNIVERSITY NHS FOUNDATION TRUST","RDEE4","Colchester General Hospital - RDEE4",576,3779,0.15242127546970097,0.82465277780000001,0.11111111110000001,386,89,33,18,46,4]
["Q79","RQQ","HINCHINGBROOKE HEALTH CARE NHS TRUST","RQQ31","Hinchingbrooke Hospital - RQQ31",556,2348,0.23679727427597955,0.95323741009999996,1.07913669E-2,376,154,18,6,0,2]
["Q79","RGQ","IPSWICH HOSPITAL NHS TRUST","RGQ02","The Ipswich Hospital NHS Trust - RGQ02",225,5574,4.0365984930032295E-2,0.92,2.2222222199999999E-2,161,46,10,2,3,3]
["Q79","RGP","JAMES PAGET UNIVERSITY HOSPITALS NHS FOUNDATION TRUST","RGP75","James Paget University Hospital - RGP75",806,5029,0.16027043149731557,0.91439205960000003,3.9702233300000001E-2,560,177,28,11,21,9]
["Q79","RQ8","MID ESSEX HOSPITAL SERVICES NHS TRUST","RQ8L0","Broomfield Hospital - RQ8L0",924,5304,0.17420814479638008,0.7586580087,0.12770562769999999,564,137,87,47,71,18]
["Q79","RM1","NORFOLK AND NORWICH UNIVERSITY HOSPITALS NHS FOUNDATION TRUST","RM102","Norfolk and Norwich University Hospital - RM102",576,7290,7.9012345679012344E-2,0.92708333330000003,2.95138889E-2,444,90,13,5,12,12]
["Q79","RGN","PETERBOROUGH AND STAMFORD HOSPITALS NHS FOUNDATION TRUST","RGN80","Peterborough City Hospital - RGN80",340,4677,7.2696172760316438E-2,0.90294117650000005,5.8823529399999998E-2,243,64,8,10,10,5]
["Q79","RGN","PETERBOROUGH AND STAMFORD HOSPITALS NHS FOUNDATION TRUST","RGNXXX","WiC_MIU - RGNXXX",51,774,6.589147286821706E-2,1,0,49,2,0,0,0,0]
["Q79","RAJ","SOUTHEND UNIVERSITY HOSPITAL NHS FOUNDATION TRUST","RAJ01","Southend Hospital - RAJ01",870,4746,0.18331226295828065,0.86896551720000004,8.1609195400000001E-2,553,203,32,27,44,11]
["Q79","RQW","THE PRINCESS ALEXANDRA HOSPITAL NHS TRUST","RQWG0","Princess Alexandra Hospital - RQWG0",830,4723,0.17573576116874867,0.9337349398,1.44578313E-2,675,100,40,1,11,3]
["Q79","RCX","THE QUEEN ELIZABETH HOSPITAL, KING'S LYNN, NHS FOUNDATION TRUST","RCX70","The Queen Elizabeth Hospital - RCX70",638,3214,0.1985065339141257,0.87774294669999997,5.64263323E-2,382,178,18,16,20,24]
["Q79","RGR","WEST SUFFOLK NHS FOUNDATION TRUST","RGR50","West Suffolk Hospital - RGR50",736,3115,0.23627608346709469,0.9375,1.2228260899999999E-2,511,179,36,3,6,1]
["Q80","RVJ","NORTH BRISTOL NHS TRUST","RVJ01","Southmead Hospital - RVJ01",322,4469,7.205191317968225E-2,0.93478260869999996,2.48447205E-2,248,53,10,4,4,3]
["Q80","RBZ","NORTHERN DEVON HEALTHCARE NHS TRUST","RBZ12","North Devon District Hospital - RBZ12",76,2687,2.828433196873837E-2,0.92105263159999995,2.6315789499999999E-2,55,15,2,1,1,2]
["Q80","RK9","PLYMOUTH HOSPITALS NHS TRUST","RK950","Derriford Hospital - RK950",1130,4752,0.23779461279461278,0.96814159290000001,5.3097344999999997E-3,793,301,25,3,3,5]
["Q80","REF","ROYAL CORNWALL HOSPITALS NHS TRUST","REF12","Royal Cornwall Hospital (Treliske) - REF12",35,2222,1.5751575157515751E-2,0.88571428569999999,2.85714286E-2,"*","*","*","*","*","*"]
["Q80","RH8","ROYAL DEVON AND EXETER NHS FOUNDATION TRUST","RH801","Royal Devon and Exeter Hospital (Wonford) - RH801",4,6276,6.3734862970044612E-4,"*","*","*","*","*","*","*","*"]
["Q80","RA9","SOUTH DEVON HEALTHCARE NHS FOUNDATION TRUST","RA901","Torbay Hospital - RA901",224,4267,5.249589875790954E-2,0.95982142859999997,1.3392857100000001E-2,154,61,6,2,1,0]
["Q80","RBA","TAUNTON AND SOMERSET NHS FOUNDATION TRUST","RBA11","Musgrove Park Hospital - RBA11",515,3314,0.15540132770066384,0.96504854370000004,1.55339806E-2,355,142,7,5,3,3]
["Q80","RA7","UNIVERSITY HOSPITALS BRISTOL NHS FOUNDATION TRUST","RA708","Bristol Eye Hospital - RA708",111,1882,5.8979808714133899E-2,0.9279279279,3.6036036E-2,78,25,1,1,3,3]
["Q80","RA7","UNIVERSITY HOSPITALS BRISTOL NHS FOUNDATION TRUST","RA723","Bristol Royal Hospital For Children - RA723",387,2488,0.15554662379421222,0.62532299739999997,0.18346253230000001,149,93,41,29,42,33]
["Q80","RA7","UNIVERSITY HOSPITALS BRISTOL NHS FOUNDATION TRUST","RA701","Bristol Royal Infirmary - RA701",62,3679,1.6852405544985051E-2,0.79032258060000005,0.16129032260000001,43,6,1,2,8,2]
["Q80","RA3","WESTON AREA HEALTH NHS TRUST","RA301","Weston General Hospital - RA301",672,4238,0.15856536101934876,0.9255952381,1.6369047599999999E-2,576,46,13,8,3,26]
["Q80","RA4","YEOVIL DISTRICT HOSPITAL NHS FOUNDATION TRUST","RA430","Yeovil District Hospital - RA430",130,2637,4.9298445202882062E-2,0.9230769231,5.3846153799999998E-2,103,17,3,3,4,0]
["Q81","RTK","ASHFORD AND ST PETER'S HOSPITALS NHS FOUNDATION TRUST","RTK01","St Peter's Hospital - RTK01",1135,4263,0.26624442880600518,0.88634361230000003,6.0792951499999998E-2,732,274,48,30,39,12]
["Q81","RXH","BRIGHTON AND SUSSEX UNIVERSITY HOSPITALS NHS TRUST","RXH09","Princess Royal Hospital - RXH09",803,3050,0.26327868852459019,0.88418430879999999,5.8530510600000002E-2,565,145,39,17,30,7]
["Q81","RXH","BRIGHTON AND SUSSEX UNIVERSITY HOSPITALS NHS TRUST","RXH01","Royal Sussex County Hospital - RXH01",1249,5060,0.24683794466403161,0.83426741390000003,8.9671737400000007E-2,795,247,68,47,65,27]
["Q81","RXH","BRIGHTON AND SUSSEX UNIVERSITY HOSPITALS NHS TRUST","RXH07","Sussex Eye Hospital - RXH07",475,1356,0.35029498525073749,0.88631578950000001,5.8947368399999998E-2,345,76,18,14,14,8]
["Q81","RXH","BRIGHTON AND SUSSEX UNIVERSITY HOSPITALS NHS TRUST","RXH06","The Royal Alexandra Children's Hospital - RXH06",699,2037,0.34315169366715759,0.97854077250000004,8.5836909999999992E-3,626,58,6,2,4,3]
["Q81","RN7","DARTFORD AND GRAVESHAM NHS TRUST","RN707","Darent Valley Hospital - RN707",197,3944,4.9949290060851928E-2,0.98477157360000001,5.0761421000000001E-3,173,21,2,0,1,0]
["Q81","RVV","EAST KENT HOSPITALS UNIVERSITY NHS FOUNDATION TRUST","RVV02","Buckland Hospital - RVV02",320,1164,0.27491408934707906,0.9,4.3749999999999997E-2,232,56,15,7,7,3]
["Q81","RVV","EAST KENT HOSPITALS UNIVERSITY NHS FOUNDATION TRUST","RVVKC","Kent and Canterbury Hospital - RVVKC",702,2817,0.24920127795527156,0.87321937319999998,6.2678062699999995E-2,475,138,34,27,17,11]
["Q81","RVV","EAST KENT HOSPITALS UNIVERSITY NHS FOUNDATION TRUST","RVV09","Queen Elizabeth The Queen Mother Hospital - RVV09",1192,4655,0.25606874328678841,0.78691275169999997,0.12751677850000001,689,249,72,65,87,30]
["Q81","RVV","EAST KENT HOSPITALS UNIVERSITY NHS FOUNDATION TRUST","RVV01","William Harvey Hospital (Ashford) - RVV01",1209,4504,0.26842806394316165,0.75516956160000004,0.13647642679999999,633,280,109,59,106,22]
["Q81","RXC","EAST SUSSEX HEALTHCARE NHS TRUST","RXC01","Conquest Hospital - RXC01",550,2843,0.19345761519521631,0.90727272729999997,2.7272727300000001E-2,324,175,24,6,9,12]
["Q81","RXC","EAST SUSSEX HEALTHCARE NHS TRUST","RXC02","Eastbourne District General Hospital - RXC02",413,2850,0.14491228070175438,0.86924939469999996,4.6004842599999998E-2,239,120,18,10,9,17]
["Q81","RDU","FRIMLEY HEALTH NHS FOUNDATION TRUST","RDU01","Frimley Park Hospital - RDU01",1397,6255,0.22334132693844924,0.92627057980000005,1.71796707E-2,963,331,61,18,6,18]
["Q81","RDU","FRIMLEY HEALTH NHS FOUNDATION TRUST","RDU50","Wexham Park Hospital - RDU50",1118,6770,0.16514032496307238,0.83273703040000002,0.1046511628,626,305,54,47,70,16]
["Q81","RWF","MAIDSTONE AND TUNBRIDGE WELLS NHS TRUST","RWF03","Maidstone District General Hospital - RWF03",273,4447,6.1389700921969867E-2,0.90842490840000001,1.46520147E-2,182,66,10,2,2,11]
["Q81","RWF","MAIDSTONE AND TUNBRIDGE WELLS NHS TRUST","RWFTW","The Tunbridge Wells Hospital - RWFTW",437,4513,9.6831376024817201E-2,0.91533180780000001,2.0594965699999999E-2,300,100,14,2,7,14]
["Q81","RPA","MEDWAY NHS FOUNDATION TRUST","RPA02","Medway Maritime Hospital - RPA02",1140,5629,0.20252265055960206,0.74649122810000001,0.1570175439,552,299,88,71,108,22]
["Q81","RA2","ROYAL SURREY COUNTY HOSPITAL NHS FOUNDATION TRUST","RA201","Royal Surrey County Hospital - RA201",907,4095,0.22148962148962148,0.90407938259999998,4.8511576600000002E-2,651,169,36,24,20,7]
["Q81","RTP","SURREY AND SUSSEX HEALTHCARE NHS TRUST","RTP04","East Surrey Hospital - RTP04",585,5185,0.11282545805207329,0.93675213680000002,3.4188034200000002E-2,429,119,14,10,10,3]
["Q81","RYR","WESTERN SUSSEX HOSPITALS NHS FOUNDATION TRUST","RYR16","St Richard's Hospital - RYR16",504,3993,0.12622088655146507,0.88492063489999995,7.3412698400000004E-2,371,75,13,16,21,8]
["Q81","RYR","WESTERN SUSSEX HOSPITALS NHS FOUNDATION TRUST","RYR18","Worthing Hospital - RYR18",1143,4980,0.22951807228915663,0.92213473319999995,4.46194226E-2,865,189,24,16,35,14]
["Q82","RXQ","BUCKINGHAMSHIRE HEALTHCARE NHS TRUST","RXQ02","Stoke Mandeville Hospital - RXQ02",540,4697,0.11496700021290185,0.95740740739999997,1.6666666699999999E-2,407,110,13,3,6,1]
["Q82","RTE","GLOUCESTERSHIRE HOSPITALS NHS FOUNDATION TRUST","RTE01","Cheltenham General Hospital - RTE01",20,2352,8.5034013605442185E-3,0.85,0.05,14,3,2,0,1,0]
["Q82","RTE","GLOUCESTERSHIRE HOSPITALS NHS FOUNDATION TRUST","RTE03","Gloucestershire Royal Hospital - RTE03",34,3336,1.0191846522781775E-2,0.79411764709999999,0.1764705882,22,5,0,2,4,1]
["Q82","RN3","GREAT WESTERN HOSPITALS NHS FOUNDATION TRUST","RN325","The Great Western Hospital - RN325",451,4768,9.4588926174496643E-2,0.92239467850000001,3.3259423500000003E-2,319,97,8,8,7,12]
["Q82","RN3","GREAT WESTERN HOSPITALS NHS FOUNDATION TRUST","RN3XXX","WiC_MIU - RN3XXX",363,3810,9.5275590551181108E-2,0.96143250690000004,1.10192837E-2,292,57,5,1,3,5]
["Q82","RTH","OXFORD UNIVERSITY HOSPITALS NHS TRUST","RTH05","Horton General Hospital - RTH05",435,1784,0.2438340807174888,0.84367816090000003,5.9770114899999997E-2,270,97,33,11,15,9]
["Q82","RTH","OXFORD UNIVERSITY HOSPITALS NHS TRUST","RTH08","John Radcliffe Hospital - RTH08",461,2939,0.15685607349438585,0.84381778740000002,7.3752711499999998E-2,297,92,32,12,22,6]
["Q82","RHW","ROYAL BERKSHIRE NHS FOUNDATION TRUST","RHW03","King Edward Vii Hospital - RHW03",145,590,0.24576271186440679,0.97931034480000001,2.06896552E-2,125,17,0,2,1,0]
["Q82","RHW","ROYAL BERKSHIRE NHS FOUNDATION TRUST","RHW01","Royal Berkshire Hospital - RHW01",832,5558,0.14969413458078445,0.8545673077,6.9711538500000003E-2,542,169,58,20,38,5]
["Q82","RD1","ROYAL UNITED HOSPITALS BATH NHS FOUNDATION TRUST","RD130","Royal United Hospital - RD130",844,4392,0.19216757741347906,0.95971563979999996,8.2938388999999994E-3,703,107,17,2,5,10]
["Q82","RNZ","SALISBURY NHS FOUNDATION TRUST","RNZ02","Salisbury District Hospital - RNZ02",438,3118,0.14047466324567029,0.92694063930000004,1.82648402E-2,340,66,7,4,4,17]

{"sheet":"BS","index":4,"n_rows":235,"n_cols":48,"rows_kept":235,"cut":false,"hidden":true,"merged":[[15,2,17,3],[15,4,17,5]]}
["Please select criteria…",1,"Code…","Name…","Code…","Name…",null,null,null,null,"Dropdown linked cells",null,"Please select criteria…",1,"Code…","Name…",null,null,null,null,"Dropdown linked cells",null,"Please select criteria…",1,"Code…","Name…",null,null,null,1,"Dropdown linked cells",null,null,"Code…","Code…","Name…","Code…","Name…","<---fixed lists",null,"linked lists Trust tab--->","Code…","Name…","linked lists site tab--->","Code…","Name…","Code…","Name…"]
["Region (Geo) Code",null,"Q70","NHS England Wessex","Q70","NHS England Central Midlands",null,null,null,"Area Code =",1,null,"Region (Geo) Code",null,"RBD","DORSET COUNTY HOSPITAL NHS FOUNDATION TRUST",null,null,null,"Area Code =",1,null,"Region (Geo) Code",null,"RBD01","Dorset County Hospital - RBD01",null,null,null,"Area Code =",1,null,null,"Q70","RBD","DORSET COUNTY HOSPITAL NHS FOUNDATION TRUST","RBD01","Dorset County Hospital - RBD01",null,null,null,"R1F","AINTREE UNIVERSITY HOSPITAL NHS FOUNDATION TRUST",null,"R1F","AINTREE UNIVERSITY HOSPITAL NHS FOUNDATION TRUST","R1F01","Addenbrooke's Hospital - RGT01"]
["Region (Geography)",null,"Q71","NHS England London","Q71","NHS England Cheshire & Merseyside",null,null,null,"Area Name =",1,null,"Trust Code",null,"RN5","HAMPSHIRE HOSPITALS NHS FOUNDATION TRUST",null,null,null,"Area Name =",1,null,"Trust Code",null,"RN542","Andover War Memorial Hospital - RN542",null,null,null,"Area Name =",1,null,null,"Q70","RN5","HAMPSHIRE HOSPITALS NHS FOUNDATION TRUST","RN542","Andover War Memorial Hospital - RN542",null,null,null,"R1H","AIREDALE NHS FOUNDATION TRUST",null,"R1H","AIREDALE NHS FOUNDATION TRUST","R1HNH","Airedale General Hospital - RCF22"]
["Total Responses",null,"Q72","NHS England Yorkshire & Humber","Q72","NHS England Cumbria & North East",null,null,null,null,"N/A",null,"Trust Name",null,"R1F","ISLE OF WIGHT NHS TRUST",null,null,null,"Trust Code =",1,null,"Trust Name",null,"RN506","Basingstoke and North Hampshire Hospital - RN506",null,null,null,"Trust Code =",1,null,null,"Q70","RN5","HAMPSHIRE HOSPITALS NHS FOUNDATION TRUST","RN506","Basingstoke and North Hampshire Hospital - RN506",null,null,null,"R1K","ASHFORD AND ST PETER'S HOSPITALS NHS FOUNDATION TRUST",null,"R1K","ASHFORD AND ST PETER'S HOSPITALS NHS FOUNDATION TRUST","R1K04","Alexandra Hospital - RWP01"]
["Total Eligible",null,"Q73","NHS England Lancashire & Greater Manchester","Q73","NHS England East",null,null,null,null,"N/A",null,"Total Responses",null,"RD3","POOLE HOSPITAL NHS FOUNDATION TRUST",null,null,null,"Trust Name =",1,null,"Site Code",null,"RN541","Royal Hampshire County Hospital - RN541",null,null,null,"Trust Name =",1,null,null,"Q70","RN5","HAMPSHIRE HOSPITALS NHS FOUNDATION TRUST","RN541","Royal Hampshire County Hospital - RN541",null,null,null,"RA2","BARKING, HAVERING AND REDBRIDGE UNIVERSITY HOSPITALS NHS TRUST",null,"RA2","BARKING, HAVERING AND REDBRIDGE UNIVERSITY HOSPITALS NHS TRUST","RA201","Andover War Memorial Hospital - RN542"]
["Response Rate",null,"Q74","NHS England Cumbria & North East","Q74","NHS England Lancashire & Greater Manchester",null,null,null,null,"N/A",null,"Total Eligible",null,"RHU","PORTSMOUTH HOSPITALS NHS TRUST",null,null,null,null,"N/A",null,"Site Name",null,"R1F01","St Mary's Hospital - R1F01",null,null,null,"Site Code =",1,null,null,"Q70","R1F","ISLE OF WIGHT NHS TRUST","R1F01","St Mary's Hospital - R1F01",null,null,null,"RA3","BARNSLEY HOSPITAL NHS FOUNDATION TRUST",null,"RA3","BARNSLEY HOSPITAL NHS FOUNDATION TRUST","RA301","Arrowe Park Hospital - RBL14"]
["Percentage Recommended",null,"Q75","NHS England Cheshire & Merseyside","Q75","NHS England London",null,null,null,null,"N/A",null,"Response Rate",null,"RDZ","THE ROYAL BOURNEMOUTH AND CHRISTCHURCH HOSPITALS NHS FOUNDATION TRUST",null,null,null,null,"N/A",null,"Total Responses",null,"RD304","Poole General Hospital NHS Trust HQ - RD304",null,null,null,"Site Name =",1,null,null,"Q70","RD3","POOLE HOSPITAL NHS FOUNDATION TRUST","RD304","Poole General Hospital NHS Trust HQ - RD304",null,null,null,"RA4","BARTS HEALTH NHS TRUST",null,"RA4","BARTS HEALTH NHS TRUST","RA430","Barnet Hospital - RAL26"]
["Percentage Not  Recommended",null,"Q76","NHS England North Midlands","Q76","NHS England North Midlands",null,null,null,null,null,null,"Percentage Recommended",null,"RHM","UNIVERSITY HOSPITAL SOUTHAMPTON NHS FOUNDATION TRUST",null,null,null,null,null,null,"Total Eligible",null,"RHU03","Queen Alexandra Hospital - RHU03",null,null,null,null,null,null,null,"Q70","RHU","PORTSMOUTH HOSPITALS NHS TRUST","RHU03","Queen Alexandra Hospital - RHU03",null,null,null,"RA7","BASILDON AND THURROCK UNIVERSITY HOSPITALS NHS FOUNDATION TRUST",null,"RA7","BASILDON AND THURROCK UNIVERSITY HOSPITALS NHS FOUNDATION TRUST","RA708","Barnsley Hospital NHS Foundation Trust HQ - RFFAA"]
["Extremely Likely",null,"Q77","NHS England West Midlands","Q77","NHS England South Central",null,null,null,null,null,null,"Percentage Not  Recommended",null,"RF4","BARKING, HAVERING AND REDBRIDGE UNIVERSITY HOSPITALS NHS TRUST",null,null,null,null,null,null,"Response Rate",null,"RHUXXX","WiC_MIU - RHUXXX",null,null,null,null,null,null,null,"Q70","RHU","PORTSMOUTH HOSPITALS NHS TRUST","RHUXXX","WiC_MIU - RHUXXX",null,null,null,"RA9","BEDFORD HOSPITAL NHS TRUST",null,"RA9","BEDFORD HOSPITAL NHS TRUST","RA901","Basildon University Hospital - RDDH0"]
["Likely",null,"Q78","NHS England Central Midlands","Q78","NHS England South East",null,null,null,null,null,null,"Extremely Likely",null,"R1H","BARTS HEALTH NHS TRUST",null,null,null,null,null,null,"Percentage Recommended",null,"RDZ20","Royal Bournemouth General Hospital - RDZ20",null,null,null,null,null,null,null,"Q70","RDZ","THE ROYAL BOURNEMOUTH AND CHRISTCHURCH HOSPITALS NHS FOUNDATION TRUST","RDZ20","Royal Bournemouth General Hospital - RDZ20",null,null,null,"RAE","BIRMINGHAM CHILDREN'S HOSPITAL NHS FOUNDATION TRUST",null,"RAE","BIRMINGHAM CHILDREN'S HOSPITAL NHS FOUNDATION TRUST","RAE01","Bassetlaw Hospital - RP5BA"]
["Neither",null,"Q79","NHS England East","Q79","NHS England South West",null,null,null,null,null,null,"Likely",null,"RQM","CHELSEA AND WESTMINSTER HOSPITAL NHS FOUNDATION TRUST",null,null,null,null,null,null,"Percentage Not  Recommended",null,"RHM01","Southampton General Hospital - RHM01",null,null,null,null,null,null,null,"Q70","RHM","UNIVERSITY HOSPITAL SOUTHAMPTON NHS FOUNDATION TRUST","RHM01","Southampton General Hospital - RHM01",null,null,null,"RAJ","BLACKPOOL TEACHING HOSPITALS NHS FOUNDATION TRUST",null,"RAJ","BLACKPOOL TEACHING HOSPITALS NHS FOUNDATION TRUST","RAJ01","Bedford Hospital South Wing - RC110"]
["Unlikely",null,"Q80","NHS England South West","Q80","NHS England Wessex",null,null,null,null,null,null,"Neither",null,"RJ6","CROYDON HEALTH SERVICES NHS TRUST",null,null,null,null,null,null,"Extremely Likely",null,"RF4DG","King George Hospital - RF4DG",null,null,null,null,null,null,null,"Q71","RF4","BARKING, HAVERING AND REDBRIDGE UNIVERSITY HOSPITALS NHS TRUST","RF4DG","King George Hospital - RF4DG",null,null,null,"RAL","BOLTON NHS FOUNDATION TRUST",null,"RAL","BOLTON NHS FOUNDATION TRUST","RAL26","Birmingham Midland Eye Centre (Bmec) - RXK03"]
["Extremely Unlikely",null,"Q81","NHS England South East","Q81","NHS England West Midlands",null,null,null,null,null,null,"Unlikely",null,"RVR","EPSOM AND ST HELIER UNIVERSITY HOSPITALS NHS TRUST",null,null,null,null,null,null,"Likely",null,"RF4QH","Queen's Hospital - RF4QH",null,null,null,null,null,null,null,"Q71","RF4","BARKING, HAVERING AND REDBRIDGE UNIVERSITY HOSPITALS NHS TRUST","RF4QH","Queen's Hospital - RF4QH",null,null,null,"RAP","BRADFORD TEACHING HOSPITALS NHS FOUNDATION TRUST",null,"RAP","BRADFORD TEACHING HOSPITALS NHS FOUNDATION TRUST","RAPNM","Blackpool Victoria Hospital - RXL01"]
["Don't Know",null,"Q82","NHS England South Central","Q82","NHS England Yorkshire & Humber",null,null,null,null,null,null,"Extremely Unlikely",null,"RJ1","GUY'S AND ST THOMAS' NHS FOUNDATION TRUST",null,null,null,null,null,null,"Neither",null,"R1HNH","Newham General Hospital - R1HNH",null,null,null,null,null,null,null,"Q71","R1H","BARTS HEALTH NHS TRUST","R1HNH","Newham General Hospital - R1HNH",null,null,null,"RAS","BRIGHTON AND SUSSEX UNIVERSITY HOSPITALS NHS TRUST",null,"RAS","BRIGHTON AND SUSSEX UNIVERSITY HOSPITALS NHS TRUST","RAS01","Bradford Royal Infirmary - RAE01"]
[null,null,null,null,null,null,null,null,null,null,null,null,"Don't Know",null,"RQX","HOMERTON UNIVERSITY HOSPITAL NHS FOUNDATION TRUST",null,null,null,null,null,null,"Unlikely",null,"R1HM0","St Bartholomew's Hospital - R1HM0",null,null,null,null,null,null,null,"Q71","R1H","BARTS HEALTH NHS TRUST","R1HM0","St Bartholomew's Hospital - R1HM0",null,null,null,"RAX","BUCKINGHAMSHIRE HEALTHCARE NHS TRUST",null,"RAX","BUCKINGHAMSHIRE HEALTHCARE NHS TRUST","RAX01","Bristol Eye Hospital - RA708"]
[null,null,"code and name linked",null,"alphabeticalized lists code and name not linked",null,null,null,null,null,null,null,"SMS/Text / Smartphone App",null,"RYJ","IMPERIAL COLLEGE HEALTHCARE NHS TRUST",null,null,null,null,null,null,"Extremely Unlikely",null,"R1H12","The Royal London Hospital - R1H12",null,null,null,null,null,null,null,"Q71","R1H","BARTS HEALTH NHS TRUST","R1H12","The Royal London Hospital - R1H12",null,null,null,"RBA","BURTON HOSPITALS NHS FOUNDATION TRUST",null,"RBA","BURTON HOSPITALS NHS FOUNDATION TRUST","RBA11","Broomfield Hospital - RQ8L0"]
[null,null,null,null,null,null,null,null,null,null,null,null,"Electronic tablet/kiosk at point of discharge",null,"RJZ","KING'S COLLEGE HOSPITAL NHS FOUNDATION TRUST",null,null,null,null,null,null,"Don't Know",null,"R1HKH","Whipps Cross University Hospital - R1HKH",null,null,null,null,null,null,null,"Q71","R1H","BARTS HEALTH NHS TRUST","R1HKH","Whipps Cross University Hospital - R1HKH",null,null,null,"RBD","CALDERDALE AND HUDDERSFIELD NHS FOUNDATION TRUST",null,"RBD","CALDERDALE AND HUDDERSFIELD NHS FOUNDATION TRUST","RBD01","Buckland Hospital - RVV02"]
[null,null,null,null,null,null,null,null,null,null,null,null,"Paper / postcard at point of discharge",null,"RAX","KINGSTON HOSPITAL NHS FOUNDATION TRUST",null,null,null,null,null,null,null,null,"RQM01","Chelsea and Westminster Hospital - RQM01",null,null,null,null,null,null,null,"Q71","RQM","CHELSEA AND WESTMINSTER HOSPITAL NHS FOUNDATION TRUST","RQM01","Chelsea and Westminster Hospital - RQM01",null,null,null,"RBK","CAMBRIDGE UNIVERSITY HOSPITALS NHS FOUNDATION TRUST",null,"RBK","CAMBRIDGE UNIVERSITY HOSPITALS NHS FOUNDATION TRUST","RBK02","Calderdale Royal Hospital - RWY02"]
[null,null,null,null,null,null,null,null,null,null,null,null,"Paper survey, sent to the patients home",null,"RJ2","LEWISHAM AND GREENWICH NHS TRUST",null,null,null,null,null,null,null,null,"RQMXXX","WiC_MIU - RQMXXX",null,null,null,null,null,null,null,"Q71","RQM","CHELSEA AND WESTMINSTER HOSPITAL NHS FOUNDATION TRUST","RQMXXX","WiC_MIU - RQMXXX",null,null,null,"RBL","CENTRAL MANCHESTER UNIVERSITY HOSPITALS NHS FOUNDATION TRUST",null,"RBL","CENTRAL MANCHESTER UNIVERSITY HOSPITALS NHS FOUNDATION TRUST","RBL14","Charing Cross Hospital - RYJ02"]
[null,null,null,null,null,null,null,null,null,null,null,null,"Telephone survey once patient is home",null,"R1K","LONDON NORTH WEST HEALTHCARE NHS TRUST",null,null,null,null,null,null,null,null,"RJ611","Mayday University Hospital - RJ611",null,null,null,null,null,null,null,"Q71","RJ6","CROYDON HEALTH SERVICES NHS TRUST","RJ611","Mayday University Hospital - RJ611",null,null,null,"RBN","CHELSEA AND WESTMINSTER HOSPITAL NHS FOUNDATION TRUST",null,"RBN","CHELSEA AND WESTMINSTER HOSPITAL NHS FOUNDATION TRUST","RBN01","Chelsea and Westminster Hospital - RQM01"]
[null,null,null,null,null,null,null,null,null,null,null,null,"Online survey once patient is home",null,"RP6","MOORFIELDS EYE HOSPITAL NHS FOUNDATION TRUST",null,null,null,null,null,null,null,null,"RVR50","Epsom Hospital - RVR50",null,null,null,null,null,null,null,"Q71","RVR","EPSOM AND ST HELIER UNIVERSITY HOSPITALS NHS TRUST","RVR50","Epsom Hospital - RVR50",null,null,null,"RBT","CHESTERFIELD ROYAL HOSPITAL NHS FOUNDATION TRUST",null,"RBT","CHESTERFIELD ROYAL HOSPITAL NHS FOUNDATION TRUST","RBT20","Cheltenham General Hospital - RTE01"]
[null,null,null,null,null,null,null,null,null,null,null,null,"Other",null,"RAP","NORTH MIDDLESEX UNIVERSITY HOSPITAL NHS TRUST",null,null,null,null,null,null,null,null,"RVR05","St Helier Hospital - RVR05",null,null,null,null,null,null,null,"Q71","RVR","EPSOM AND ST HELIER UNIVERSITY HOSPITALS NHS TRUST","RVR05","St Helier Hospital - RVR05",null,null,null,"RBZ","CITY HOSPITALS SUNDERLAND NHS FOUNDATION TRUST",null,"RBZ","CITY HOSPITALS SUNDERLAND NHS FOUNDATION TRUST","RBZ12","Chesterfield Royal Hospital - RFSDA"]
[null,null,null,null,null,null,null,null,null,null,null,null,null,null,"RAL","ROYAL FREE LONDON NHS FOUNDATION TRUST",null,null,null,null,null,null,null,null,"RVR06","Sutton Hospital - RVR06",null,null,null,null,null,null,null,"Q71","RVR","EPSOM AND ST HELIER UNIVERSITY HOSPITALS NHS TRUST","RVR06","Sutton Hospital - RVR06",null,null,null,"RC1","COLCHESTER HOSPITAL UNIVERSITY NHS FOUNDATION TRUST",null,"RC1","COLCHESTER HOSPITAL UNIVERSITY NHS FOUNDATION TRUST","RC110","Chorley and South Ribble Hospital - RXN01"]
[null,null,null,null,null,null,null,null,null,null,null,null,null,null,"RJ7","ST GEORGE'S UNIVERSITY HOSPITALS NHS FOUNDATION TRUST",null,null,null,null,null,null,null,null,"RJ122","St Thomas' Hospital - RJ122",null,null,null,null,null,null,null,"Q71","RJ1","GUY'S AND ST THOMAS' NHS FOUNDATION TRUST","RJ122","St Thomas' Hospital - RJ122",null,null,null,"RC9","COUNTESS OF CHESTER HOSPITAL NHS FOUNDATION TRUST",null,"RC9","COUNTESS OF CHESTER HOSPITAL NHS FOUNDATION TRUST","RC971","Colchester General Hospital - RDEE4"]
[null,null,null,null,null,null,null,null,null,null,null,null,null,null,"RAS","THE HILLINGDON HOSPITALS NHS FOUNDATION TRUST",null,null,null,null,null,null,null,null,"RJ1XXX","WiC_MIU - RJ1XXX",null,null,null,null,null,null,null,"Q71","RJ1","GUY'S AND ST THOMAS' NHS FOUNDATION TRUST","RJ1XXX","WiC_MIU - RJ1XXX",null,null,null,"RCB","COUNTY DURHAM AND DARLINGTON NHS FOUNDATION TRUST",null,"RCB","COUNTY DURHAM AND DARLINGTON NHS FOUNDATION TRUST","RCBCA","Congleton War Memorial Hospital - RJN63"]
[null,null,null,null,null,null,null,null,null,null,null,null,null,null,"RKE","THE WHITTINGTON HOSPITAL NHS TRUST",null,null,null,null,null,null,null,null,"RQXM1","Homerton University Hospital - RQXM1",null,null,null,null,null,null,null,"Q71","RQX","HOMERTON UNIVERSITY HOSPITAL NHS FOUNDATION TRUST","RQXM1","Homerton University Hospital - RQXM1",null,null,null,"RCD","CROYDON HEALTH SERVICES NHS TRUST",null,"RCD","CROYDON HEALTH SERVICES NHS TRUST","RCD01","Conquest Hospital - RXC01"]
[null,null,null,null,null,null,null,null,null,null,null,null,null,null,"RRV","UNIVERSITY COLLEGE LONDON HOSPITALS NHS FOUNDATION TRUST",null,null,null,null,null,null,null,null,"RYJ02","Charing Cross Hospital - RYJ02",null,null,null,null,null,null,null,"Q71","RYJ","IMPERIAL COLLEGE HEALTHCARE NHS TRUST","RYJ02","Charing Cross Hospital - RYJ02",null,null,null,"RCF","DARTFORD AND GRAVESHAM NHS TRUST",null,"RCF","DARTFORD AND GRAVESHAM NHS TRUST","RCF22","Countess Of Chester Hospital - RJR05"]
[null,null,null,null,null,null,null,null,null,null,null,null,null,null,"RFW","WEST MIDDLESEX UNIVERSITY HOSPITAL NHS TRUST",null,null,null,null,null,null,null,null,"RYJ01","St Mary's Hospital (HQ) - RYJ01",null,null,null,null,null,null,null,"Q71","RYJ","IMPERIAL COLLEGE HEALTHCARE NHS TRUST","RYJ01","St Mary's Hospital (HQ) - RYJ01",null,null,null,"RCU","DERBY TEACHING HOSPITALS NHS FOUNDATION TRUST",null,"RCU","DERBY TEACHING HOSPITALS NHS FOUNDATION TRUST","RCUEF","County Hospital - RJE09"]
[null,null,null,null,null,null,null,null,null,null,null,null,null,null,"RCF","AIREDALE NHS FOUNDATION TRUST",null,null,null,null,null,null,null,null,"RYJ07","Western Eye Hospital - RYJ07",null,null,null,null,null,null,null,"Q71","RYJ","IMPERIAL COLLEGE HEALTHCARE NHS TRUST","RYJ07","Western Eye Hospital - RYJ07",null,null,null,"RCX","DONCASTER AND BASSETLAW HOSPITALS NHS FOUNDATION TRUST",null,"RCX","DONCASTER AND BASSETLAW HOSPITALS NHS FOUNDATION TRUST","RCX70","Cumberland Infirmary - RNLAY"]
[null,null,null,null,null,null,null,null,null,null,null,null,null,null,"RFF","BARNSLEY HOSPITAL NHS FOUNDATION TRUST",null,null,null,null,null,null,null,null,"RYJXXX","WiC_MIU - RYJXXX",null,null,null,null,null,null,null,"Q71","RYJ","IMPERIAL COLLEGE HEALTHCARE NHS TRUST","RYJXXX","WiC_MIU - RYJXXX",null,null,null,"RD1","DORSET COUNTY HOSPITAL NHS FOUNDATION TRUST",null,"RD1","DORSET COUNTY HOSPITAL NHS FOUNDATION TRUST","RD130","Darent Valley Hospital - RN707"]
[null,null,null,null,null,null,null,null,null,null,null,null,null,null,"RAE","BRADFORD TEACHING HOSPITALS NHS FOUNDATION TRUST",null,null,null,null,null,null,null,null,"RJZ33","Kings College Dental Hospital - RJZ33",null,null,null,null,null,null,null,"Q71","RJZ","KING'S COLLEGE HOSPITAL NHS FOUNDATION TRUST","RJZ33","Kings College Dental Hospital - RJZ33",null,null,null,"RD3","EAST AND NORTH HERTFORDSHIRE NHS TRUST",null,"RD3","EAST AND NORTH HERTFORDSHIRE NHS TRUST","RD304","Darlington Memorial Hospital - RXPDA"]
[null,null,null,null,null,null,null,null,null,null,null,null,null,null,"RWY","CALDERDALE AND HUDDERSFIELD NHS FOUNDATION TRUST",null,null,null,null,null,null,null,null,"RJZ01","King's College Hospital (Denmark Hill) - RJZ01",null,null,null,null,null,null,null,"Q71","RJZ","KING'S COLLEGE HOSPITAL NHS FOUNDATION TRUST","RJZ01","King's College Hospital (Denmark Hill) - RJZ01",null,null,null,"RD8","EAST CHESHIRE NHS TRUST",null,"RD8","EAST CHESHIRE NHS TRUST","RD816","Derriford Hospital - RK950"]
[null,null,null,null,null,null,null,null,null,null,null,null,null,null,"RP5","DONCASTER AND BASSETLAW HOSPITALS NHS FOUNDATION TRUST",null,null,null,null,null,null,null,null,"RJZ30","Princess Royal University Hospital - RJZ30",null,null,null,null,null,null,null,"Q71","RJZ","KING'S COLLEGE HOSPITAL NHS FOUNDATION TRUST","RJZ30","Princess Royal University Hospital - RJZ30",null,null,null,"RDD","EAST KENT HOSPITALS UNIVERSITY NHS FOUNDATION TRUST",null,"RDD","EAST KENT HOSPITALS UNIVERSITY NHS FOUNDATION TRUST","RDDH0","Dewsbury and District Hospital - RXF10"]
[null,null,null,null,null,null,null,null,null,null,null,null,null,null,"RCD","HARROGATE AND DISTRICT NHS FOUNDATION TRUST",null,null,null,null,null,null,null,null,"RAX01","Kingston Hospital - RAX01",null,null,null,null,null,null,null,"Q71","RAX","KINGSTON HOSPITAL NHS FOUNDATION TRUST","RAX01","Kingston Hospital - RAX01",null,null,null,"RDE","EAST LANCASHIRE HOSPITALS NHS TRUST",null,"RDE","EAST LANCASHIRE HOSPITALS NHS TRUST","RDEE4","Diana, Princess Of Wales Hospital - RJL30"]
[null,null,null,null,null,null,null,null,null,null,null,null,null,null,"RWA","HULL AND EAST YORKSHIRE HOSPITALS NHS TRUST",null,null,null,null,null,null,null,null,"RJ231","Queen Elizabeth Hospital - RJ231",null,null,null,null,null,null,null,"Q71","RJ2","LEWISHAM AND GREENWICH NHS TRUST","RJ231","Queen Elizabeth Hospital - RJ231",null,null,null,"RDU","EAST SUSSEX HEALTHCARE NHS TRUST",null,"RDU","EAST SUSSEX HEALTHCARE NHS TRUST","RDU01","Dorset County Hospital - RBD01"]
[null,null,null,null,null,null,null,null,null,null,null,null,null,null,"RR8","LEEDS TEACHING HOSPITALS NHS TRUST",null,null,null,null,null,null,null,null,"RJ224","University Hospital Lewisham - RJ224",null,null,null,null,null,null,null,"Q71","RJ2","LEWISHAM AND GREENWICH NHS TRUST","RJ224","University Hospital Lewisham - RJ224",null,null,null,"RDZ","EPSOM AND ST HELIER UNIVERSITY HOSPITALS NHS TRUST",null,"RDZ","EPSOM AND ST HELIER UNIVERSITY HOSPITALS NHS TRUST","RDZ20","Ealing Hospital - R1K04"]
[null,null,null,null,null,null,null,null,null,null,null,null,null,null,"RXF","MID YORKSHIRE HOSPITALS NHS TRUST",null,null,null,null,null,null,null,null,"R1K04","Ealing Hospital - R1K04",null,null,null,null,null,null,null,"Q71","R1K","LONDON NORTH WEST HEALTHCARE NHS TRUST","R1K04","Ealing Hospital - R1K04",null,null,null,"RE9","FRIMLEY HEALTH NHS FOUNDATION TRUST",null,"RE9","FRIMLEY HEALTH NHS FOUNDATION TRUST","RE9GA","East Surrey Hospital - RTP04"]
[null,null,null,null,null,null,null,null,null,null,null,null,null,null,"RJL","NORTHERN LINCOLNSHIRE AND GOOLE NHS FOUNDATION TRUST",null,null,null,null,null,null,null,null,"R1K01","Northwick Park Hospital - R1K01",null,null,null,null,null,null,null,"Q71","R1K","LONDON NORTH WEST HEALTHCARE NHS TRUST","R1K01","Northwick Park Hospital - R1K01",null,null,null,"REF","GATESHEAD HEALTH NHS FOUNDATION TRUST",null,"REF","GATESHEAD HEALTH NHS FOUNDATION TRUST","REF12","Epsom Hospital - RVR50"]
[null,null,null,null,null,null,null,null,null,null,null,null,null,null,"RCU","SHEFFIELD CHILDREN'S NHS FOUNDATION TRUST",null,null,null,null,null,null,null,null,"RP601","Moorfields Eye Hospital (City Road) - RP601",null,null,null,null,null,null,null,"Q71","RP6","MOORFIELDS EYE HOSPITAL NHS FOUNDATION TRUST","RP601","Moorfields Eye Hospital (City Road) - RP601",null,null,null,"REM","GEORGE ELIOT HOSPITAL NHS TRUST",null,"REM","GEORGE ELIOT HOSPITAL NHS TRUST","REM21","Fairfield General Hospital - RW601"]
[null,null,null,null,null,null,null,null,null,null,null,null,null,null,"RHQ","SHEFFIELD TEACHING HOSPITALS NHS FOUNDATION TRUST",null,null,null,null,null,null,null,null,"RAPNM","North Middlesex Hospital - RAPNM",null,null,null,null,null,null,null,"Q71","RAP","NORTH MIDDLESEX UNIVERSITY HOSPITAL NHS TRUST","RAPNM","North Middlesex Hospital - RAPNM",null,null,null,"REP","GLOUCESTERSHIRE HOSPITALS NHS FOUNDATION TRUST",null,"REP","GLOUCESTERSHIRE HOSPITALS NHS FOUNDATION TRUST","REP01","Friarage Hospital Site - RTR45"]
[null,null,null,null,null,null,null,null,null,null,null,null,null,null,"RFR","THE ROTHERHAM NHS FOUNDATION TRUST",null,null,null,null,null,null,null,null,"RAL26","Barnet Hospital - RAL26",null,null,null,null,null,null,null,"Q71","RAL","ROYAL FREE LONDON NHS FOUNDATION TRUST","RAL26","Barnet Hospital - RAL26",null,null,null,"RF4","GREAT WESTERN HOSPITALS NHS FOUNDATION TRUST",null,"RF4","GREAT WESTERN HOSPITALS NHS FOUNDATION TRUST","RF4DG","Frimley Park Hospital - RDU01"]
[null,null,null,null,null,null,null,null,null,null,null,null,null,null,"RCB","YORK TEACHING HOSPITAL NHS FOUNDATION TRUST",null,null,null,null,null,null,null,null,"RAL01","Royal Free Hospital - RAL01",null,null,null,null,null,null,null,"Q71","RAL","ROYAL FREE LONDON NHS FOUNDATION TRUST","RAL01","Royal Free Hospital - RAL01",null,null,null,"RFF","GUY'S AND ST THOMAS' NHS FOUNDATION TRUST",null,"RFF","GUY'S AND ST THOMAS' NHS FOUNDATION TRUST","RFFAA","Furness General Hospital - RTXBU"]
[null,null,null,null,null,null,null,null,null,null,null,null,null,null,"RXL","BLACKPOOL TEACHING HOSPITALS NHS FOUNDATION TRUST",null,null,null,null,null,null,null,null,"RJ701","St George's Hospital (Tooting) - RJ701",null,null,null,null,null,null,null,"Q71","RJ7","ST GEORGE'S UNIVERSITY HOSPITALS NHS FOUNDATION TRUST","RJ701","St George's Hospital (Tooting) - RJ701",null,null,null,"RFR","HAMPSHIRE HOSPITALS NHS FOUNDATION TRUST",null,"RFR","HAMPSHIRE HOSPITALS NHS FOUNDATION TRUST","RFRPA","George Eliot Hospital - Acute Services - RLT01"]
[null,null,null,null,null,null,null,null,null,null,null,null,null,null,"RMC","BOLTON NHS FOUNDATION TRUST",null,null,null,null,null,null,null,null,"RAS01","Hillingdon Hospital - RAS01",null,null,null,null,null,null,null,"Q71","RAS","THE HILLINGDON HOSPITALS NHS FOUNDATION TRUST","RAS01","Hillingdon Hospital - RAS01",null,null,null,"RFS","HARROGATE AND DISTRICT NHS FOUNDATION TRUST",null,"RFS","HARROGATE AND DISTRICT NHS FOUNDATION TRUST","RFSDA","Good Hope Hospital - RR105"]
[null,null,null,null,null,null,null,null,null,null,null,null,null,null,"RW3","CENTRAL MANCHESTER UNIVERSITY HOSPITALS NHS FOUNDATION TRUST",null,null,null,null,null,null,null,null,"RAS02","Mount Vernon Hospital Site - RAS02",null,null,null,null,null,null,null,"Q71","RAS","THE HILLINGDON HOSPITALS NHS FOUNDATION TRUST","RAS02","Mount Vernon Hospital Site - RAS02",null,null,null,"RFW","HEART OF ENGLAND NHS FOUNDATION TRUST",null,"RFW","HEART OF ENGLAND NHS FOUNDATION TRUST","RFW01","Grantham and District Hospital - RWDLP"]
[null,null,null,null,null,null,null,null,null,null,null,null,null,null,"RXR","EAST LANCASHIRE HOSPITALS NHS TRUST",null,null,null,null,null,null,null,null,"RKEQ4","The Whittington Hospital - RKEQ4",null,null,null,null,null,null,null,"Q71","RKE","THE WHITTINGTON HOSPITAL NHS TRUST","RKEQ4","The Whittington Hospital - RKEQ4",null,null,null,"RGN","HINCHINGBROOKE HEALTH CARE NHS TRUST",null,"RGN","HINCHINGBROOKE HEALTH CARE NHS TRUST","RGN80","Halton Hospital - RWWHG"]
[null,null,null,null,null,null,null,null,null,null,null,null,null,null,"RXN","LANCASHIRE TEACHING HOSPITALS NHS FOUNDATION TRUST",null,null,null,null,null,null,null,null,"RRV03","University College Hospital - RRV03",null,null,null,null,null,null,null,"Q71","RRV","UNIVERSITY COLLEGE LONDON HOSPITALS NHS FOUNDATION TRUST","RRV03","University College Hospital - RRV03",null,null,null,"RGP","HOMERTON UNIVERSITY HOSPITAL NHS FOUNDATION TRUST",null,"RGP","HOMERTON UNIVERSITY HOSPITAL NHS FOUNDATION TRUST","RGP75","Harrogate District Hospital - RCD01"]
[null,null,null,null,null,null,null,null,null,null,null,null,null,null,"RW6","PENNINE ACUTE HOSPITALS NHS TRUST",null,null,null,null,null,null,null,null,"RFW01","West Middlesex University Hospital - RFW01",null,null,null,null,null,null,null,"Q71","RFW","WEST MIDDLESEX UNIVERSITY HOSPITAL NHS TRUST","RFW01","West Middlesex University Hospital - RFW01",null,null,null,"RGQ","HULL AND EAST YORKSHIRE HOSPITALS NHS TRUST",null,"RGQ","HULL AND EAST YORKSHIRE HOSPITALS NHS TRUST","RGQ02","Hereford County Hospital - RLQ01"]
[null,null,null,null,null,null,null,null,null,null,null,null,null,null,"RM3","SALFORD ROYAL NHS FOUNDATION TRUST",null,null,null,null,null,null,null,null,"RCF22","Airedale General Hospital - RCF22",null,null,null,null,null,null,null,"Q72","RCF","AIREDALE NHS FOUNDATION TRUST","RCF22","Airedale General Hospital - RCF22",null,null,null,"RGR","IMPERIAL COLLEGE HEALTHCARE NHS TRUST",null,"RGR","IMPERIAL COLLEGE HEALTHCARE NHS TRUST","RGR50","Hexham General Hospital - RTFDR"]
[null,null,null,null,null,null,null,null,null,null,null,null,null,null,"RWJ","STOCKPORT NHS FOUNDATION TRUST",null,null,null,null,null,null,null,null,"RFFAA","Barnsley Hospital NHS Foundation Trust HQ - RFFAA",null,null,null,null,null,null,null,"Q72","RFF","BARNSLEY HOSPITAL NHS FOUNDATION TRUST","RFFAA","Barnsley Hospital NHS Foundation Trust HQ - RFFAA",null,null,null,"RGT","IPSWICH HOSPITAL NHS TRUST",null,"RGT","IPSWICH HOSPITAL NHS TRUST","RGT01","Hillingdon Hospital - RAS01"]
[null,null,null,null,null,null,null,null,null,null,null,null,null,null,"RMP","TAMESIDE HOSPITAL NHS FOUNDATION TRUST",null,null,null,null,null,null,null,null,"RAE01","Bradford Royal Infirmary - RAE01",null,null,null,null,null,null,null,"Q72","RAE","BRADFORD TEACHING HOSPITALS NHS FOUNDATION TRUST","RAE01","Bradford Royal Infirmary - RAE01",null,null,null,"RH8","ISLE OF WIGHT NHS TRUST",null,"RH8","ISLE OF WIGHT NHS TRUST","RH801","Hinchingbrooke Hospital - RQQ31"]
[null,null,null,null,null,null,null,null,null,null,null,null,null,null,"RM2","UNIVERSITY HOSPITAL OF SOUTH MANCHESTER NHS FOUNDATION TRUST",null,null,null,null,null,null,null,null,"RWY02","Calderdale Royal Hospital - RWY02",null,null,null,null,null,null,null,"Q72","RWY","CALDERDALE AND HUDDERSFIELD NHS FOUNDATION TRUST","RWY02","Calderdale Royal Hospital - RWY02",null,null,null,"RHM","JAMES PAGET UNIVERSITY HOSPITALS NHS FOUNDATION TRUST",null,"RHM","JAMES PAGET UNIVERSITY HOSPITALS NHS FOUNDATION TRUST","RHM01","Homerton University Hospital - RQXM1"]
[null,null,null,null,null,null,null,null,null,null,null,null,null,null,"RRF","WRIGHTINGTON, WIGAN AND LEIGH NHS FOUNDATION TRUST",null,null,null,null,null,null,null,null,"RWY01","Huddersfield Royal Infirmary - RWY01",null,null,null,null,null,null,null,"Q72","RWY","CALDERDALE AND HUDDERSFIELD NHS FOUNDATION TRUST","RWY01","Huddersfield Royal Infirmary - RWY01",null,null,null,"RHQ","KETTERING GENERAL HOSPITAL NHS FOUNDATION TRUST",null,"RHQ","KETTERING GENERAL HOSPITAL NHS FOUNDATION TRUST","RHQNG","Horton General Hospital - RTH05"]
[null,null,null,null,null,null,null,null,null,null,null,null,null,null,"RLN","CITY HOSPITALS SUNDERLAND NHS FOUNDATION TRUST",null,null,null,null,null,null,null,null,"RP5BA","Bassetlaw Hospital - RP5BA",null,null,null,null,null,null,null,"Q72","RP5","DONCASTER AND BASSETLAW HOSPITALS NHS FOUNDATION TRUST","RP5BA","Bassetlaw Hospital - RP5BA",null,null,null,"RHU","KING'S COLLEGE HOSPITAL NHS FOUNDATION TRUST",null,"RHU","KING'S COLLEGE HOSPITAL NHS FOUNDATION TRUST","RHU03","Hull Royal Infirmary - RWA01"]
[null,null,null,null,null,null,null,null,null,null,null,null,null,null,"RXP","COUNTY DURHAM AND DARLINGTON NHS FOUNDATION TRUST",null,null,null,null,null,null,null,null,"RP5DR","Doncaster Royal Infirmary - RP5DR",null,null,null,null,null,null,null,"Q72","RP5","DONCASTER AND BASSETLAW HOSPITALS NHS FOUNDATION TRUST","RP5DR","Doncaster Royal Infirmary - RP5DR",null,null,null,"RHW","KINGSTON HOSPITAL NHS FOUNDATION TRUST",null,"RHW","KINGSTON HOSPITAL NHS FOUNDATION TRUST","RHW03","James Paget University Hospital - RGP75"]
[null,null,null,null,null,null,null,null,null,null,null,null,null,null,"RR7","GATESHEAD HEALTH NHS FOUNDATION TRUST",null,null,null,null,null,null,null,null,"RP5XXX","WiC_MIU - RP5XXX",null,null,null,null,null,null,null,"Q72","RP5","DONCASTER AND BASSETLAW HOSPITALS NHS FOUNDATION TRUST","RP5XXX","WiC_MIU - RP5XXX",null,null,null,"RJ1","LANCASHIRE TEACHING HOSPITALS NHS FOUNDATION TRUST",null,"RJ1","LANCASHIRE TEACHING HOSPITALS NHS FOUNDATION TRUST","RJ122","Kettering General Hospital - RNQ51"]
[null,null,null,null,null,null,null,null,null,null,null,null,null,null,"RNL","NORTH CUMBRIA UNIVERSITY HOSPITALS NHS TRUST",null,null,null,null,null,null,null,null,"RCD01","Harrogate District Hospital - RCD01",null,null,null,null,null,null,null,"Q72","RCD","HARROGATE AND DISTRICT NHS FOUNDATION TRUST","RCD01","Harrogate District Hospital - RCD01",null,null,null,"RJ2","LEEDS TEACHING HOSPITALS NHS TRUST",null,"RJ2","LEEDS TEACHING HOSPITALS NHS TRUST","RJ231","King Edward Vii Hospital - RHW03"]
[null,null,null,null,null,null,null,null,null,null,null,null,null,null,"RVW","NORTH TEES AND HARTLEPOOL NHS FOUNDATION TRUST",null,null,null,null,null,null,null,null,"RCDXXX","WiC_MIU - RCDXXX",null,null,null,null,null,null,null,"Q72","RCD","HARROGATE AND DISTRICT NHS FOUNDATION TRUST","RCDXXX","WiC_MIU - RCDXXX",null,null,null,"RJ6","LEWISHAM AND GREENWICH NHS TRUST",null,"RJ6","LEWISHAM AND GREENWICH NHS TRUST","RJ611","King George Hospital - RF4DG"]
[null,null,null,null,null,null,null,null,null,null,null,null,null,null,"RTF","NORTHUMBRIA HEALTHCARE NHS FOUNDATION TRUST",null,null,null,null,null,null,null,null,"RWA01","Hull Royal Infirmary - RWA01",null,null,null,null,null,null,null,"Q72","RWA","HULL AND EAST YORKSHIRE HOSPITALS NHS TRUST","RWA01","Hull Royal Infirmary - RWA01",null,null,null,"RJ7","LIVERPOOL WOMEN'S NHS FOUNDATION TRUST",null,"RJ7","LIVERPOOL WOMEN'S NHS FOUNDATION TRUST","RJ701","Kings College Dental Hospital - RJZ33"]
[null,null,null,null,null,null,null,null,null,null,null,null,null,null,"RTR","SOUTH TEES HOSPITALS NHS FOUNDATION TRUST",null,null,null,null,null,null,null,null,"RR801","Leeds General Infirmary - RR801",null,null,null,null,null,null,null,"Q72","RR8","LEEDS TEACHING HOSPITALS NHS TRUST","RR801","Leeds General Infirmary - RR801",null,null,null,"RJC","LONDON NORTH WEST HEALTHCARE NHS TRUST",null,"RJC","LONDON NORTH WEST HEALTHCARE NHS TRUST","RJC02","King's Mill Hospital - RK5BC"]
[null,null,null,null,null,null,null,null,null,null,null,null,null,null,"RE9","SOUTH TYNESIDE NHS FOUNDATION TRUST",null,null,null,null,null,null,null,null,"RR813","St James's University Hospital - RR813",null,null,null,null,null,null,null,"Q72","RR8","LEEDS TEACHING HOSPITALS NHS TRUST","RR813","St James's University Hospital - RR813",null,null,null,"RJE","LUTON AND DUNSTABLE UNIVERSITY HOSPITAL NHS FOUNDATION TRUST",null,"RJE","LUTON AND DUNSTABLE UNIVERSITY HOSPITAL NHS FOUNDATION TRUST","RJE09","Kingston Hospital - RAX01"]
[null,null,null,null,null,null,null,null,null,null,null,null,null,null,"RTD","THE NEWCASTLE UPON TYNE HOSPITALS NHS FOUNDATION TRUST",null,null,null,null,null,null,null,null,"RXF10","Dewsbury and District Hospital - RXF10",null,null,null,null,null,null,null,"Q72","RXF","MID YORKSHIRE HOSPITALS NHS TRUST","RXF10","Dewsbury and District Hospital - RXF10",null,null,null,"RJF","MAIDSTONE AND TUNBRIDGE WELLS NHS TRUST",null,"RJF","MAIDSTONE AND TUNBRIDGE WELLS NHS TRUST","RJF02","Leeds General Infirmary - RR801"]
[null,null,null,null,null,null,null,null,null,null,null,null,null,null,"RTX","UNIVERSITY HOSPITALS OF MORECAMBE BAY NHS FOUNDATION TRUST",null,null,null,null,null,null,null,null,"RXF05","Pinderfields General Hospital - RXF05",null,null,null,null,null,null,null,"Q72","RXF","MID YORKSHIRE HOSPITALS NHS TRUST","RXF05","Pinderfields General Hospital - RXF05",null,null,null,"RJL","MEDWAY NHS FOUNDATION TRUST",null,"RJL","MEDWAY NHS FOUNDATION TRUST","RJL30","Leicester Royal Infirmary - RWEAA"]
[null,null,null,null,null,null,null,null,null,null,null,null,null,null,"REM","AINTREE UNIVERSITY HOSPITAL NHS FOUNDATION TRUST",null,null,null,null,null,null,null,null,"RXF03","Pontefract General Infirmary - RXF03",null,null,null,null,null,null,null,"Q72","RXF","MID YORKSHIRE HOSPITALS NHS TRUST","RXF03","Pontefract General Infirmary - RXF03",null,null,null,"RJN","MID CHESHIRE HOSPITALS NHS FOUNDATION TRUST",null,"RJN","MID CHESHIRE HOSPITALS NHS FOUNDATION TRUST","RJN63","Leighton Hospital - RBT20"]
[null,null,null,null,null,null,null,null,null,null,null,null,null,null,"RJR","COUNTESS OF CHESTER HOSPITAL NHS FOUNDATION TRUST",null,null,null,null,null,null,null,null,"RJL30","Diana, Princess Of Wales Hospital - RJL30",null,null,null,null,null,null,null,"Q72","RJL","NORTHERN LINCOLNSHIRE AND GOOLE NHS FOUNDATION TRUST","RJL30","Diana, Princess Of Wales Hospital - RJL30",null,null,null,"RJR","MID ESSEX HOSPITAL SERVICES NHS TRUST",null,"RJR","MID ESSEX HOSPITAL SERVICES NHS TRUST","RJR05","Lister Hospital - RWH01"]
[null,null,null,null,null,null,null,null,null,null,null,null,null,null,"RJN","EAST CHESHIRE NHS TRUST",null,null,null,null,null,null,null,null,"RJL32","Scunthorpe General Hospital - RJL32",null,null,null,null,null,null,null,"Q72","RJL","NORTHERN LINCOLNSHIRE AND GOOLE NHS FOUNDATION TRUST","RJL32","Scunthorpe General Hospital - RJL32",null,null,null,"RJZ","MID YORKSHIRE HOSPITALS NHS TRUST",null,"RJZ","MID YORKSHIRE HOSPITALS NHS TRUST","RJZ33","Liverpool Womens Hospital - REP01"]
[null,null,null,null,null,null,null,null,null,null,null,null,null,null,"REP","LIVERPOOL WOMEN'S NHS FOUNDATION TRUST",null,null,null,null,null,null,null,null,"RJLXXX","WiC_MIU - RJLXXX",null,null,null,null,null,null,null,"Q72","RJL","NORTHERN LINCOLNSHIRE AND GOOLE NHS FOUNDATION TRUST","RJLXXX","WiC_MIU - RJLXXX",null,null,null,"RK5","MILTON KEYNES HOSPITAL NHS FOUNDATION TRUST",null,"RK5","MILTON KEYNES HOSPITAL NHS FOUNDATION TRUST","RK5BC","Luton and Dunstable Hospital - RC971"]
[null,null,null,null,null,null,null,null,null,null,null,null,null,null,"RBT","MID CHESHIRE HOSPITALS NHS FOUNDATION TRUST",null,null,null,null,null,null,null,null,"RCUEF","Sheffield Children's Hospital - RCUEF",null,null,null,null,null,null,null,"Q72","RCU","SHEFFIELD CHILDREN'S NHS FOUNDATION TRUST","RCUEF","Sheffield Children's Hospital - RCUEF",null,null,null,"RK9","MOORFIELDS EYE HOSPITAL NHS FOUNDATION TRUST",null,"RK9","MOORFIELDS EYE HOSPITAL NHS FOUNDATION TRUST","RK950","Maidstone District General Hospital - RWF03"]
[null,null,null,null,null,null,null,null,null,null,null,null,null,null,"RQ6","ROYAL LIVERPOOL AND BROADGREEN UNIVERSITY HOSPITALS NHS TRUST",null,null,null,null,null,null,null,null,"RHQNG","Northern General Hospital - RHQNG",null,null,null,null,null,null,null,"Q72","RHQ","SHEFFIELD TEACHING HOSPITALS NHS FOUNDATION TRUST","RHQNG","Northern General Hospital - RHQNG",null,null,null,"RKB","NORFOLK AND NORWICH UNIVERSITY HOSPITALS NHS FOUNDATION TRUST",null,"RKB","NORFOLK AND NORWICH UNIVERSITY HOSPITALS NHS FOUNDATION TRUST","RKB01","Manchester Royal Eye Hospital - RW3RE"]
[null,null,null,null,null,null,null,null,null,null,null,null,null,null,"RVY","SOUTHPORT AND ORMSKIRK HOSPITAL NHS TRUST",null,null,null,null,null,null,null,null,"RHQHH","Royal Hallamshire Hospital - RHQHH",null,null,null,null,null,null,null,"Q72","RHQ","SHEFFIELD TEACHING HOSPITALS NHS FOUNDATION TRUST","RHQHH","Royal Hallamshire Hospital - RHQHH",null,null,null,"RKE","NORTH BRISTOL NHS TRUST",null,"RKE","NORTH BRISTOL NHS TRUST","RKEQ4","Manor Hospital - RBK02"]
[null,null,null,null,null,null,null,null,null,null,null,null,null,null,"RBN","ST HELENS AND KNOWSLEY HOSPITALS NHS TRUST",null,null,null,null,null,null,null,null,"RHQXXX","WiC_MIU - RHQXXX",null,null,null,null,null,null,null,"Q72","RHQ","SHEFFIELD TEACHING HOSPITALS NHS FOUNDATION TRUST","RHQXXX","WiC_MIU - RHQXXX",null,null,null,"RL4","NORTH CUMBRIA UNIVERSITY HOSPITALS NHS TRUST",null,"RL4","NORTH CUMBRIA UNIVERSITY HOSPITALS NHS TRUST","RL403","Mayday University Hospital - RJ611"]
[null,null,null,null,null,null,null,null,null,null,null,null,null,null,"RWW","WARRINGTON AND HALTON HOSPITALS NHS FOUNDATION TRUST",null,null,null,null,null,null,null,null,"RFRPA","Rotherham District General Hospital - RFRPA",null,null,null,null,null,null,null,"Q72","RFR","THE ROTHERHAM NHS FOUNDATION TRUST","RFRPA","Rotherham District General Hospital - RFRPA",null,null,null,"RLN","NORTH MIDDLESEX UNIVERSITY HOSPITAL NHS TRUST",null,"RLN","NORTH MIDDLESEX UNIVERSITY HOSPITAL NHS TRUST","RLNGM","Medway Maritime Hospital - RPA02"]
[null,null,null,null,null,null,null,null,null,null,null,null,null,null,"RBL","WIRRAL UNIVERSITY TEACHING HOSPITAL NHS FOUNDATION TRUST",null,null,null,null,null,null,null,null,"RCBCA","Scarborough General Hospital - RCBCA",null,null,null,null,null,null,null,"Q72","RCB","YORK TEACHING HOSPITAL NHS FOUNDATION TRUST","RCBCA","Scarborough General Hospital - RCBCA",null,null,null,"RLQ","NORTH TEES AND HARTLEPOOL NHS FOUNDATION TRUST",null,"RLQ","NORTH TEES AND HARTLEPOOL NHS FOUNDATION TRUST","RLQ01","Milton Keynes Hospital - RD816"]
[null,null,null,null,null,null,null,null,null,null,null,null,null,null,"RJF","BURTON HOSPITALS NHS FOUNDATION TRUST",null,null,null,null,null,null,null,null,"RCB55","York Hospital - RCB55",null,null,null,null,null,null,null,"Q72","RCB","YORK TEACHING HOSPITAL NHS FOUNDATION TRUST","RCB55","York Hospital - RCB55",null,null,null,"RLT","NORTHAMPTON GENERAL HOSPITAL NHS TRUST",null,"RLT","NORTHAMPTON GENERAL HOSPITAL NHS TRUST","RLT01","Moorfields Eye Hospital (City Road) - RP601"]
[null,null,null,null,null,null,null,null,null,null,null,null,null,null,"RFS","CHESTERFIELD ROYAL HOSPITAL NHS FOUNDATION TRUST",null,null,null,null,null,null,null,null,"RXL01","Blackpool Victoria Hospital - RXL01",null,null,null,null,null,null,null,"Q73","RXL","BLACKPOOL TEACHING HOSPITALS NHS FOUNDATION TRUST","RXL01","Blackpool Victoria Hospital - RXL01",null,null,null,"RM1","NORTHERN DEVON HEALTHCARE NHS TRUST",null,"RM1","NORTHERN DEVON HEALTHCARE NHS TRUST","RM102","Musgrove Park Hospital - RBA11"]
[null,null,null,null,null,null,null,null,null,null,null,null,null,null,"RTG","DERBY TEACHING HOSPITALS NHS FOUNDATION TRUST",null,null,null,null,null,null,null,null,"RMC01","Royal Bolton Hospital - RMC01",null,null,null,null,null,null,null,"Q73","RMC","BOLTON NHS FOUNDATION TRUST","RMC01","Royal Bolton Hospital - RMC01",null,null,null,"RM2","NORTHERN LINCOLNSHIRE AND GOOLE NHS FOUNDATION TRUST",null,"RM2","NORTHERN LINCOLNSHIRE AND GOOLE NHS FOUNDATION TRUST","RM202","New Cross Hospital - RL403"]
[null,null,null,null,null,null,null,null,null,null,null,null,null,null,"RX1","NOTTINGHAM UNIVERSITY HOSPITALS NHS TRUST",null,null,null,null,null,null,null,null,"RW3RE","Manchester Royal Eye Hospital - RW3RE",null,null,null,null,null,null,null,"Q73","RW3","CENTRAL MANCHESTER UNIVERSITY HOSPITALS NHS FOUNDATION TRUST","RW3RE","Manchester Royal Eye Hospital - RW3RE",null,null,null,"RM3","NORTHUMBRIA HEALTHCARE NHS FOUNDATION TRUST",null,"RM3","NORTHUMBRIA HEALTHCARE NHS FOUNDATION TRUST","RM301","Newham General Hospital - R1HNH"]
[null,null,null,null,null,null,null,null,null,null,null,null,null,null,"RK5","SHERWOOD FOREST HOSPITALS NHS FOUNDATION TRUST",null,null,null,null,null,null,null,null,"RW3MR","Manchester Royal Infirmary - RW3MR",null,null,null,null,null,null,null,"Q73","RW3","CENTRAL MANCHESTER UNIVERSITY HOSPITALS NHS FOUNDATION TRUST","RW3MR","Manchester Royal Infirmary - RW3MR",null,null,null,"RMC","NOTTINGHAM UNIVERSITY HOSPITALS NHS TRUST",null,"RMC","NOTTINGHAM UNIVERSITY HOSPITALS NHS TRUST","RMC01","Norfolk and Norwich University Hospital - RM102"]
[null,null,null,null,null,null,null,null,null,null,null,null,null,null,"RXW","SHREWSBURY AND TELFORD HOSPITAL NHS TRUST",null,null,null,null,null,null,null,null,"RW3RC","Royal Manchester Children's Hospital - RW3RC",null,null,null,null,null,null,null,"Q73","RW3","CENTRAL MANCHESTER UNIVERSITY HOSPITALS NHS FOUNDATION TRUST","RW3RC","Royal Manchester Children's Hospital - RW3RC",null,null,null,"RMP","OXFORD UNIVERSITY HOSPITALS NHS TRUST",null,"RMP","OXFORD UNIVERSITY HOSPITALS NHS TRUST","RMP01","North Devon District Hospital - RBZ12"]
[null,null,null,null,null,null,null,null,null,null,null,null,null,null,"RJE","UNIVERSITY HOSPITALS OF NORTH MIDLANDS NHS TRUST",null,null,null,null,null,null,null,null,"RW3SM","St Mary's Hospital - RW3SM",null,null,null,null,null,null,null,"Q73","RW3","CENTRAL MANCHESTER UNIVERSITY HOSPITALS NHS FOUNDATION TRUST","RW3SM","St Mary's Hospital - RW3SM",null,null,null,"RN3","PENNINE ACUTE HOSPITALS NHS TRUST",null,"RN3","PENNINE ACUTE HOSPITALS NHS TRUST","RN325","North Middlesex Hospital - RAPNM"]
[null,null,null,null,null,null,null,null,null,null,null,null,null,null,"RQ3","BIRMINGHAM CHILDREN'S HOSPITAL NHS FOUNDATION TRUST",null,null,null,null,null,null,null,null,"RW3TR","Trafford General Hospital - RW3TR",null,null,null,null,null,null,null,"Q73","RW3","CENTRAL MANCHESTER UNIVERSITY HOSPITALS NHS FOUNDATION TRUST","RW3TR","Trafford General Hospital - RW3TR",null,null,null,"RN5","PETERBOROUGH AND STAMFORD HOSPITALS NHS FOUNDATION TRUST",null,"RN5","PETERBOROUGH AND STAMFORD HOSPITALS NHS FOUNDATION TRUST","RN542","Northampton General Hospital (Acute) - RNS01"]
[null,null,null,null,null,null,null,null,null,null,null,null,null,null,"RLT","GEORGE ELIOT HOSPITAL NHS TRUST",null,null,null,null,null,null,null,null,"RW3DH","University Dental Hospital - RW3DH",null,null,null,null,null,null,null,"Q73","RW3","CENTRAL MANCHESTER UNIVERSITY HOSPITALS NHS FOUNDATION TRUST","RW3DH","University Dental Hospital - RW3DH",null,null,null,"RN7","PLYMOUTH HOSPITALS NHS TRUST",null,"RN7","PLYMOUTH HOSPITALS NHS TRUST","RN707","Northern General Hospital - RHQNG"]
[null,null,null,null,null,null,null,null,null,null,null,null,null,null,"RR1","HEART OF ENGLAND NHS FOUNDATION TRUST",null,null,null,null,null,null,null,null,"RXR20","Royal Blackburn Hospital - RXR20",null,null,null,null,null,null,null,"Q73","RXR","EAST LANCASHIRE HOSPITALS NHS TRUST","RXR20","Royal Blackburn Hospital - RXR20",null,null,null,"RNA","POOLE HOSPITAL NHS FOUNDATION TRUST",null,"RNA","POOLE HOSPITAL NHS FOUNDATION TRUST","RNA01","Nottingham University Hospitals NHS Trust - Queen's Medical Centre Campus - RX1RA"]
[null,null,null,null,null,null,null,null,null,null,null,null,null,null,"RXK","SANDWELL AND WEST BIRMINGHAM HOSPITALS NHS TRUST",null,null,null,null,null,null,null,null,"RXN01","Chorley and South Ribble Hospital - RXN01",null,null,null,null,null,null,null,"Q73","RXN","LANCASHIRE TEACHING HOSPITALS NHS FOUNDATION TRUST","RXN01","Chorley and South Ribble Hospital - RXN01",null,null,null,"RNL","PORTSMOUTH HOSPITALS NHS TRUST",null,"RNL","PORTSMOUTH HOSPITALS NHS TRUST","RNLAY","Ormskirk and District General Hospital - RVY02"]
[null,null,null,null,null,null,null,null,null,null,null,null,null,null,"RJC","SOUTH WARWICKSHIRE NHS FOUNDATION TRUST",null,null,null,null,null,null,null,null,"RXN02","Royal Preston Hospital - RXN02",null,null,null,null,null,null,null,"Q73","RXN","LANCASHIRE TEACHING HOSPITALS NHS FOUNDATION TRUST","RXN02","Royal Preston Hospital - RXN02",null,null,null,"RNQ","ROYAL BERKSHIRE NHS FOUNDATION TRUST",null,"RNQ","ROYAL BERKSHIRE NHS FOUNDATION TRUST","RNQ51","Peterborough City Hospital - RGN80"]
[null,null,null,null,null,null,null,null,null,null,null,null,null,null,"RNA","THE DUDLEY GROUP NHS FOUNDATION TRUST",null,null,null,null,null,null,null,null,"RW601","Fairfield General Hospital - RW601",null,null,null,null,null,null,null,"Q73","RW6","PENNINE ACUTE HOSPITALS NHS TRUST","RW601","Fairfield General Hospital - RW601",null,null,null,"RNS","ROYAL CORNWALL HOSPITALS NHS TRUST",null,"RNS","ROYAL CORNWALL HOSPITALS NHS TRUST","RNS01","Poole General Hospital NHS Trust HQ - RD304"]
[null,null,null,null,null,null,null,null,null,null,null,null,null,null,"RL4","THE ROYAL WOLVERHAMPTON NHS TRUST",null,null,null,null,null,null,null,null,"RW602","North Manchester General Hospital - RW602",null,null,null,null,null,null,null,"Q73","RW6","PENNINE ACUTE HOSPITALS NHS TRUST","RW602","North Manchester General Hospital - RW602",null,null,null,"RNZ","ROYAL DEVON AND EXETER NHS FOUNDATION TRUST",null,"RNZ","ROYAL DEVON AND EXETER NHS FOUNDATION TRUST","RNZ02","Princess Alexandra Hospital - RQWG0"]
[null,null,null,null,null,null,null,null,null,null,null,null,null,null,"RRK","UNIVERSITY HOSPITALS BIRMINGHAM NHS FOUNDATION TRUST",null,null,null,null,null,null,null,null,"RW604","Rochdale Infirmary - RW604",null,null,null,null,null,null,null,"Q73","RW6","PENNINE ACUTE HOSPITALS NHS TRUST","RW604","Rochdale Infirmary - RW604",null,null,null,"RP5","ROYAL FREE LONDON NHS FOUNDATION TRUST",null,"RP5","ROYAL FREE LONDON NHS FOUNDATION TRUST","RP5BA","Princess Royal Hospital - RXH09"]
[null,null,null,null,null,null,null,null,null,null,null,null,null,null,"RKB","UNIVERSITY HOSPITALS COVENTRY AND WARWICKSHIRE NHS TRUST",null,null,null,null,null,null,null,null,"RW603","Royal Oldham Hospital - RW603",null,null,null,null,null,null,null,"Q73","RW6","PENNINE ACUTE HOSPITALS NHS TRUST","RW603","Royal Oldham Hospital - RW603",null,null,null,"RP6","ROYAL LIVERPOOL AND BROADGREEN UNIVERSITY HOSPITALS NHS TRUST",null,"RP6","ROYAL LIVERPOOL AND BROADGREEN UNIVERSITY HOSPITALS NHS TRUST","RP601","Queen Alexandra Hospital - RHU03"]
[null,null,null,null,null,null,null,null,null,null,null,null,null,null,"RBK","WALSALL HEALTHCARE NHS TRUST",null,null,null,null,null,null,null,null,"RM301","Salford Royal - RM301",null,null,null,null,null,null,null,"Q73","RM3","SALFORD ROYAL NHS FOUNDATION TRUST","RM301","Salford Royal - RM301",null,null,null,"RPA","ROYAL SURREY COUNTY HOSPITAL NHS FOUNDATION TRUST",null,"RPA","ROYAL SURREY COUNTY HOSPITAL NHS FOUNDATION TRUST","RPA02","Queen Elizabeth Hospital - RJ231"]
[null,null,null,null,null,null,null,null,null,null,null,null,null,null,"RWP","WORCESTERSHIRE ACUTE HOSPITALS NHS TRUST",null,null,null,null,null,null,null,null,"RWJ09","Stepping Hill Hospital - RWJ09",null,null,null,null,null,null,null,"Q73","RWJ","STOCKPORT NHS FOUNDATION TRUST","RWJ09","Stepping Hill Hospital - RWJ09",null,null,null,"RQ3","ROYAL UNITED HOSPITALS BATH NHS FOUNDATION TRUST",null,"RQ3","ROYAL UNITED HOSPITALS BATH NHS FOUNDATION TRUST","RQ3XXX","Queen Elizabeth Hospital - RR7EN"]
[null,null,null,null,null,null,null,null,null,null,null,null,null,null,"RLQ","WYE VALLEY NHS TRUST",null,null,null,null,null,null,null,null,"RMP01","Tameside General Hospital - RMP01",null,null,null,null,null,null,null,"Q73","RMP","TAMESIDE HOSPITAL NHS FOUNDATION TRUST","RMP01","Tameside General Hospital - RMP01",null,null,null,"RQ6","SALFORD ROYAL NHS FOUNDATION TRUST",null,"RQ6","SALFORD ROYAL NHS FOUNDATION TRUST","RQ617","Queen Elizabeth Hospital Birmingham - RRK15"]
[null,null,null,null,null,null,null,null,null,null,null,null,null,null,"RC1","BEDFORD HOSPITAL NHS TRUST",null,null,null,null,null,null,null,null,"RM202","Wythenshawe Hospital - RM202",null,null,null,null,null,null,null,"Q73","RM2","UNIVERSITY HOSPITAL OF SOUTH MANCHESTER NHS FOUNDATION TRUST","RM202","Wythenshawe Hospital - RM202",null,null,null,"RQ8","SALISBURY NHS FOUNDATION TRUST",null,"RQ8","SALISBURY NHS FOUNDATION TRUST","RQ8L0","Queen's Hospital, Burton Upon Trent - RJF02"]
[null,null,null,null,null,null,null,null,null,null,null,null,null,null,"RWH","EAST AND NORTH HERTFORDSHIRE NHS TRUST",null,null,null,null,null,null,null,null,"RRF02","Royal Albert Edward Infirmary - RRF02",null,null,null,null,null,null,null,"Q73","RRF","WRIGHTINGTON, WIGAN AND LEIGH NHS FOUNDATION TRUST","RRF02","Royal Albert Edward Infirmary - RRF02",null,null,null,"RQM","SANDWELL AND WEST BIRMINGHAM HOSPITALS NHS TRUST",null,"RQM","SANDWELL AND WEST BIRMINGHAM HOSPITALS NHS TRUST","RQM01","Rotherham District General Hospital - RFRPA"]
[null,null,null,null,null,null,null,null,null,null,null,null,null,null,"RNQ","KETTERING GENERAL HOSPITAL NHS FOUNDATION TRUST",null,null,null,null,null,null,null,null,"RLNGM","Sunderland Eye Infirmary - RLNGM",null,null,null,null,null,null,null,"Q74","RLN","CITY HOSPITALS SUNDERLAND NHS FOUNDATION TRUST","RLNGM","Sunderland Eye Infirmary - RLNGM",null,null,null,"RQQ","SHEFFIELD CHILDREN'S NHS FOUNDATION TRUST",null,"RQQ","SHEFFIELD CHILDREN'S NHS FOUNDATION TRUST","RQQ31","Royal Albert Edward Infirmary - RRF02"]
[null,null,null,null,null,null,null,null,null,null,null,null,null,null,"RC9","LUTON AND DUNSTABLE UNIVERSITY HOSPITAL NHS FOUNDATION TRUST",null,null,null,null,null,null,null,null,"RLNGL","Sunderland Royal Hospital - RLNGL",null,null,null,null,null,null,null,"Q74","RLN","CITY HOSPITALS SUNDERLAND NHS FOUNDATION TRUST","RLNGL","Sunderland Royal Hospital - RLNGL",null,null,null,"RQW","SHEFFIELD TEACHING HOSPITALS NHS FOUNDATION TRUST",null,"RQW","SHEFFIELD TEACHING HOSPITALS NHS FOUNDATION TRUST","RQWG0","Royal Blackburn Hospital - RXR20"]
[null,null,null,null,null,null,null,null,null,null,null,null,null,null,"RD8","MILTON KEYNES HOSPITAL NHS FOUNDATION TRUST",null,null,null,null,null,null,null,null,"RLNXXX","WiC_MIU - RLNXXX",null,null,null,null,null,null,null,"Q74","RLN","CITY HOSPITALS SUNDERLAND NHS FOUNDATION TRUST","RLNXXX","WiC_MIU - RLNXXX",null,null,null,"RQX","SHERWOOD FOREST HOSPITALS NHS FOUNDATION TRUST",null,"RQX","SHERWOOD FOREST HOSPITALS NHS FOUNDATION TRUST","RQXM1","Royal Bolton Hospital - RMC01"]
[null,null,null,null,null,null,null,null,null,null,null,null,null,null,"RNS","NORTHAMPTON GENERAL HOSPITAL NHS TRUST",null,null,null,null,null,null,null,null,"RXPDA","Darlington Memorial Hospital - RXPDA",null,null,null,null,null,null,null,"Q74","RXP","COUNTY DURHAM AND DARLINGTON NHS FOUNDATION TRUST","RXPDA","Darlington Memorial Hospital - RXPDA",null,null,null,"RR1","SHREWSBURY AND TELFORD HOSPITAL NHS TRUST",null,"RR1","SHREWSBURY AND TELFORD HOSPITAL NHS TRUST","RR105","Royal Bournemouth General Hospital - RDZ20"]
[null,null,null,null,null,null,null,null,null,null,null,null,null,null,"RWD","UNITED LINCOLNSHIRE HOSPITALS NHS TRUST",null,null,null,null,null,null,null,null,"RXPCP","University Hospital Of North Durham - RXPCP",null,null,null,null,null,null,null,"Q74","RXP","COUNTY DURHAM AND DARLINGTON NHS FOUNDATION TRUST","RXPCP","University Hospital Of North Durham - RXPCP",null,null,null,"RR7","SOUTH DEVON HEALTHCARE NHS FOUNDATION TRUST",null,"RR7","SOUTH DEVON HEALTHCARE NHS FOUNDATION TRUST","RR7EN","Royal Cornwall Hospital (Treliske) - REF12"]
[null,null,null,null,null,null,null,null,null,null,null,null,null,null,"RWE","UNIVERSITY HOSPITALS OF LEICESTER NHS TRUST",null,null,null,null,null,null,null,null,"RXPXXX","WiC_MIU - RXPXXX",null,null,null,null,null,null,null,"Q74","RXP","COUNTY DURHAM AND DARLINGTON NHS FOUNDATION TRUST","RXPXXX","WiC_MIU - RXPXXX",null,null,null,"RR8","SOUTH TEES HOSPITALS NHS FOUNDATION TRUST",null,"RR8","SOUTH TEES HOSPITALS NHS FOUNDATION TRUST","RR801","Royal Derby Hospital - RTGFG"]
[null,null,null,null,null,null,null,null,null,null,null,null,null,null,"RWG","WEST HERTFORDSHIRE HOSPITALS NHS TRUST",null,null,null,null,null,null,null,null,"RR7EN","Queen Elizabeth Hospital - RR7EN",null,null,null,null,null,null,null,"Q74","RR7","GATESHEAD HEALTH NHS FOUNDATION TRUST","RR7EN","Queen Elizabeth Hospital - RR7EN",null,null,null,"RRF","SOUTH TYNESIDE NHS FOUNDATION TRUST",null,"RRF","SOUTH TYNESIDE NHS FOUNDATION TRUST","RRF02","Royal Devon and Exeter Hospital (Wonford) - RH801"]
[null,null,null,null,null,null,null,null,null,null,null,null,null,null,"RDD","BASILDON AND THURROCK UNIVERSITY HOSPITALS NHS FOUNDATION TRUST",null,null,null,null,null,null,null,null,"RNLAY","Cumberland Infirmary - RNLAY",null,null,null,null,null,null,null,"Q74","RNL","NORTH CUMBRIA UNIVERSITY HOSPITALS NHS TRUST","RNLAY","Cumberland Infirmary - RNLAY",null,null,null,"RRK","SOUTH WARWICKSHIRE NHS FOUNDATION TRUST",null,"RRK","SOUTH WARWICKSHIRE NHS FOUNDATION TRUST","RRK15","Royal Shrewsbury Hospital - RXWAS"]
[null,null,null,null,null,null,null,null,null,null,null,null,null,null,"RGT","CAMBRIDGE UNIVERSITY HOSPITALS NHS FOUNDATION TRUST",null,null,null,null,null,null,null,null,"RNLBX","West Cumberland Hospital - RNLBX",null,null,null,null,null,null,null,"Q74","RNL","NORTH CUMBRIA UNIVERSITY HOSPITALS NHS TRUST","RNLBX","West Cumberland Hospital - RNLBX",null,null,null,"RRV","SOUTHEND UNIVERSITY HOSPITAL NHS FOUNDATION TRUST",null,"RRV","SOUTHEND UNIVERSITY HOSPITAL NHS FOUNDATION TRUST","RRV03","Royal Surrey County Hospital - RA201"]
[null,null,null,null,null,null,null,null,null,null,null,null,null,null,"RDE","COLCHESTER HOSPITAL UNIVERSITY NHS FOUNDATION TRUST",null,null,null,null,null,null,null,null,"RVWAE","University Hospital Of North Tees - RVWAE",null,null,null,null,null,null,null,"Q74","RVW","NORTH TEES AND HARTLEPOOL NHS FOUNDATION TRUST","RVWAE","University Hospital Of North Tees - RVWAE",null,null,null,"RTD","SOUTHPORT AND ORMSKIRK HOSPITAL NHS TRUST",null,"RTD","SOUTHPORT AND ORMSKIRK HOSPITAL NHS TRUST","RTD02","Royal United Hospital - RD130"]
[null,null,null,null,null,null,null,null,null,null,null,null,null,null,"RQQ","HINCHINGBROOKE HEALTH CARE NHS TRUST",null,null,null,null,null,null,null,null,"RVWXXX","WiC_MIU - RVWXXX",null,null,null,null,null,null,null,"Q74","RVW","NORTH TEES AND HARTLEPOOL NHS FOUNDATION TRUST","RVWXXX","WiC_MIU - RVWXXX",null,null,null,"RTE","ST GEORGE'S UNIVERSITY HOSPITALS NHS FOUNDATION TRUST",null,"RTE","ST GEORGE'S UNIVERSITY HOSPITALS NHS FOUNDATION TRUST","RTE01","Russells Hall Hospital - RNA01"]
[null,null,null,null,null,null,null,null,null,null,null,null,null,null,"RGQ","IPSWICH HOSPITAL NHS TRUST",null,null,null,null,null,null,null,null,"RTFDR","Hexham General Hospital - RTFDR",null,null,null,null,null,null,null,"Q74","RTF","NORTHUMBRIA HEALTHCARE NHS FOUNDATION TRUST","RTFDR","Hexham General Hospital - RTFDR",null,null,null,"RTF","ST HELENS AND KNOWSLEY HOSPITALS NHS TRUST",null,"RTF","ST HELENS AND KNOWSLEY HOSPITALS NHS TRUST","RTFDR","Salford Royal - RM301"]
[null,null,null,null,null,null,null,null,null,null,null,null,null,null,"RGP","JAMES PAGET UNIVERSITY HOSPITALS NHS FOUNDATION TRUST",null,null,null,null,null,null,null,null,"RTFFS","North Tyneside General Hospital - RTFFS",null,null,null,null,null,null,null,"Q74","RTF","NORTHUMBRIA HEALTHCARE NHS FOUNDATION TRUST","RTFFS","North Tyneside General Hospital - RTFFS",null,null,null,"RTG","STOCKPORT NHS FOUNDATION TRUST",null,"RTG","STOCKPORT NHS FOUNDATION TRUST","RTGFG","Salisbury District Hospital - RNZ02"]
[null,null,null,null,null,null,null,null,null,null,null,null,null,null,"RQ8","MID ESSEX HOSPITAL SERVICES NHS TRUST",null,null,null,null,null,null,null,null,"RTF86","The Northumbria - RTF86",null,null,null,null,null,null,null,"Q74","RTF","NORTHUMBRIA HEALTHCARE NHS FOUNDATION TRUST","RTF86","The Northumbria - RTF86",null,null,null,"RTH","SURREY AND SUSSEX HEALTHCARE NHS TRUST",null,"RTH","SURREY AND SUSSEX HEALTHCARE NHS TRUST","RTH05","Scarborough General Hospital - RCBCA"]
[null,null,null,null,null,null,null,null,null,null,null,null,null,null,"RM1","NORFOLK AND NORWICH UNIVERSITY HOSPITALS NHS FOUNDATION TRUST",null,null,null,null,null,null,null,null,"RTFED","Wansbeck Hospital - RTFED",null,null,null,null,null,null,null,"Q74","RTF","NORTHUMBRIA HEALTHCARE NHS FOUNDATION TRUST","RTFED","Wansbeck Hospital - RTFED",null,null,null,"RTK","TAMESIDE HOSPITAL NHS FOUNDATION TRUST",null,"RTK","TAMESIDE HOSPITAL NHS FOUNDATION TRUST","RTK01","Sheffield Children's Hospital - RCUEF"]
[null,null,null,null,null,null,null,null,null,null,null,null,null,null,"RGN","PETERBOROUGH AND STAMFORD HOSPITALS NHS FOUNDATION TRUST",null,null,null,null,null,null,null,null,"RTFXXX","WiC_MIU - RTFXXX",null,null,null,null,null,null,null,"Q74","RTF","NORTHUMBRIA HEALTHCARE NHS FOUNDATION TRUST","RTFXXX","WiC_MIU - RTFXXX",null,null,null,"RTP","TAUNTON AND SOMERSET NHS FOUNDATION TRUST",null,"RTP","TAUNTON AND SOMERSET NHS FOUNDATION TRUST","RTP04","South Tyneside District Hospital - RE9GA"]
[null,null,null,null,null,null,null,null,null,null,null,null,null,null,"RAJ","SOUTHEND UNIVERSITY HOSPITAL NHS FOUNDATION TRUST",null,null,null,null,null,null,null,null,"RTR45","Friarage Hospital Site - RTR45",null,null,null,null,null,null,null,"Q74","RTR","SOUTH TEES HOSPITALS NHS FOUNDATION TRUST","RTR45","Friarage Hospital Site - RTR45",null,null,null,"RTR","THE DUDLEY GROUP NHS FOUNDATION TRUST",null,"RTR","THE DUDLEY GROUP NHS FOUNDATION TRUST","RTR45","Southampton General Hospital - RHM01"]
[null,null,null,null,null,null,null,null,null,null,null,null,null,null,"RQW","THE PRINCESS ALEXANDRA HOSPITAL NHS TRUST",null,null,null,null,null,null,null,null,"RTRAT","The James Cook University Hospital - RTRAT",null,null,null,null,null,null,null,"Q74","RTR","SOUTH TEES HOSPITALS NHS FOUNDATION TRUST","RTRAT","The James Cook University Hospital - RTRAT",null,null,null,"RTX","THE HILLINGDON HOSPITALS NHS FOUNDATION TRUST",null,"RTX","THE HILLINGDON HOSPITALS NHS FOUNDATION TRUST","RTXBU","Southend Hospital - RAJ01"]
[null,null,null,null,null,null,null,null,null,null,null,null,null,null,"RCX","THE QUEEN ELIZABETH HOSPITAL, KING'S LYNN, NHS FOUNDATION TRUST",null,null,null,null,null,null,null,null,"RTRXXX","WiC_MIU - RTRXXX",null,null,null,null,null,null,null,"Q74","RTR","SOUTH TEES HOSPITALS NHS FOUNDATION TRUST","RTRXXX","WiC_MIU - RTRXXX",null,null,null,"RVJ","THE NEWCASTLE UPON TYNE HOSPITALS NHS FOUNDATION TRUST",null,"RVJ","THE NEWCASTLE UPON TYNE HOSPITALS NHS FOUNDATION TRUST","RVJ01","Southmead Hospital - RVJ01"]
[null,null,null,null,null,null,null,null,null,null,null,null,null,null,"RGR","WEST SUFFOLK NHS FOUNDATION TRUST",null,null,null,null,null,null,null,null,"RE9GA","South Tyneside District Hospital - RE9GA",null,null,null,null,null,null,null,"Q74","RE9","SOUTH TYNESIDE NHS FOUNDATION TRUST","RE9GA","South Tyneside District Hospital - RE9GA",null,null,null,"RVR","THE PRINCESS ALEXANDRA HOSPITAL NHS TRUST",null,"RVR","THE PRINCESS ALEXANDRA HOSPITAL NHS TRUST","RVR50","St George's Hospital (Tooting) - RJ701"]
[null,null,null,null,null,null,null,null,null,null,null,null,null,null,"RVJ","NORTH BRISTOL NHS TRUST",null,null,null,null,null,null,null,null,"RTD02","The Royal Victoria Infirmary - RTD02",null,null,null,null,null,null,null,"Q74","RTD","THE NEWCASTLE UPON TYNE HOSPITALS NHS FOUNDATION TRUST","RTD02","The Royal Victoria Infirmary - RTD02",null,null,null,"RVV","THE QUEEN ELIZABETH HOSPITAL, KING'S LYNN, NHS FOUNDATION TRUST",null,"RVV","THE QUEEN ELIZABETH HOSPITAL, KING'S LYNN, NHS FOUNDATION TRUST","RVV02","St Mary's Hospital - R1F01"]
[null,null,null,null,null,null,null,null,null,null,null,null,null,null,"RBZ","NORTHERN DEVON HEALTHCARE NHS TRUST",null,null,null,null,null,null,null,null,"RTXBU","Furness General Hospital - RTXBU",null,null,null,null,null,null,null,"Q74","RTX","UNIVERSITY HOSPITALS OF MORECAMBE BAY NHS FOUNDATION TRUST","RTXBU","Furness General Hospital - RTXBU",null,null,null,"RVW","THE ROTHERHAM NHS FOUNDATION TRUST",null,"RVW","THE ROTHERHAM NHS FOUNDATION TRUST","RVWAE","St Peter's Hospital - RTK01"]
[null,null,null,null,null,null,null,null,null,null,null,null,null,null,"RK9","PLYMOUTH HOSPITALS NHS TRUST",null,null,null,null,null,null,null,null,"RTX02","Royal Lancaster Infirmary - RTX02",null,null,null,null,null,null,null,"Q74","RTX","UNIVERSITY HOSPITALS OF MORECAMBE BAY NHS FOUNDATION TRUST","RTX02","Royal Lancaster Infirmary - RTX02",null,null,null,"RVY","THE ROYAL BOURNEMOUTH AND CHRISTCHURCH HOSPITALS NHS FOUNDATION TRUST",null,"RVY","THE ROYAL BOURNEMOUTH AND CHRISTCHURCH HOSPITALS NHS FOUNDATION TRUST","RVY02","St Richard's Hospital - RYR16"]
[null,null,null,null,null,null,null,null,null,null,null,null,null,null,"REF","ROYAL CORNWALL HOSPITALS NHS TRUST",null,null,null,null,null,null,null,null,"REM21","University Hospital Aintree - REM21",null,null,null,null,null,null,null,"Q75","REM","AINTREE UNIVERSITY HOSPITAL NHS FOUNDATION TRUST","REM21","University Hospital Aintree - REM21",null,null,null,"RW3","THE ROYAL WOLVERHAMPTON NHS TRUST",null,"RW3","THE ROYAL WOLVERHAMPTON NHS TRUST","RW3RE","St Thomas' Hospital - RJ122"]
[null,null,null,null,null,null,null,null,null,null,null,null,null,null,"RH8","ROYAL DEVON AND EXETER NHS FOUNDATION TRUST",null,null,null,null,null,null,null,null,"RJR05","Countess Of Chester Hospital - RJR05",null,null,null,null,null,null,null,"Q75","RJR","COUNTESS OF CHESTER HOSPITAL NHS FOUNDATION TRUST","RJR05","Countess Of Chester Hospital - RJR05",null,null,null,"RW6","THE WHITTINGTON HOSPITAL NHS TRUST",null,"RW6","THE WHITTINGTON HOSPITAL NHS TRUST","RW601","Stepping Hill Hospital - RWJ09"]
[null,null,null,null,null,null,null,null,null,null,null,null,null,null,"RA9","SOUTH DEVON HEALTHCARE NHS FOUNDATION TRUST",null,null,null,null,null,null,null,null,"RJN63","Congleton War Memorial Hospital - RJN63",null,null,null,null,null,null,null,"Q75","RJN","EAST CHESHIRE NHS TRUST","RJN63","Congleton War Memorial Hospital - RJN63",null,null,null,"RWA","UNITED LINCOLNSHIRE HOSPITALS NHS TRUST",null,"RWA","UNITED LINCOLNSHIRE HOSPITALS NHS TRUST","RWA01","Stoke Mandeville Hospital - RXQ02"]
[null,null,null,null,null,null,null,null,null,null,null,null,null,null,"RBA","TAUNTON AND SOMERSET NHS FOUNDATION TRUST",null,null,null,null,null,null,null,null,"RJN71","Macclesfield District General Hospital - RJN71",null,null,null,null,null,null,null,"Q75","RJN","EAST CHESHIRE NHS TRUST","RJN71","Macclesfield District General Hospital - RJN71",null,null,null,"RWD","UNIVERSITY COLLEGE LONDON HOSPITALS NHS FOUNDATION TRUST",null,"RWD","UNIVERSITY COLLEGE LONDON HOSPITALS NHS FOUNDATION TRUST","RWDLP","Sunderland Eye Infirmary - RLNGM"]
[null,null,null,null,null,null,null,null,null,null,null,null,null,null,"RA7","UNIVERSITY HOSPITALS BRISTOL NHS FOUNDATION TRUST",null,null,null,null,null,null,null,null,"REP01","Liverpool Womens Hospital - REP01",null,null,null,null,null,null,null,"Q75","REP","LIVERPOOL WOMEN'S NHS FOUNDATION TRUST","REP01","Liverpool Womens Hospital - REP01",null,null,null,"RWE","UNIVERSITY HOSPITAL OF SOUTH MANCHESTER NHS FOUNDATION TRUST",null,"RWE","UNIVERSITY HOSPITAL OF SOUTH MANCHESTER NHS FOUNDATION TRUST","RWEAA","Tameside General Hospital - RMP01"]
[null,null,null,null,null,null,null,null,null,null,null,null,null,null,"RA3","WESTON AREA HEALTH NHS TRUST",null,null,null,null,null,null,null,null,"RBT20","Leighton Hospital - RBT20",null,null,null,null,null,null,null,"Q75","RBT","MID CHESHIRE HOSPITALS NHS FOUNDATION TRUST","RBT20","Leighton Hospital - RBT20",null,null,null,"RWF","UNIVERSITY HOSPITAL SOUTHAMPTON NHS FOUNDATION TRUST",null,"RWF","UNIVERSITY HOSPITAL SOUTHAMPTON NHS FOUNDATION TRUST","RWF03","The Great Western Hospital - RN325"]
[null,null,null,null,null,null,null,null,null,null,null,null,null,null,"RA4","YEOVIL DISTRICT HOSPITAL NHS FOUNDATION TRUST",null,null,null,null,null,null,null,null,"RBTXXX","WiC_MIU - RBTXXX",null,null,null,null,null,null,null,"Q75","RBT","MID CHESHIRE HOSPITALS NHS FOUNDATION TRUST","RBTXXX","WiC_MIU - RBTXXX",null,null,null,"RWG","UNIVERSITY HOSPITALS BIRMINGHAM NHS FOUNDATION TRUST",null,"RWG","UNIVERSITY HOSPITALS BIRMINGHAM NHS FOUNDATION TRUST","RWG02","The Ipswich Hospital NHS Trust - RGQ02"]
[null,null,null,null,null,null,null,null,null,null,null,null,null,null,"RTK","ASHFORD AND ST PETER'S HOSPITALS NHS FOUNDATION TRUST",null,null,null,null,null,null,null,null,"RQ617","The Royal Liverpool University Hospital - RQ617",null,null,null,null,null,null,null,"Q75","RQ6","ROYAL LIVERPOOL AND BROADGREEN UNIVERSITY HOSPITALS NHS TRUST","RQ617","The Royal Liverpool University Hospital - RQ617",null,null,null,"RWH","UNIVERSITY HOSPITALS BRISTOL NHS FOUNDATION TRUST",null,"RWH","UNIVERSITY HOSPITALS BRISTOL NHS FOUNDATION TRUST","RWH01","The Queen Elizabeth Hospital - RCX70"]
[null,null,null,null,null,null,null,null,null,null,null,null,null,null,"RXH","BRIGHTON AND SUSSEX UNIVERSITY HOSPITALS NHS TRUST",null,null,null,null,null,null,null,null,"RVY02","Ormskirk and District General Hospital - RVY02",null,null,null,null,null,null,null,"Q75","RVY","SOUTHPORT AND ORMSKIRK HOSPITAL NHS TRUST","RVY02","Ormskirk and District General Hospital - RVY02",null,null,null,"RWJ","UNIVERSITY HOSPITALS COVENTRY AND WARWICKSHIRE NHS TRUST",null,"RWJ","UNIVERSITY HOSPITALS COVENTRY AND WARWICKSHIRE NHS TRUST","RWJ09","The Royal Liverpool University Hospital - RQ617"]
[null,null,null,null,null,null,null,null,null,null,null,null,null,null,"RN7","DARTFORD AND GRAVESHAM NHS TRUST",null,null,null,null,null,null,null,null,"RVY01","Southport and Formby District General Hospital - RVY01",null,null,null,null,null,null,null,"Q75","RVY","SOUTHPORT AND ORMSKIRK HOSPITAL NHS TRUST","RVY01","Southport and Formby District General Hospital - RVY01",null,null,null,"RWP","UNIVERSITY HOSPITALS OF LEICESTER NHS TRUST",null,"RWP","UNIVERSITY HOSPITALS OF LEICESTER NHS TRUST","RWP01","The Royal Victoria Infirmary - RTD02"]
[null,null,null,null,null,null,null,null,null,null,null,null,null,null,"RVV","EAST KENT HOSPITALS UNIVERSITY NHS FOUNDATION TRUST",null,null,null,null,null,null,null,null,"RVYXXX","WiC_MIU - RVYXXX",null,null,null,null,null,null,null,"Q75","RVY","SOUTHPORT AND ORMSKIRK HOSPITAL NHS TRUST","RVYXXX","WiC_MIU - RVYXXX",null,null,null,"RWW","UNIVERSITY HOSPITALS OF MORECAMBE BAY NHS FOUNDATION TRUST",null,"RWW","UNIVERSITY HOSPITALS OF MORECAMBE BAY NHS FOUNDATION TRUST","RWWHG","The Whittington Hospital - RKEQ4"]
[null,null,null,null,null,null,null,null,null,null,null,null,null,null,"RXC","EAST SUSSEX HEALTHCARE NHS TRUST",null,null,null,null,null,null,null,null,"RBN01","Whiston Hospital - RBN01",null,null,null,null,null,null,null,"Q75","RBN","ST HELENS AND KNOWSLEY HOSPITALS NHS TRUST","RBN01","Whiston Hospital - RBN01",null,null,null,"RWY","UNIVERSITY HOSPITALS OF NORTH MIDLANDS NHS TRUST",null,"RWY","UNIVERSITY HOSPITALS OF NORTH MIDLANDS NHS TRUST","RWY02","Torbay Hospital - RA901"]
[null,null,null,null,null,null,null,null,null,null,null,null,null,null,"RDU","FRIMLEY HEALTH NHS FOUNDATION TRUST",null,null,null,null,null,null,null,null,"RWWHG","Halton Hospital - RWWHG",null,null,null,null,null,null,null,"Q75","RWW","WARRINGTON AND HALTON HOSPITALS NHS FOUNDATION TRUST","RWWHG","Halton Hospital - RWWHG",null,null,null,"RX1","WALSALL HEALTHCARE NHS TRUST",null,"RX1","WALSALL HEALTHCARE NHS TRUST","RX1RA","University College Hospital - RRV03"]
[null,null,null,null,null,null,null,null,null,null,null,null,null,null,"RWF","MAIDSTONE AND TUNBRIDGE WELLS NHS TRUST",null,null,null,null,null,null,null,null,"RWWWH","Warrington Hospital - RWWWH",null,null,null,null,null,null,null,"Q75","RWW","WARRINGTON AND HALTON HOSPITALS NHS FOUNDATION TRUST","RWWWH","Warrington Hospital - RWWWH",null,null,null,"RXC","WARRINGTON AND HALTON HOSPITALS NHS FOUNDATION TRUST",null,"RXC","WARRINGTON AND HALTON HOSPITALS NHS FOUNDATION TRUST","RXC01","University Hospital (Coventry) - RKB01"]
[null,null,null,null,null,null,null,null,null,null,null,null,null,null,"RPA","MEDWAY NHS FOUNDATION TRUST",null,null,null,null,null,null,null,null,"RBL14","Arrowe Park Hospital - RBL14",null,null,null,null,null,null,null,"Q75","RBL","WIRRAL UNIVERSITY TEACHING HOSPITAL NHS FOUNDATION TRUST","RBL14","Arrowe Park Hospital - RBL14",null,null,null,"RXF","WEST HERTFORDSHIRE HOSPITALS NHS TRUST",null,"RXF","WEST HERTFORDSHIRE HOSPITALS NHS TRUST","RXF10","University Hospital Aintree - REM21"]
[null,null,null,null,null,null,null,null,null,null,null,null,null,null,"RA2","ROYAL SURREY COUNTY HOSPITAL NHS FOUNDATION TRUST",null,null,null,null,null,null,null,null,"RJF02","Queen's Hospital, Burton Upon Trent - RJF02",null,null,null,null,null,null,null,"Q76","RJF","BURTON HOSPITALS NHS FOUNDATION TRUST","RJF02","Queen's Hospital, Burton Upon Trent - RJF02",null,null,null,"RXH","WEST MIDDLESEX UNIVERSITY HOSPITAL NHS TRUST",null,"RXH","WEST MIDDLESEX UNIVERSITY HOSPITAL NHS TRUST","RXH09","University Hospital Of North Tees - RVWAE"]
[null,null,null,null,null,null,null,null,null,null,null,null,null,null,"RTP","SURREY AND SUSSEX HEALTHCARE NHS TRUST",null,null,null,null,null,null,null,null,"RJFXXX","WiC_MIU - RJFXXX",null,null,null,null,null,null,null,"Q76","RJF","BURTON HOSPITALS NHS FOUNDATION TRUST","RJFXXX","WiC_MIU - RJFXXX",null,null,null,"RXK","WEST SUFFOLK NHS FOUNDATION TRUST",null,"RXK","WEST SUFFOLK NHS FOUNDATION TRUST","RXK03","Warwick Hospital - RJC02"]
[null,null,null,null,null,null,null,null,null,null,null,null,null,null,"RYR","WESTERN SUSSEX HOSPITALS NHS FOUNDATION TRUST",null,null,null,null,null,null,null,null,"RFSDA","Chesterfield Royal Hospital - RFSDA",null,null,null,null,null,null,null,"Q76","RFS","CHESTERFIELD ROYAL HOSPITAL NHS FOUNDATION TRUST","RFSDA","Chesterfield Royal Hospital - RFSDA",null,null,null,"RXL","WESTERN SUSSEX HOSPITALS NHS FOUNDATION TRUST",null,"RXL","WESTERN SUSSEX HOSPITALS NHS FOUNDATION TRUST","RXL01","Watford General Hospital - RWG02"]
[null,null,null,null,null,null,null,null,null,null,null,null,null,null,"RXQ","BUCKINGHAMSHIRE HEALTHCARE NHS TRUST",null,null,null,null,null,null,null,null,"RTGFG","Royal Derby Hospital - RTGFG",null,null,null,null,null,null,null,"Q76","RTG","DERBY TEACHING HOSPITALS NHS FOUNDATION TRUST","RTGFG","Royal Derby Hospital - RTGFG",null,null,null,"RXN","WESTON AREA HEALTH NHS TRUST",null,"RXN","WESTON AREA HEALTH NHS TRUST","RXN01","West Middlesex University Hospital - RFW01"]
[null,null,null,null,null,null,null,null,null,null,null,null,null,null,"RTE","GLOUCESTERSHIRE HOSPITALS NHS FOUNDATION TRUST",null,null,null,null,null,null,null,null,"RX1RA","Nottingham University Hospitals NHS Trust - Queen's Medical Centre Campus - RX1RA",null,null,null,null,null,null,null,"Q76","RX1","NOTTINGHAM UNIVERSITY HOSPITALS NHS TRUST","RX1RA","Nottingham University Hospitals NHS Trust - Queen's Medical Centre Campus - RX1RA",null,null,null,"RXP","WIRRAL UNIVERSITY TEACHING HOSPITAL NHS FOUNDATION TRUST",null,"RXP","WIRRAL UNIVERSITY TEACHING HOSPITAL NHS FOUNDATION TRUST","RXPDA","West Suffolk Hospital - RGR50"]
[null,null,null,null,null,null,null,null,null,null,null,null,null,null,"RN3","GREAT WESTERN HOSPITALS NHS FOUNDATION TRUST",null,null,null,null,null,null,null,null,"RK5BC","King's Mill Hospital - RK5BC",null,null,null,null,null,null,null,"Q76","RK5","SHERWOOD FOREST HOSPITALS NHS FOUNDATION TRUST","RK5BC","King's Mill Hospital - RK5BC",null,null,null,"RXQ","WORCESTERSHIRE ACUTE HOSPITALS NHS TRUST",null,"RXQ","WORCESTERSHIRE ACUTE HOSPITALS NHS TRUST","RXQ02","Weston General Hospital - RA301"]
[null,null,null,null,null,null,null,null,null,null,null,null,null,null,"RTH","OXFORD UNIVERSITY HOSPITALS NHS TRUST",null,null,null,null,null,null,null,null,"RK5XXX","WiC_MIU - RK5XXX",null,null,null,null,null,null,null,"Q76","RK5","SHERWOOD FOREST HOSPITALS NHS FOUNDATION TRUST","RK5XXX","WiC_MIU - RK5XXX",null,null,null,"RXR","WRIGHTINGTON, WIGAN AND LEIGH NHS FOUNDATION TRUST",null,"RXR","WRIGHTINGTON, WIGAN AND LEIGH NHS FOUNDATION TRUST","RXR20","Whiston Hospital - RBN01"]
[null,null,null,null,null,null,null,null,null,null,null,null,null,null,"RHW","ROYAL BERKSHIRE NHS FOUNDATION TRUST",null,null,null,null,null,null,null,null,"RXWAS","Royal Shrewsbury Hospital - RXWAS",null,null,null,null,null,null,null,"Q76","RXW","SHREWSBURY AND TELFORD HOSPITAL NHS TRUST","RXWAS","Royal Shrewsbury Hospital - RXWAS",null,null,null,"RXW","WYE VALLEY NHS TRUST",null,"RXW","WYE VALLEY NHS TRUST","RXWAS","WiC_MIU - RQ3XXX"]
[null,null,null,null,null,null,null,null,null,null,null,null,null,null,"RD1","ROYAL UNITED HOSPITALS BATH NHS FOUNDATION TRUST",null,null,null,null,null,null,null,null,"RXWAT","The Princess Royal Hospital - RXWAT",null,null,null,null,null,null,null,"Q76","RXW","SHREWSBURY AND TELFORD HOSPITAL NHS TRUST","RXWAT","The Princess Royal Hospital - RXWAT",null,null,null,"RYJ","YEOVIL DISTRICT HOSPITAL NHS FOUNDATION TRUST",null,"RYJ","YEOVIL DISTRICT HOSPITAL NHS FOUNDATION TRUST","RYJ02","Wythenshawe Hospital - RM202"]
[null,null,null,null,null,null,null,null,null,null,null,null,null,null,"RNZ","SALISBURY NHS FOUNDATION TRUST",null,null,null,null,null,null,null,null,"RJE09","County Hospital - RJE09",null,null,null,null,null,null,null,"Q76","RJE","UNIVERSITY HOSPITALS OF NORTH MIDLANDS NHS TRUST","RJE09","County Hospital - RJE09",null,null,null,"RYR","YORK TEACHING HOSPITAL NHS FOUNDATION TRUST",null,"RYR","YORK TEACHING HOSPITAL NHS FOUNDATION TRUST","RYR16","Yeovil District Hospital - RA430"]
[null,null,null,null,null,null,null,null,null,null,null,null,null,null,null,null,null,null,null,null,null,null,null,null,"RJE01","Royal Stoke University Hospital - RJE01",null,null,null,null,null,null,null,"Q76","RJE","UNIVERSITY HOSPITALS OF NORTH MIDLANDS NHS TRUST","RJE01","Royal Stoke University Hospital - RJE01"]
[null,null,null,null,null,null,null,null,null,null,null,null,null,null,null,null,null,null,null,null,null,null,null,null,"RQ3XXX","WiC_MIU - RQ3XXX",null,null,null,null,null,null,null,"Q77","RQ3","BIRMINGHAM CHILDREN'S HOSPITAL NHS FOUNDATION TRUST","RQ3XXX","WiC_MIU - RQ3XXX"]
[null,null,null,null,null,null,null,null,null,null,null,null,null,null,null,null,null,null,null,null,null,null,null,null,"RLT01","George Eliot Hospital - Acute Services - RLT01",null,null,null,null,null,null,null,"Q77","RLT","GEORGE ELIOT HOSPITAL NHS TRUST","RLT01","George Eliot Hospital - Acute Services - RLT01"]
[null,null,null,null,null,null,null,null,null,null,null,null,null,null,null,null,null,null,null,null,null,null,null,null,"RR105","Good Hope Hospital - RR105",null,null,null,null,null,null,null,"Q77","RR1","HEART OF ENGLAND NHS FOUNDATION TRUST","RR105","Good Hope Hospital - RR105"]
[null,null,null,null,null,null,null,null,null,null,null,null,null,null,null,null,null,null,null,null,null,null,null,null,"RR101","Heartlands Hospital - RR101",null,null,null,null,null,null,null,"Q77","RR1","HEART OF ENGLAND NHS FOUNDATION TRUST","RR101","Heartlands Hospital - RR101"]
[null,null,null,null,null,null,null,null,null,null,null,null,null,null,null,null,null,null,null,null,null,null,null,null,"RR1XXX","WiC_MIU - RR1XXX",null,null,null,null,null,null,null,"Q77","RR1","HEART OF ENGLAND NHS FOUNDATION TRUST","RR1XXX","WiC_MIU - RR1XXX"]
[null,null,null,null,null,null,null,null,null,null,null,null,null,null,null,null,null,null,null,null,null,null,null,null,"RXK03","Birmingham Midland Eye Centre (Bmec) - RXK03",null,null,null,null,null,null,null,"Q77","RXK","SANDWELL AND WEST BIRMINGHAM HOSPITALS NHS TRUST","RXK03","Birmingham Midland Eye Centre (Bmec) - RXK03"]
[null,null,null,null,null,null,null,null,null,null,null,null,null,null,null,null,null,null,null,null,null,null,null,null,"RXK02","City Hospital - RXK02",null,null,null,null,null,null,null,"Q77","RXK","SANDWELL AND WEST BIRMINGHAM HOSPITALS NHS TRUST","RXK02","City Hospital - RXK02"]
[null,null,null,null,null,null,null,null,null,null,null,null,null,null,null,null,null,null,null,null,null,null,null,null,"RXK01","Sandwell General Hospital - RXK01",null,null,null,null,null,null,null,"Q77","RXK","SANDWELL AND WEST BIRMINGHAM HOSPITALS NHS TRUST","RXK01","Sandwell General Hospital - RXK01"]
[null,null,null,null,null,null,null,null,null,null,null,null,null,null,null,null,null,null,null,null,null,null,null,null,"RXKXXX","WiC_MIU - RXKXXX",null,null,null,null,null,null,null,"Q77","RXK","SANDWELL AND WEST BIRMINGHAM HOSPITALS NHS TRUST","RXKXXX","WiC_MIU - RXKXXX"]
[null,null,null,null,null,null,null,null,null,null,null,null,null,null,null,null,null,null,null,null,null,null,null,null,"RJC02","Warwick Hospital - RJC02",null,null,null,null,null,null,null,"Q77","RJC","SOUTH WARWICKSHIRE NHS FOUNDATION TRUST","RJC02","Warwick Hospital - RJC02"]
[null,null,null,null,null,null,null,null,null,null,null,null,null,null,null,null,null,null,null,null,null,null,null,null,"RNA01","Russells Hall Hospital - RNA01",null,null,null,null,null,null,null,"Q77","RNA","THE DUDLEY GROUP NHS FOUNDATION TRUST","RNA01","Russells Hall Hospital - RNA01"]
[null,null,null,null,null,null,null,null,null,null,null,null,null,null,null,null,null,null,null,null,null,null,null,null,"RL403","New Cross Hospital - RL403",null,null,null,null,null,null,null,"Q77","RL4","THE ROYAL WOLVERHAMPTON NHS TRUST","RL403","New Cross Hospital - RL403"]
[null,null,null,null,null,null,null,null,null,null,null,null,null,null,null,null,null,null,null,null,null,null,null,null,"RL4XXX","WiC_MIU - RL4XXX",null,null,null,null,null,null,null,"Q77","RL4","THE ROYAL WOLVERHAMPTON NHS TRUST","RL4XXX","WiC_MIU - RL4XXX"]
[null,null,null,null,null,null,null,null,null,null,null,null,null,null,null,null,null,null,null,null,null,null,null,null,"RRK15","Queen Elizabeth Hospital Birmingham - RRK15",null,null,null,null,null,null,null,"Q77","RRK","UNIVERSITY HOSPITALS BIRMINGHAM NHS FOUNDATION TRUST","RRK15","Queen Elizabeth Hospital Birmingham - RRK15"]
[null,null,null,null,null,null,null,null,null,null,null,null,null,null,null,null,null,null,null,null,null,null,null,null,"RKB01","University Hospital (Coventry) - RKB01",null,null,null,null,null,null,null,"Q77","RKB","UNIVERSITY HOSPITALS COVENTRY AND WARWICKSHIRE NHS TRUST","RKB01","University Hospital (Coventry) - RKB01"]
[null,null,null,null,null,null,null,null,null,null,null,null,null,null,null,null,null,null,null,null,null,null,null,null,"RKBXXX","WiC_MIU - RKBXXX",null,null,null,null,null,null,null,"Q77","RKB","UNIVERSITY HOSPITALS COVENTRY AND WARWICKSHIRE NHS TRUST","RKBXXX","WiC_MIU - RKBXXX"]
[null,null,null,null,null,null,null,null,null,null,null,null,null,null,null,null,null,null,null,null,null,null,null,null,"RBK02","Manor Hospital - RBK02",null,null,null,null,null,null,null,"Q77","RBK","WALSALL HEALTHCARE NHS TRUST","RBK02","Manor Hospital - RBK02"]
[null,null,null,null,null,null,null,null,null,null,null,null,null,null,null,null,null,null,null,null,null,null,null,null,"RWP01","Alexandra Hospital - RWP01",null,null,null,null,null,null,null,"Q77","RWP","WORCESTERSHIRE ACUTE HOSPITALS NHS TRUST","RWP01","Alexandra Hospital - RWP01"]
[null,null,null,null,null,null,null,null,null,null,null,null,null,null,null,null,null,null,null,null,null,null,null,null,"RWP31","Kidderminster Hospital - RWP31",null,null,null,null,null,null,null,"Q77","RWP","WORCESTERSHIRE ACUTE HOSPITALS NHS TRUST","RWP31","Kidderminster Hospital - RWP31"]
[null,null,null,null,null,null,null,null,null,null,null,null,null,null,null,null,null,null,null,null,null,null,null,null,"RWP50","Worcestershire Royal Hospital - RWP50",null,null,null,null,null,null,null,"Q77","RWP","WORCESTERSHIRE ACUTE HOSPITALS NHS TRUST","RWP50","Worcestershire Royal Hospital - RWP50"]
[null,null,null,null,null,null,null,null,null,null,null,null,null,null,null,null,null,null,null,null,null,null,null,null,"RLQ01","Hereford County Hospital - RLQ01",null,null,null,null,null,null,null,"Q77","RLQ","WYE VALLEY NHS TRUST","RLQ01","Hereford County Hospital - RLQ01"]
[null,null,null,null,null,null,null,null,null,null,null,null,null,null,null,null,null,null,null,null,null,null,null,null,"RC110","Bedford Hospital South Wing - RC110",null,null,null,null,null,null,null,"Q78","RC1","BEDFORD HOSPITAL NHS TRUST","RC110","Bedford Hospital South Wing - RC110"]
[null,null,null,null,null,null,null,null,null,null,null,null,null,null,null,null,null,null,null,null,null,null,null,null,"RWH01","Lister Hospital - RWH01",null,null,null,null,null,null,null,"Q78","RWH","EAST AND NORTH HERTFORDSHIRE NHS TRUST","RWH01","Lister Hospital - RWH01"]
[null,null,null,null,null,null,null,null,null,null,null,null,null,null,null,null,null,null,null,null,null,null,null,null,"RWH20","Queen Elizabeth I I Hospital - RWH20",null,null,null,null,null,null,null,"Q78","RWH","EAST AND NORTH HERTFORDSHIRE NHS TRUST","RWH20","Queen Elizabeth I I Hospital - RWH20"]
[null,null,null,null,null,null,null,null,null,null,null,null,null,null,null,null,null,null,null,null,null,null,null,null,"RNQ51","Kettering General Hospital - RNQ51",null,null,null,null,null,null,null,"Q78","RNQ","KETTERING GENERAL HOSPITAL NHS FOUNDATION TRUST","RNQ51","Kettering General Hospital - RNQ51"]
[null,null,null,null,null,null,null,null,null,null,null,null,null,null,null,null,null,null,null,null,null,null,null,null,"RC971","Luton and Dunstable Hospital - RC971",null,null,null,null,null,null,null,"Q78","RC9","LUTON AND DUNSTABLE UNIVERSITY HOSPITAL NHS FOUNDATION TRUST","RC971","Luton and Dunstable Hospital - RC971"]
[null,null,null,null,null,null,null,null,null,null,null,null,null,null,null,null,null,null,null,null,null,null,null,null,"RD816","Milton Keynes Hospital - RD816",null,null,null,null,null,null,null,"Q78","RD8","MILTON KEYNES HOSPITAL NHS FOUNDATION TRUST","RD816","Milton Keynes Hospital - RD816"]
[null,null,null,null,null,null,null,null,null,null,null,null,null,null,null,null,null,null,null,null,null,null,null,null,"RNS01","Northampton General Hospital (Acute) - RNS01",null,null,null,null,null,null,null,"Q78","RNS","NORTHAMPTON GENERAL HOSPITAL NHS TRUST","RNS01","Northampton General Hospital (Acute) - RNS01"]
[null,null,null,null,null,null,null,null,null,null,null,null,null,null,null,null,null,null,null,null,null,null,null,null,"RWDLP","Grantham and District Hospital - RWDLP",null,null,null,null,null,null,null,"Q78","RWD","UNITED LINCOLNSHIRE HOSPITALS NHS TRUST","RWDLP","Grantham and District Hospital - RWDLP"]
[null,null,null,null,null,null,null,null,null,null,null,null,null,null,null,null,null,null,null,null,null,null,null,null,"RWDDA","Lincoln County Hospital - RWDDA",null,null,null,null,null,null,null,"Q78","RWD","UNITED LINCOLNSHIRE HOSPITALS NHS TRUST","RWDDA","Lincoln County Hospital - RWDDA"]
[null,null,null,null,null,null,null,null,null,null,null,null,null,null,null,null,null,null,null,null,null,null,null,null,"RWDLA","Pilgrim Hospital - RWDLA",null,null,null,null,null,null,null,"Q78","RWD","UNITED LINCOLNSHIRE HOSPITALS NHS TRUST","RWDLA","Pilgrim Hospital - RWDLA"]
[null,null,null,null,null,null,null,null,null,null,null,null,null,null,null,null,null,null,null,null,null,null,null,null,"RWEAA","Leicester Royal Infirmary - RWEAA",null,null,null,null,null,null,null,"Q78","RWE","UNIVERSITY HOSPITALS OF LEICESTER NHS TRUST","RWEAA","Leicester Royal Infirmary - RWEAA"]
[null,null,null,null,null,null,null,null,null,null,null,null,null,null,null,null,null,null,null,null,null,null,null,null,"RWG02","Watford General Hospital - RWG02",null,null,null,null,null,null,null,"Q78","RWG","WEST HERTFORDSHIRE HOSPITALS NHS TRUST","RWG02","Watford General Hospital - RWG02"]
[null,null,null,null,null,null,null,null,null,null,null,null,null,null,null,null,null,null,null,null,null,null,null,null,"RWGXXX","WiC_MIU - RWGXXX",null,null,null,null,null,null,null,"Q78","RWG","WEST HERTFORDSHIRE HOSPITALS NHS TRUST","RWGXXX","WiC_MIU - RWGXXX"]
[null,null,null,null,null,null,null,null,null,null,null,null,null,null,null,null,null,null,null,null,null,null,null,null,"RDDH0","Basildon University Hospital - RDDH0",null,null,null,null,null,null,null,"Q79","RDD","BASILDON AND THURROCK UNIVERSITY HOSPITALS NHS FOUNDATION TRUST","RDDH0","Basildon University Hospital - RDDH0"]
[null,null,null,null,null,null,null,null,null,null,null,null,null,null,null,null,null,null,null,null,null,null,null,null,"RGT01","Addenbrooke's Hospital - RGT01",null,null,null,null,null,null,null,"Q79","RGT","CAMBRIDGE UNIVERSITY HOSPITALS NHS FOUNDATION TRUST","RGT01","Addenbrooke's Hospital - RGT01"]
[null,null,null,null,null,null,null,null,null,null,null,null,null,null,null,null,null,null,null,null,null,null,null,null,"RDEE4","Colchester General Hospital - RDEE4",null,null,null,null,null,null,null,"Q79","RDE","COLCHESTER HOSPITAL UNIVERSITY NHS FOUNDATION TRUST","RDEE4","Colchester General Hospital - RDEE4"]
[null,null,null,null,null,null,null,null,null,null,null,null,null,null,null,null,null,null,null,null,null,null,null,null,"RQQ31","Hinchingbrooke Hospital - RQQ31",null,null,null,null,null,null,null,"Q79","RQQ","HINCHINGBROOKE HEALTH CARE NHS TRUST","RQQ31","Hinchingbrooke Hospital - RQQ31"]
[null,null,null,null,null,null,null,null,null,null,null,null,null,null,null,null,null,null,null,null,null,null,null,null,"RGQ02","The Ipswich Hospital NHS Trust - RGQ02",null,null,null,null,null,null,null,"Q79","RGQ","IPSWICH HOSPITAL NHS TRUST","RGQ02","The Ipswich Hospital NHS Trust - RGQ02"]
[null,null,null,null,null,null,null,null,null,null,null,null,null,null,null,null,null,null,null,null,null,null,null,null,"RGP75","James Paget University Hospital - RGP75",null,null,null,null,null,null,null,"Q79","RGP","JAMES PAGET UNIVERSITY HOSPITALS NHS FOUNDATION TRUST","RGP75","James Paget University Hospital - RGP75"]
[null,null,null,null,null,null,null,null,null,null,null,null,null,null,null,null,null,null,null,null,null,null,null,null,"RQ8L0","Broomfield Hospital - RQ8L0",null,null,null,null,null,null,null,"Q79","RQ8","MID ESSEX HOSPITAL SERVICES NHS TRUST","RQ8L0","Broomfield Hospital - RQ8L0"]
[null,null,null,null,null,null,null,null,null,null,null,null,null,null,null,null,null,null,null,null,null,null,null,null,"RM102","Norfolk and Norwich University Hospital - RM102",null,null,null,null,null,null,null,"Q79","RM1","NORFOLK AND NORWICH UNIVERSITY HOSPITALS NHS FOUNDATION TRUST","RM102","Norfolk and Norwich University Hospital - RM102"]
[null,null,null,null,null,null,null,null,null,null,null,null,null,null,null,null,null,null,null,null,null,null,null,null,"RGN80","Peterborough City Hospital - RGN80",null,null,null,null,null,null,null,"Q79","RGN","PETERBOROUGH AND STAMFORD HOSPITALS NHS FOUNDATION TRUST","RGN80","Peterborough City Hospital - RGN80"]
[null,null,null,null,null,null,null,null,null,null,null,null,null,null,null,null,null,null,null,null,null,null,null,null,"RGNXXX","WiC_MIU - RGNXXX",null,null,null,null,null,null,null,"Q79","RGN","PETERBOROUGH AND STAMFORD HOSPITALS NHS FOUNDATION TRUST","RGNXXX","WiC_MIU - RGNXXX"]
[null,null,null,null,null,null,null,null,null,null,null,null,null,null,null,null,null,null,null,null,null,null,null,null,"RAJ01","Southend Hospital - RAJ01",null,null,null,null,null,null,null,"Q79","RAJ","SOUTHEND UNIVERSITY HOSPITAL NHS FOUNDATION TRUST","RAJ01","Southend Hospital - RAJ01"]
[null,null,null,null,null,null,null,null,null,null,null,null,null,null,null,null,null,null,null,null,null,null,null,null,"RQWG0","Princess Alexandra Hospital - RQWG0",null,null,null,null,null,null,null,"Q79","RQW","THE PRINCESS ALEXANDRA HOSPITAL NHS TRUST","RQWG0","Princess Alexandra Hospital - RQWG0"]
[null,null,null,null,null,null,null,null,null,null,null,null,null,null,null,null,null,null,null,null,null,null,null,null,"RCX70","The Queen Elizabeth Hospital - RCX70",null,null,null,null,null,null,null,"Q79","RCX","THE QUEEN ELIZABETH HOSPITAL, KING'S LYNN, NHS FOUNDATION TRUST","RCX70","The Queen Elizabeth Hospital - RCX70"]
[null,null,null,null,null,null,null,null,null,null,null,null,null,null,null,null,null,null,null,null,null,null,null,null,"RGR50","West Suffolk Hospital - RGR50",null,null,null,null,null,null,null,"Q79","RGR","WEST SUFFOLK NHS FOUNDATION TRUST","RGR50","West Suffolk Hospital - RGR50"]
[null,null,null,null,null,null,null,null,null,null,null,null,null,null,null,null,null,null,null,null,null,null,null,null,"RVJ01","Southmead Hospital - RVJ01",null,null,null,null,null,null,null,"Q80","RVJ","NORTH BRISTOL NHS TRUST","RVJ01","Southmead Hospital - RVJ01"]
[null,null,null,null,null,null,null,null,null,null,null,null,null,null,null,null,null,null,null,null,null,null,null,null,"RBZ12","North Devon District Hospital - RBZ12",null,null,null,null,null,null,null,"Q80","RBZ","NORTHERN DEVON HEALTHCARE NHS TRUST","RBZ12","North Devon District Hospital - RBZ12"]
[null,null,null,null,null,null,null,null,null,null,null,null,null,null,null,null,null,null,null,null,null,null,null,null,"RK950","Derriford Hospital - RK950",null,null,null,null,null,null,null,"Q80","RK9","PLYMOUTH HOSPITALS NHS TRUST","RK950","Derriford Hospital - RK950"]
[null,null,null,null,null,null,null,null,null,null,null,null,null,null,null,null,null,null,null,null,null,null,null,null,"REF12","Royal Cornwall Hospital (Treliske) - REF12",null,null,null,null,null,null,null,"Q80","REF","ROYAL CORNWALL HOSPITALS NHS TRUST","REF12","Royal Cornwall Hospital (Treliske) - REF12"]
[null,null,null,null,null,null,null,null,null,null,null,null,null,null,null,null,null,null,null,null,null,null,null,null,"RH801","Royal Devon and Exeter Hospital (Wonford) - RH801",null,null,null,null,null,null,null,"Q80","RH8","ROYAL DEVON AND EXETER NHS FOUNDATION TRUST","RH801","Royal Devon and Exeter Hospital (Wonford) - RH801"]
[null,null,null,null,null,null,null,null,null,null,null,null,null,null,null,null,null,null,null,null,null,null,null,null,"RA901","Torbay Hospital - RA901",null,null,null,null,null,null,null,"Q80","RA9","SOUTH DEVON HEALTHCARE NHS FOUNDATION TRUST","RA901","Torbay Hospital - RA901"]
[null,null,null,null,null,null,null,null,null,null,null,null,null,null,null,null,null,null,null,null,null,null,null,null,"RBA11","Musgrove Park Hospital - RBA11",null,null,null,null,null,null,null,"Q80","RBA","TAUNTON AND SOMERSET NHS FOUNDATION TRUST","RBA11","Musgrove Park Hospital - RBA11"]
[null,null,null,null,null,null,null,null,null,null,null,null,null,null,null,null,null,null,null,null,null,null,null,null,"RA708","Bristol Eye Hospital - RA708",null,null,null,null,null,null,null,"Q80","RA7","UNIVERSITY HOSPITALS BRISTOL NHS FOUNDATION TRUST","RA708","Bristol Eye Hospital - RA708"]
[null,null,null,null,null,null,null,null,null,null,null,null,null,null,null,null,null,null,null,null,null,null,null,null,"RA723","Bristol Royal Hospital For Children - RA723",null,null,null,null,null,null,null,"Q80","RA7","UNIVERSITY HOSPITALS BRISTOL NHS FOUNDATION TRUST","RA723","Bristol Royal Hospital For Children - RA723"]
[null,null,null,null,null,null,null,null,null,null,null,null,null,null,null,null,null,null,null,null,null,null,null,null,"RA701","Bristol Royal Infirmary - RA701",null,null,null,null,null,null,null,"Q80","RA7","UNIVERSITY HOSPITALS BRISTOL NHS FOUNDATION TRUST","RA701","Bristol Royal Infirmary - RA701"]
[null,null,null,null,null,null,null,null,null,null,null,null,null,null,null,null,null,null,null,null,null,null,null,null,"RA301","Weston General Hospital - RA301",null,null,null,null,null,null,null,"Q80","RA3","WESTON AREA HEALTH NHS TRUST","RA301","Weston General Hospital - RA301"]
[null,null,null,null,null,null,null,null,null,null,null,null,null,null,null,null,null,null,null,null,null,null,null,null,"RA430","Yeovil District Hospital - RA430",null,null,null,null,null,null,null,"Q80","RA4","YEOVIL DISTRICT HOSPITAL NHS FOUNDATION TRUST","RA430","Yeovil District Hospital - RA430"]
[null,null,null,null,null,null,null,null,null,null,null,null,null,null,null,null,null,null,null,null,null,null,null,null,"RTK01","St Peter's Hospital - RTK01",null,null,null,null,null,null,null,"Q81","RTK","ASHFORD AND ST PETER'S HOSPITALS NHS FOUNDATION TRUST","RTK01","St Peter's Hospital - RTK01"]
[null,null,null,null,null,null,null,null,null,null,null,null,null,null,null,null,null,null,null,null,null,null,null,null,"RXH09","Princess Royal Hospital - RXH09",null,null,null,null,null,null,null,"Q81","RXH","BRIGHTON AND SUSSEX UNIVERSITY HOSPITALS NHS TRUST","RXH09","Princess Royal Hospital - RXH09"]
[null,null,null,null,null,null,null,null,null,null,null,null,null,null,null,null,null,null,null,null,null,null,null,null,"RXH01","Royal Sussex County Hospital - RXH01",null,null,null,null,null,null,null,"Q81","RXH","BRIGHTON AND SUSSEX UNIVERSITY HOSPITALS NHS TRUST","RXH01","Royal Sussex County Hospital - RXH01"]
[null,null,null,null,null,null,null,null,null,null,null,null,null,null,null,null,null,null,null,null,null,null,null,null,"RXH07","Sussex Eye Hospital - RXH07",null,null,null,null,null,null,null,"Q81","RXH","BRIGHTON AND SUSSEX UNIVERSITY HOSPITALS NHS TRUST","RXH07","Sussex Eye Hospital - RXH07"]
[null,null,null,null,null,null,null,null,null,null,null,null,null,null,null,null,null,null,null,null,null,null,null,null,"RXH06","The Royal Alexandra Children's Hospital - RXH06",null,null,null,null,null,null,null,"Q81","RXH","BRIGHTON AND SUSSEX UNIVERSITY HOSPITALS NHS TRUST","RXH06","The Royal Alexandra Children's Hospital - RXH06"]
[null,null,null,null,null,null,null,null,null,null,null,null,null,null,null,null,null,null,null,null,null,null,null,null,"RN707","Darent Valley Hospital - RN707",null,null,null,null,null,null,null,"Q81","RN7","DARTFORD AND GRAVESHAM NHS TRUST","RN707","Darent Valley Hospital - RN707"]
[null,null,null,null,null,null,null,null,null,null,null,null,null,null,null,null,null,null,null,null,null,null,null,null,"RVV02","Buckland Hospital - RVV02",null,null,null,null,null,null,null,"Q81","RVV","EAST KENT HOSPITALS UNIVERSITY NHS FOUNDATION TRUST","RVV02","Buckland Hospital - RVV02"]
[null,null,null,null,null,null,null,null,null,null,null,null,null,null,null,null,null,null,null,null,null,null,null,null,"RVVKC","Kent and Canterbury Hospital - RVVKC",null,null,null,null,null,null,null,"Q81","RVV","EAST KENT HOSPITALS UNIVERSITY NHS FOUNDATION TRUST","RVVKC","Kent and Canterbury Hospital - RVVKC"]
[null,null,null,null,null,null,null,null,null,null,null,null,null,null,null,null,null,null,null,null,null,null,null,null,"RVV09","Queen Elizabeth The Queen Mother Hospital - RVV09",null,null,null,null,null,null,null,"Q81","RVV","EAST KENT HOSPITALS UNIVERSITY NHS FOUNDATION TRUST","RVV09","Queen Elizabeth The Queen Mother Hospital - RVV09"]
[null,null,null,null,null,null,null,null,null,null,null,null,null,null,null,null,null,null,null,null,null,null,null,null,"RVV01","William Harvey Hospital (Ashford) - RVV01",null,null,null,null,null,null,null,"Q81","RVV","EAST KENT HOSPITALS UNIVERSITY NHS FOUNDATION TRUST","RVV01","William Harvey Hospital (Ashford) - RVV01"]
[null,null,null,null,null,null,null,null,null,null,null,null,null,null,null,null,null,null,null,null,null,null,null,null,"RXC01","Conquest Hospital - RXC01",null,null,null,null,null,null,null,"Q81","RXC","EAST SUSSEX HEALTHCARE NHS TRUST","RXC01","Conquest Hospital - RXC01"]
[null,null,null,null,null,null,null,null,null,null,null,null,null,null,null,null,null,null,null,null,null,null,null,null,"RXC02","Eastbourne District General Hospital - RXC02",null,null,null,null,null,null,null,"Q81","RXC","EAST SUSSEX HEALTHCARE NHS TRUST","RXC02","Eastbourne District General Hospital - RXC02"]
[null,null,null,null,null,null,null,null,null,null,null,null,null,null,null,null,null,null,null,null,null,null,null,null,"RDU01","Frimley Park Hospital - RDU01",null,null,null,null,null,null,null,"Q81","RDU","FRIMLEY HEALTH NHS FOUNDATION TRUST","RDU01","Frimley Park Hospital - RDU01"]
[null,null,null,null,null,null,null,null,null,null,null,null,null,null,null,null,null,null,null,null,null,null,null,null,"RDU50","Wexham Park Hospital - RDU50",null,null,null,null,null,null,null,"Q81","RDU","FRIMLEY HEALTH NHS FOUNDATION TRUST","RDU50","Wexham Park Hospital - RDU50"]
[null,null,null,null,null,null,null,null,null,null,null,null,null,null,null,null,null,null,null,null,null,null,null,null,"RWF03","Maidstone District General Hospital - RWF03",null,null,null,null,null,null,null,"Q81","RWF","MAIDSTONE AND TUNBRIDGE WELLS NHS TRUST","RWF03","Maidstone District General Hospital - RWF03"]
[null,null,null,null,null,null,null,null,null,null,null,null,null,null,null,null,null,null,null,null,null,null,null,null,"RWFTW","The Tunbridge Wells Hospital - RWFTW",null,null,null,null,null,null,null,"Q81","RWF","MAIDSTONE AND TUNBRIDGE WELLS NHS TRUST","RWFTW","The Tunbridge Wells Hospital - RWFTW"]
[null,null,null,null,null,null,null,null,null,null,null,null,null,null,null,null,null,null,null,null,null,null,null,null,"RPA02","Medway Maritime Hospital - RPA02",null,null,null,null,null,null,null,"Q81","RPA","MEDWAY NHS FOUNDATION TRUST","RPA02","Medway Maritime Hospital - RPA02"]
[null,null,null,null,null,null,null,null,null,null,null,null,null,null,null,null,null,null,null,null,null,null,null,null,"RA201","Royal Surrey County Hospital - RA201",null,null,null,null,null,null,null,"Q81","RA2","ROYAL SURREY COUNTY HOSPITAL NHS FOUNDATION TRUST","RA201","Royal Surrey County Hospital - RA201"]
[null,null,null,null,null,null,null,null,null,null,null,null,null,null,null,null,null,null,null,null,null,null,null,null,"RTP04","East Surrey Hospital - RTP04",null,null,null,null,null,null,null,"Q81","RTP","SURREY AND SUSSEX HEALTHCARE NHS TRUST","RTP04","East Surrey Hospital - RTP04"]
[null,null,null,null,null,null,null,null,null,null,null,null,null,null,null,null,null,null,null,null,null,null,null,null,"RYR16","St Richard's Hospital - RYR16",null,null,null,null,null,null,null,"Q81","RYR","WESTERN SUSSEX HOSPITALS NHS FOUNDATION TRUST","RYR16","St Richard's Hospital - RYR16"]
[null,null,null,null,null,null,null,null,null,null,null,null,null,null,null,null,null,null,null,null,null,null,null,null,"RYR18","Worthing Hospital - RYR18",null,null,null,null,null,null,null,"Q81","RYR","WESTERN SUSSEX HOSPITALS NHS FOUNDATION TRUST","RYR18","Worthing Hospital - RYR18"]
[null,null,null,null,null,null,null,null,null,null,null,null,null,null,null,null,null,null,null,null,null,null,null,null,"RXQ02","Stoke Mandeville Hospital - RXQ02",null,null,null,null,null,null,null,"Q82","RXQ","BUCKINGHAMSHIRE HEALTHCARE NHS TRUST","RXQ02","Stoke Mandeville Hospital - RXQ02"]
[null,null,null,null,null,null,null,null,null,null,null,null,null,null,null,null,null,null,null,null,null,null,null,null,"RTE01","Cheltenham General Hospital - RTE01",null,null,null,null,null,null,null,"Q82","RTE","GLOUCESTERSHIRE HOSPITALS NHS FOUNDATION TRUST","RTE01","Cheltenham General Hospital - RTE01"]
[null,null,null,null,null,null,null,null,null,null,null,null,null,null,null,null,null,null,null,null,null,null,null,null,"RTE03","Gloucestershire Royal Hospital - RTE03",null,null,null,null,null,null,null,"Q82","RTE","GLOUCESTERSHIRE HOSPITALS NHS FOUNDATION TRUST","RTE03","Gloucestershire Royal Hospital - RTE03"]
[null,null,null,null,null,null,null,null,null,null,null,null,null,null,null,null,null,null,null,null,null,null,null,null,"RN325","The Great Western Hospital - RN325",null,null,null,null,null,null,null,"Q82","RN3","GREAT WESTERN HOSPITALS NHS FOUNDATION TRUST","RN325","The Great Western Hospital - RN325"]
[null,null,null,null,null,null,null,null,null,null,null,null,null,null,null,null,null,null,null,null,null,null,null,null,"RN3XXX","WiC_MIU - RN3XXX",null,null,null,null,null,null,null,"Q82","RN3","GREAT WESTERN HOSPITALS NHS FOUNDATION TRUST","RN3XXX","WiC_MIU - RN3XXX"]
[null,null,null,null,null,null,null,null,null,null,null,null,null,null,null,null,null,null,null,null,null,null,null,null,"RTH05","Horton General Hospital - RTH05",null,null,null,null,null,null,null,"Q82","RTH","OXFORD UNIVERSITY HOSPITALS NHS TRUST","RTH05","Horton General Hospital - RTH05"]
[null,null,null,null,null,null,null,null,null,null,null,null,null,null,null,null,null,null,null,null,null,null,null,null,"RTH08","John Radcliffe Hospital - RTH08",null,null,null,null,null,null,null,"Q82","RTH","OXFORD UNIVERSITY HOSPITALS NHS TRUST","RTH08","John Radcliffe Hospital - RTH08"]
[null,null,null,null,null,null,null,null,null,null,null,null,null,null,null,null,null,null,null,null,null,null,null,null,"RHW03","King Edward Vii Hospital - RHW03",null,null,null,null,null,null,null,"Q82","RHW","ROYAL BERKSHIRE NHS FOUNDATION TRUST","RHW03","King Edward Vii Hospital - RHW03"]
[null,null,null,null,null,null,null,null,null,null,null,null,null,null,null,null,null,null,null,null,null,null,null,null,"RHW01","Royal Berkshire Hospital - RHW01",null,null,null,null,null,null,null,"Q82","RHW","ROYAL BERKSHIRE NHS FOUNDATION TRUST","RHW01","Royal Berkshire Hospital - RHW01"]
[null,null,null,null,null,null,null,null,null,null,null,null,null,null,null,null,null,null,null,null,null,null,null,null,"RD130","Royal United Hospital - RD130",null,null,null,null,null,null,null,"Q82","RD1","ROYAL UNITED HOSPITALS BATH NHS FOUNDATION TRUST","RD130","Royal United Hospital - RD130"]
[null,null,null,null,null,null,null,null,null,null,null,null,null,null,null,null,null,null,null,null,null,null,null,null,"RNZ02","Salisbury District Hospital - RNZ02",null,null,null,null,null,null,null,"Q82","RNZ","SALISBURY NHS FOUNDATION TRUST","RNZ02","Salisbury District Hospital - RNZ02"]